Workbook

Sheet Navigation Pane
B2: Brisbane City Council
B3: Local Government Infrastructure Plan (LGIP)
B6: Version No | D6: 1 | F6: Date | G6: 2021-12-10 | J6: Author | K6: BCC
B8: Comments | D8: Version for LGIP amendment 1a adoption. Effective as at 10 December 2021.
D10: Inputs | I10: Calculation | N10: Outputs
C12: General Input Sheet | H12: Calculation Function | M12: Summary Cost Schedule
C13: l Financial Inputs l Other "generic" inputs | H13: Catchment based summary of demand, infrastructure (existing and new) and cost allocation Infrastructure Cost calculation for each catchment Optional Discounted Cashflow | M13: l Summary of demand and cost allocation by catchment l Final costs by catchment
M15: Summary Cash flow Projections
C16: l Unit Cost of Passive Assets l Unit Cost of Land | M16: l Summary of forecast Cap X and anticipated IC revenues. Refer to Revenue and Cash Flow model for output.
C19: l Estimates of current and future demand (per cost catchment)
C21: Asset Inputs
C22: Existing Trunk Assets (& Catchments Served)
C23: Future Trunk Assets (& Catchments Served)

Sheet General Input Sheet
B2: ='Navigation Pane'!B2 -> Brisbane City Council
A3: Return to Navigation Pane
B4: General Input Sheet
B6: General Inputs | E6: Reference | G6: Value | I6: Comments
C8: Base Year | E8: YEAR | G8: 2016
G9: =YEAR -> 2016
C10: Term (between 15 and 30 years) | E10: TERM | G10: 10
B12: Application of Discounted Cash flow
C14: Calculate charges using Discounted Cash flow? (Y/N) | E14: DCFTRIGGER | G14: Yes
B16: General Financial Inputs
B18: Discount Rate (WACC):
C19: Average 10 Year Bond Rate | E19: TenYr
B21: Option 1 | C21: Basic Margin on 10 Yr. Bond Rate | E21: Margin | I21: 3.5% is the baseline figure quoted in LG Bulletin 06/01
C23: WACC: | E23: WACC1 | G23: 0.0591
B25: Option 2 | C25: Capital Structure (% Debt) | E25: Capstr
C26: Market Risk Premium | E26: Risk
C27: Asset Beta | E27: AssetBeta
C28: Cost of Debt | E28: Debt
C30: WACC: | E30: WACC2 | G30: 0.0591
C32: WACC Option to be applied in the calculation? | E32: WACC1 | G32: =IF(G14="No",0,IF(E32="WACC1",WACC1,IF(E32="WACC2",WACC2,"Error"))) -> 0.0591
B34: Escalation Rates
C35: Capital Escalation - Future Cap X | E35: PPI | G35: =(G38/G43)^(1/(E38-E43))-1 -> 0.01871653255 | I35: ten (10) yr. average Roads and Bridges Index (ABS 6427, Table 15, Index 3101)
C37: Capital Indexation Rates - Historical (June Qtr.)
E38: =YEAR -> 2016 | G38: 110.56 | I38: Roads and Bridges Index (ABS 6427, Table 15, Index 3101)
E39: =E38-1 -> 2015
E40: =E39-1 -> 2014
E41: 2013
E42: 2012
E43: 2011 | G43: 100.77
E44: 2010
C46: Land Escalation | E46: LandInd | G46: 0.025
C48: Charges Escalation Rate | E48: Chargeind | G48: 0
G49: =Chargeind -> 0
G51: =Chargeind -> 0

Sheet Exist Trunk Assets - Transport
B1: ='Navigation Pane'!B2 -> Brisbane City Council
B2: Transport
B4: EXISTING TRUNK ASSETS
B6: Land Valuation Type | C6: Location
D8: Asset Data
B9: Basic Asset Data | E9: Basic Asset Valuation | J9: Refined Asset Value
B10: Asset ID | C10: Asset Name | D10: Length/unit (*) | E10: Unit Rate | F10: Baseline Valuation | G10: Size of land (ha) (*) | H10: Average Unit Cost | I10: Land Value | J10: Valuation Year | K10: Current Replacement Cost
B12: Councils ID (from GIS, FAR, AMA etc.) | F12: May be calculated from unit rates OR unique values can be direct entered
B13: 10033-5220 | C13: NU035 | D13: 31876.70833 | E13: 183.8051956 | F13: =IFERROR(D13*E13,0) -> 5859104.61 | G13: 15938.3539 | H13: 162.6945302 | I13: =IFERROR(G13*H13,"") -> 2593083 | J13: 2016 | K13: =IFERROR(ROUND((F13+I13),0),0) -> 8452188
B14: 10033-9601 | C14: MV100 | D14: 9218.259524 | E14: 346.5948427 | F14: =IFERROR(D14*E14,0) -> 3195001.21 | G14: 4609.129909 | H14: 162.6944813 | I14: =IFERROR(G14*H14,"") -> 749880 | J14: 2016 | K14: =IFERROR(ROUND((F14+I14),0),0) -> 3944881
B15: 10066-11347 | C15: RC265 | D15: 11855.35429 | E15: 216.4999035 | F15: 2566683.06 | G15: 5927.677412 | H15: 162.6945822 | I15: 964401 | J15: 2016 | K15: 3531084
B16: 10066-7612 | C16: RC265 | D16: 10598.52857 | E16: 354.9334368 | F16: 3761772.17 | G16: 5299.264167 | H16: 162.6944747 | I16: 862161 | J16: 2016 | K16: 4623933
B17: 10067-10070 | C17: SC080 | D17: 12145.39167 | E17: 448.5387329 | F17: 5447678.59 | G17: 6072.69581 | H17: 162.6944657 | I17: 987994 | J17: 2016 | K17: 6435673
B18: 10067-15061 | C18: SC080 | D18: 8526.2 | E18: 47.63293261 | F18: 406127.91 | G18: 4263.10014 | H18: 162.6945127 | I18: 693583 | J18: 2016 | K18: 1099711
B19: 10068-10069 | C19: SC620 | D19: 10784.78417 | E19: 372.6743398 | F19: 4019212.32 | G19: 5392.392036 | H19: 162.6945879 | I19: 877313 | J19: 2016 | K19: 4896525
B20: 10068-7372 | C20: SC620 | D20: 8763.304762 | E20: 775.9457025 | F20: 6799848.67 | G20: 4381.652537 | H20: 162.6945528 | I20: 712871 | J20: 2016 | K20: 7512720
B21: 10069-10068 | C21: SC620 | D21: 10784.78417 | E21: 372.6743398 | F21: 4019212.32 | G21: 5392.392036 | H21: 162.6945879 | I21: 877313 | J21: 2016 | K21: 4896525
B22: 10069-10071 | C22: SC620 | D22: 10613.22083 | E22: 556.368918 | F22: 5904866.19 | G22: 5306.610507 | H22: 162.6944353 | I22: 863356 | J22: 2016 | K22: 6768222
B23: 10070-10067 | C23: SC080 | D23: 12145.39167 | E23: 448.5387329 | F23: 5447678.59 | G23: 6072.69581 | H23: 162.6944657 | I23: 987994 | J23: 2016 | K23: 6435673
B24: 10070-400102 | C24: SC120 | D24: 12667.09841 | E24: 136.675489 | F24: 1731281.87 | J24: 2016 | K24: 0
B25: 10070-7368 | C25: SC080 | D25: 26177.33333 | E25: 202.6448448 | F25: 5304701.65 | G25: 13088.66641 | H25: 162.6944972 | I25: 2129454 | J25: 2016 | K25: 7434156
B26: 10071-10069 | C26: SC620 | D26: 10613.22083 | E26: 556.368918 | F26: 5904866.19 | G26: 5306.610507 | H26: 162.6944353 | I26: 863356 | J26: 2016 | K26: 6768222
B27: 10071-7376 | C27: SC620 | D27: 9449.15 | E27: 72.4885032 | F27: 684954.74 | G27: 4724.574886 | H27: 162.6944262 | I27: 768662 | J27: 2016 | K27: 1453617
B28: 10072-25500 | C28: RC265 | D28: 9812.666667 | E28: 316.0404888 | F28: 3101199.97 | G28: 4906.333495 | H28: 162.6944032 | I28: 798233 | J28: 2016 | K28: 3899433
B29: 10072-7371 | C29: RC265 | D29: 4827.5 | E29: 150.713653 | F29: 727570.16 | G29: 2413.750015 | H29: 162.6945614 | I29: 392704 | J29: 2016 | K29: 1120274
B30: 10073-15162 | C30: RB265 | D30: 9043.57 | E30: 45.47665137 | F30: 411271.28 | G30: 4521.785104 | H30: 162.6945958 | I30: 735670 | J30: 2016 | K30: 1146941
B31: 10073-7612 | C31: RB265 | D31: 12244.93538 | E31: 313.9145239 | F31: 3843863.06 | G31: 6122.467958 | H31: 162.6945223 | I31: 996092 | J31: 2016 | K31: 4839955
B32: 10074-7613 | C32: SC180 | D32: 31196.77917 | E32: 122.6384643 | F32: 3825925.09 | G32: 15598.38932 | H32: 162.6944903 | I32: 2537772 | J32: 2016 | K32: 6363697
B33: 10074-7614 | C33: SC180 | D33: 17863.50029 | E33: 229.3978746 | F33: 4097849 | G33: 8931.750296 | H33: 162.6945394 | I33: 1453147 | J33: 2016 | K33: 5550996
B34: 10075-11362 | C34: RC104 | D34: 13296.5 | E34: 234.8189779 | F34: 3122270.54 | G34: 6648.250245 | H34: 162.6945377 | I34: 1081634 | J34: 2016 | K34: 4203905
B35: 10075-15387 | C35: RB140 | D35: 7208.5 | E35: 132.2357717 | F35: 953221.56 | J35: 2016 | K35: 0
B36: 10075-7612 | C36: RC104 | D36: 15238.97278 | E36: 130.5583492 | F36: 1989575.13 | G36: 7619.486163 | H36: 162.6945667 | I36: 1239649 | J36: 2016 | K36: 3229224
B37: 10076-15162 | C37: RB265 | D37: 7917.658333 | E37: 98.21812805 | F37: 777657.58 | G37: 3958.829195 | H37: 162.6945666 | I37: 644080 | J37: 2016 | K37: 1421738
B38: 10076-15164 | C38: RB265 | D38: 24026.98333 | E38: 93.32133707 | F38: 2242230.21 | G38: 12013.49176 | H38: 162.6944971 | I38: 1954529 | J38: 2016 | K38: 4196759
B39: 10092-10093 | C39: PA390 | D39: 41287.50833 | E39: 30.8684588 | F39: 1274481.75 | G39: 20643.75463 | H39: 162.6944836 | I39: 3358625 | J39: 2016 | K39: 4633107
B40: 10092-8582 | C40: PA390 | D40: 15749.5 | E40: 22.14934506 | F40: 348841.11 | G40: 7874.750009 | H40: 162.6945615 | I40: 1281179 | J40: 2016 | K40: 1630020
B41: 10093-10092 | C41: PA390 | D41: 41287.50833 | E41: 30.8684588 | F41: 1274481.75 | G41: 20643.75463 | H41: 162.6944836 | I41: 3358625 | J41: 2016 | K41: 4633107
B42: 10093-9415 | C42: QB390 | D42: 39169.48333 | E42: 68.39959918 | F42: 2679176.96 | G42: 19584.74192 | H42: 162.6945105 | I42: 3186330 | J42: 2016 | K42: 5865507
B43: 10228-10383 | C43: TL499 | D43: 6390.9 | E43: 86.7482968 | F43: 554399.69 | G43: 3195.449919 | H43: 576.1611187 | I43: 1841094 | J43: 2016 | K43: 2395494
B44: 10228-14436 | C44: TL075 | D44: 5784.04 | E44: 130.4572894 | F44: 754570.18 | G44: 2892.019918 | H44: 576.1613154 | I44: 1666270 | J44: 2016 | K44: 2420840
B45: 10245-10366 | C45: TJ170 | D45: 14948.21786 | E45: 202.1541523 | F45: 3021844.31 | G45: 7474.108581 | H45: 576.1611506 | I45: 4306291 | J45: 2016 | K45: 7328135
B46: 10245-7022 | C46: TJ170 | D46: 11766.74167 | E46: 181.5204684 | F46: 2135904.46 | G46: 5883.370869 | H46: 576.1611966 | I46: 3389770 | J46: 2016 | K46: 5525674
B47: 10278-18829 | C47: SG350 | D47: 3925.68 | E47: 197.3906151 | F47: 774892.39 | G47: 1962.839978 | H47: 623.6514508 | I47: 1224128 | J47: 2016 | K47: 1999020
B48: 10278-7190 | C48: SG435 | D48: 3516.8 | E48: 347.9619341 | F48: 1223712.53 | G48: 1758.399971 | H48: 623.6516254 | I48: 1096629 | J48: 2016 | K48: 2320342
B49: 10278-9609 | C49: SG435 | D49: 6554.16 | E49: 209.2177365 | F49: 1371246.52 | G49: 3277.080052 | H49: 623.6515336 | I49: 2043756 | J49: 2016 | K49: 3415003
B50: 10286-25678 | C50: SG435 | D50: 5686.411111 | E50: 243.0565453 | F50: 1382119.44 | G50: 2843.205668 | H50: 576.161274 | I50: 1638145 | J50: 2016 | K50: 3020264
B51: 10286-7191 | C51: SG435 | D51: 5467.728571 | E51: 315.6097121 | F51: 1725668.24 | G51: 2733.864239 | H51: 576.1610169 | I51: 1575146 | J51: 2016 | K51: 3300814
B52: 10287-7190 | C52: SG435 | D52: 7849.15641 | E52: 287.3929136 | F52: 2255791.93 | G52: 3924.5783 | H52: 623.6517182 | I52: 2447570 | J52: 2016 | K52: 4703362
B53: 10287-7191 | C53: SG435 | D53: 12029.1819 | E53: 362.2352065 | F53: 4357393.19 | G53: 6014.590948 | H53: 616.703452 | I53: 3709219 | J53: 2016 | K53: 8066612
B54: 10289-7177 | C54: SG435 | D54: 6613.7125 | E54: 430.4519965 | F54: 2846885.75 | G54: 3306.856175 | H54: 623.6515563 | I54: 2062326 | J54: 2016 | K54: 4909212
B55: 10289-9609 | C55: SG435 | D55: 8264.505 | E55: 195.8460706 | F55: 1618570.83 | G55: 4132.252495 | H55: 623.651629 | I55: 2577086 | J55: 2016 | K55: 4195657
B56: 10290-10294 | C56: RI490 | D56: 6123 | E56: 601.1314699 | F56: 3680727.99 | G56: 3061.500128 | H56: 623.6517786 | I56: 1909310 | J56: 2016 | K56: 5590038
B57: 10290-7177 | C57: RI490 | D57: 10102.11429 | E57: 223.6297121 | F57: 2259132.91 | G57: 5051.057082 | H57: 623.6516335 | I57: 3150100 | J57: 2016 | K57: 5409233
B58: 10291-7171 | C58: RI050 | D58: 2080.469971 | E58: 124.4762499 | F58: 258969.1 | G58: 1040.234947 | H58: 623.6514182 | I58: 648744 | J58: 2016 | K58: 907713
B59: 10291-7173 | C59: RI050 | D59: 6313.566885 | E59: 107.2515065 | F59: 677139.56 | G59: 3156.78339 | H59: 623.6515962 | I59: 1968733 | J59: 2016 | K59: 2645873
B60: 10292-10315 | C60: RI400 | D60: 14090.76167 | E60: 160.5755177 | F60: 2262631.35 | G60: 7045.380693 | H60: 623.6516083 | I60: 4393863 | J60: 2016 | K60: 6656494
B61: 10292-7176 | C61: RI400 | D61: 10264.09048 | E61: 105.9717305 | F61: 1087703.43 | G61: 5132.045129 | H61: 623.6515696 | I61: 3200608 | J61: 2016 | K61: 4288311
B62: 10294-10290 | C62: RI490 | D62: 6123 | E62: 601.1314699 | F62: 3680727.99 | G62: 3061.500128 | H62: 623.6517786 | I62: 1909310 | J62: 2016 | K62: 5590038
B63: 10294-10304 | C63: RI490 | D63: 4610.7 | E63: 559.5099616 | F63: 2579732.58 | G63: 2305.350047 | H63: 623.6514936 | I63: 1437735 | J63: 2016 | K63: 4017468
B64: 10295-10327 | C64: SI604 | D64: 7425.665714 | E64: 467.5387829 | F64: 3471786.71 | G64: 3712.832991 | H64: 623.6515366 | I64: 2315514 | J64: 2016 | K64: 5787301
B65: 10295-10332 | C65: SI604 | D65: 6306.23 | E65: 323.2868909 | F65: 2038721.49 | G65: 3153.115084 | H65: 623.6515153 | I65: 1966445 | J65: 2016 | K65: 4005166
B66: 10304-10294 | C66: RI490 | D66: 4610.7 | E66: 559.5099616 | F66: 2579732.58 | G66: 2305.350047 | H66: 623.6514936 | I66: 1437735 | J66: 2016 | K66: 4017468
B67: 10304-7171 | C67: RI490 | D67: 7999.5 | E67: 419.5141359 | F67: 3355903.33 | G67: 3999.749854 | H67: 623.651751 | I67: 2494451 | J67: 2016 | K67: 5850354
B68: 10305-7150 | C68: QG450 | D68: 16163.41667 | E68: 65.01258932 | F68: 1050825.57 | G68: 8081.70859 | H68: 623.6516627 | I68: 5040171 | J68: 2016 | K68: 6090997
B69: 10305-7163 | C69: QG450 | D69: 19079.01667 | E69: 290.1191029 | F69: 5535187.2 | G69: 9539.508492 | H69: 771.9594784 | I69: 7364114 | J69: 2016 | K69: 12899301
B70: 10307-10815 | C70: QG890 | D70: 9016.377778 | E70: 486.3294028 | F70: 4384929.62 | G70: 4508.188975 | H70: 623.6517625 | I70: 2811540 | J70: 2016 | K70: 7196470
B71: 10307-7149 | C71: QG890 | D71: 6998.838462 | E71: 292.1115284 | F71: 2044441.4 | G71: 3499.419138 | H71: 623.6517873 | I71: 2182419 | J71: 2016 | K71: 4226860
B72: 10312-6038 | C72: QG045 | D72: 9772.7 | E72: 300.8601594 | F72: 2940216.08 | J72: 2016 | K72: 0
B73: 10315-10292 | C73: RI400 | D73: 14090.76167 | E73: 160.5755177 | F73: 2262631.35 | G73: 7045.380693 | H73: 623.6516083 | I73: 4393863 | J73: 2016 | K73: 6656494
B74: 10315-10334 | C74: RI400 | D74: 4935.12 | E74: 184.3304357 | F74: 909692.82 | G74: 2467.559926 | H74: 623.6517232 | I74: 1538898 | J74: 2016 | K74: 2448591
B75: 10315-14730 | C75: RI690 | D75: 13260.9067 | E75: 351.0945854 | F75: 4655832.54 | J75: 2016 | K75: 0
B76: 10318-14730 | C76: RI690 | D76: 6070.366667 | E76: 250.9222249 | F76: 1523189.91 | J76: 2016 | K76: 0
B77: 10318-7172 | C77: RI690 | D77: 5868.903571 | E77: 346.2931884 | F77: 2032361.33 | J77: 2016 | K77: 0
B78: 10320-10326 | C78: RI400 | D78: 13594.08 | E78: 172.0853747 | F78: =IFERROR(D78*E78,0) -> 2339342.35 | G78: 6797.040146 | H78: 1300.61112 | I78: =IFERROR(G78*H78,"") -> 8840306 | J78: 2016 | K78: =IFERROR(ROUND((F78+I78),0),0) -> 11179648
B79: 10320-7044 | C79: RI400 | D79: 14016.13 | E79: 201.8168203 | F79: 2828690.79 | G79: 7008.065161 | H79: 1300.611194 | I79: 9114768 | J79: 2016 | K79: 11943459
B80: 10321-10325 | C80: RI420 | D80: 5151.542857 | E80: 308.1379412 | F80: 1587385.81 | G80: 2575.771439 | H80: 623.6516081 | I80: 1606384 | J80: 2016 | K80: 3193770
B81: 10321-7044 | C81: RI420 | D81: 8598.45119 | E81: 212.1799159 | F81: 1824418.65 | G81: 4299.22574 | H81: 956.142396 | I81: 4110672 | J81: 2016 | K81: 5935091
B82: 10323-10329 | C82: SI428 | D82: 7260.733333 | E82: 209.0370408 | F82: 1517762.21 | G82: 3630.366644 | H82: 623.6516093 | I82: 2264084 | J82: 2016 | K82: 3781846
B83: 10323-14521 | C83: SI428 | D83: 1969.5 | E83: 128.8523635 | F83: 253774.73 | G83: 984.7500023 | H83: 623.6516868 | I83: 614141 | J83: 2016 | K83: 867916
B84: 10324-7046 | C84: RI065 | D84: 8310.381818 | E84: 353.7948923 | F84: 2940170.64 | G84: 4155.190897 | H84: 1300.611244 | I84: 5404288 | J84: 2016 | K84: 8344459
B85: 10324-7053 | C85: RI065 | D85: 7401.520455 | E85: 789.1461512 | F85: 5840881.38 | G85: 3700.760348 | H85: 1300.611103 | I85: 4813250 | J85: 2016 | K85: 10654131
B86: 10325-10321 | C86: RI420 | D86: 5151.542857 | E86: 308.1379412 | F86: 1587385.81 | G86: 2575.771439 | H86: 623.6516081 | I86: 1606384 | J86: 2016 | K86: 3193770
B87: 10325-6035 | C87: RI420 | D87: 7883.777778 | E87: 230.1722843 | F87: 1814627.14 | G87: 3941.88883 | H87: 893.7923295 | I87: 3523230 | J87: 2016 | K87: 5337857
B88: 10326-10320 | C88: RI400 | D88: 13594.08 | E88: 172.0853747 | F88: 2339342.35 | G88: 6797.040146 | H88: 1300.61112 | I88: 8840306 | J88: 2016 | K88: 11179648
B89: 10326-7045 | C89: RI400 | D89: 11867.74167 | E89: 135.3603225 | F89: 1606421.34 | G89: 5933.870766 | H89: 1300.611069 | I89: 7717658 | J89: 2016 | K89: 9324079
B90: 10327-10295 | C90: SI604 | D90: 7425.665714 | E90: 467.5387829 | F90: 3471786.71 | G90: 3712.832991 | H90: 623.6515366 | I90: 2315514 | J90: 2016 | K90: 5787301
B91: 10327-7177 | C91: SI604 | D91: 3783 | E91: 136.8186624 | F91: 517585 | G91: 1891.500027 | H91: 623.6515904 | I91: 1179637 | J91: 2016 | K91: 1697222
B92: 10328-7040 | C92: SI004 | D92: 5866.5 | E92: 627.6109759 | F92: 3681879.79 | G92: 2933.250054 | H92: 1300.611243 | I92: 3815018 | J92: 2016 | K92: 7496898
B93: 10328-7042 | C93: SI004 | D93: 7421.446667 | E93: 910.0337256 | F93: 6753766.76 | G93: 3710.72326 | H93: 1300.611137 | I93: 4826208 | J93: 2016 | K93: 11579975
B94: 10329-10323 | C94: SI428 | D94: 7260.733333 | E94: 209.0370408 | F94: 1517762.21 | G94: 3630.366644 | H94: 623.6516093 | I94: 2264084 | J94: 2016 | K94: 3781846
B95: 10329-7034 | C95: SI428 | D95: 7794.3375 | E95: 266.3728008 | F95: 2076199.51 | G95: 3897.168866 | H95: 623.651703 | I95: 2430476 | J95: 2016 | K95: 4506676
B96: 10330-7030 | C96: SI822 | D96: 6522.963636 | E96: 113.1005968 | F96: 737751.08 | G96: 3261.481837 | H96: 595.7647772 | I96: 1943076 | J96: 2016 | K96: 2680827
B97: 10330-7037 | C97: SI822 | D97: 6522.963636 | E97: 113.1005968 | F97: 737751.08 | G97: 3261.48172 | H97: 623.6515101 | I97: 2034028 | J97: 2016 | K97: 2771779
B98: 10331-7035 | C98: SI188 | D98: 4208.695 | E98: 151.9118896 | F98: 639350.81 | G98: 2104.34751 | H98: 623.6517466 | I98: 1312380 | J98: 2016 | K98: 1951731
B99: 10331-7036 | C99: SI188 | D99: 4573.434286 | E99: 488.2672824 | F99: 2233058.33 | G99: 2286.717214 | H99: 623.6516659 | I99: 1426115 | J99: 2016 | K99: 3659173
B100: 10332-10295 | C100: SI604 | D100: 6306.23 | E100: 323.2868909 | F100: 2038721.49 | G100: 3153.115084 | H100: 623.6515153 | I100: 1966445 | J100: 2016 | K100: 4005166
B101: 10332-14760 | C101: SI604 | D101: 7841.425 | E101: 289.989442 | F101: 2273930.46 | G101: 3920.712539 | H101: 623.6516898 | I101: 2445159 | J101: 2016 | K101: 4719089
B102: 10334-10315 | C102: RI400 | D102: 4935.12 | E102: 184.3304357 | F102: 909692.82 | G102: 2467.559926 | H102: 623.6517232 | I102: 1538898 | J102: 2016 | K102: 2448591
B103: 10334-7044 | C103: RI400 | D103: 8240.48 | E103: 371.041892 | F103: 3057563.29 | G103: 4120.240134 | H103: 1179.638526 | I103: 4860394 | J103: 2016 | K103: 7917957
B104: 10335-7181 | C104: SI188 | D104: 7939.9 | E104: 169.8157483 | F104: 1348320.06 | G104: 3969.950194 | H104: 623.6516528 | I104: 2475866 | J104: 2016 | K104: 3824186
B105: 10336-10344 | C105: SI604 | D105: 6368.725 | E105: 326.674025 | F105: 2080497.03 | G105: 3184.362581 | H105: 576.1611479 | I105: 1834706 | J105: 2016 | K105: 3915203
B106: 10336-7181 | C106: SI604 | D106: 8607 | E106: 354.9344313 | F106: 3054920.65 | G106: 4303.499877 | H106: 595.4453522 | I106: 2562499 | J106: 2016 | K106: 5617420
B107: 10338-10346 | C107: TH130 | D107: 23153.66381 | E107: 144.4137424 | F107: 3343707.24 | G107: 11576.83202 | H107: 393.1882221 | I107: 4551874 | J107: 2016 | K107: 7895581
B108: 10338-7028 | C108: TH130 | D108: 11910.13409 | E108: 424.8765053 | F108: 5060336.15 | G108: 5955.066998 | H108: 576.161108 | I108: 3431078 | J108: 2016 | K108: 8491414
B109: 10339-7182 | C109: TH090 | D109: 11691.01849 | E109: 767.2801739 | F109: 8970286.7 | G109: 5845.50929 | H109: 576.1610893 | I109: 3367955 | J109: 2016 | K109: 12338242
B110: 10339-7204 | C110: TH090 | D110: 11320.58706 | E110: 645.5887103 | F110: 7308443.2 | G110: 5660.293641 | H110: 576.1610981 | I110: 3261241 | J110: 2016 | K110: 10569684
B111: 10340-7195 | C111: TH130 | D111: 6118.699405 | E111: 184.8165591 | F111: 1130836.97 | G111: 3059.349725 | H111: 576.161001 | I111: 1762678 | J111: 2016 | K111: 2893515
B112: 10340-9582 | C112: TH130 | D112: 8519.3625 | E112: 309.8503415 | F112: 2639727.38 | G112: 4259.681274 | H112: 576.1611825 | I112: 2454263 | J112: 2016 | K112: 5093990
B113: 10341-10342 | C113: TH130 | D113: 8615.0275 | E113: 293.720222 | F113: 2530407.79 | G113: 4307.513834 | H113: 576.1611212 | I113: 2481822 | J113: 2016 | K113: 5012230
B114: 10341-7202 | C114: TH130 | D114: 4191.89 | E114: 246.675366 | F114: 1034036 | G114: 2095.945066 | H114: 576.161093 | I114: 1207602 | J114: 2016 | K114: 2241638
B115: 10342-10341 | C115: TH130 | D115: 8615.0275 | E115: 293.720222 | F115: 2530407.79 | G115: 4307.513834 | H115: 576.1611212 | I115: 2481822 | J115: 2016 | K115: 5012230
B116: 10342-7204 | C116: TH130 | D116: 10990.58974 | E116: 215.2836778 | F116: 2366094.58 | G116: 5495.294835 | H116: 576.1610787 | I116: 3166175 | J116: 2016 | K116: 5532270
B117: 10344-10336 | C117: SI604 | D117: 6368.725 | E117: 326.674025 | F117: 2080497.03 | G117: 3184.362581 | H117: 576.1611479 | I117: 1834706 | J117: 2016 | K117: 3915203
B118: 10344-14761 | C118: SI604 | D118: 4800.55 | E118: 296.1649915 | F118: 1421754.85 | G118: 2400.275086 | H118: 576.1610442 | I118: 1382945 | J118: 2016 | K118: 2804700
B119: 10346-10338 | C119: TH130 | D119: 23153.66381 | E119: 144.4137424 | F119: 3343707.24 | G119: 11576.83202 | H119: 393.1882221 | I119: 4551874 | J119: 2016 | K119: 7895581
B120: 10346-7204 | C120: TH130 | D120: 20716.47619 | E120: 580.3856549 | F120: 12023545.6 | G120: 10358.23819 | H120: 567.7473227 | I120: 5880862 | J120: 2016 | K120: 17904408
B121: 10347-7205 | C121: UH995 | D121: 7641.735714 | E121: 123.4572727 | F121: 943427.85 | G121: 3820.867944 | H121: 162.6944477 | I121: 621634 | J121: 2016 | K121: 1565062
B122: 10347-9395 | C122: UH995 | D122: 5456.517532 | E122: 158.697969 | F122: 865938.25 | G122: 2728.258731 | H122: 162.6946136 | I122: 443873 | J122: 2016 | K122: 1309811
B123: 10348-10349 | C123: TJ170 | D123: 16580.1 | E123: 140.8766835 | F123: 2335749.5 | G123: 8290.050348 | H123: 576.161157 | I123: 4776405 | J123: 2016 | K123: 7112155
B124: 10348-10365 | C124: TL195 | D124: 14300.30833 | E124: 275.4841811 | F124: 3939508.73 | G124: 7150.154325 | H124: 576.1611306 | I124: 4119641 | J124: 2016 | K124: 8059150
B125: 10348-10838 | C125: TJ170 | D125: 4564.02 | E125: 122.0767898 | F125: 557160.91 | G125: 2282.009973 | H125: 576.1609351 | I125: 1314805 | J125: 2016 | K125: 1871966
B126: 10348-14457 | C126: TJ250 | D126: 17458.6 | E126: 563.7150258 | F126: 9841675.15 | G126: 8729.299997 | H126: 576.1612044 | I126: 5029484 | J126: 2016 | K126: 14871159
B127: 10349-10348 | C127: TJ170 | D127: 16580.1 | E127: 140.8766835 | F127: 2335749.5 | G127: 8290.050348 | H127: 576.161157 | I127: 4776405 | J127: 2016 | K127: 7112155
B128: 10349-7026 | C128: TJ170 | D128: 18970.37333 | E128: 119.9372648 | F128: 2275254.69 | G128: 9485.186319 | H128: 576.161165 | I128: 5464996 | J128: 2016 | K128: 7740251
B129: 10350-10352 | C129: TJ860 | D129: 13425.09091 | E129: 356.0993353 | F129: 4780665.95 | G129: 6712.545603 | H129: 576.1611509 | I129: 3867508 | J129: 2016 | K129: 8648174
B130: 10350-14453 | C130: TJ860 | D130: 5098.6 | E130: 170.1766701 | F130: 867662.77 | G130: 2549.299962 | H130: 576.1613078 | I130: 1468808 | J130: 2016 | K130: 2336471
B131: 10351-10352 | C131: TJ860 | D131: 8096.529798 | E131: 874.3897974 | F131: 7079523.05 | G131: 4048.265054 | H131: 617.5964189 | I131: 2500194 | J131: 2016 | K131: 9579717
B132: 10351-14449 | C132: TJ860 | D132: 6625.438889 | E132: 412.6889578 | F132: 2734245.47 | G132: 3312.719371 | H132: 623.6516797 | I132: 2065983 | J132: 2016 | K132: 4800228
B133: 10352-10350 | C133: TJ860 | D133: 13425.09091 | E133: 356.0993353 | F133: 4780665.95 | G133: 6712.545603 | H133: 576.1611509 | I133: 3867508 | J133: 2016 | K133: 8648174
B134: 10352-10351 | C134: TJ860 | D134: 8096.529798 | E134: 874.3897974 | F134: 7079523.05 | G134: 4048.265054 | H134: 617.5964189 | I134: 2500194 | J134: 2016 | K134: 9579717
B135: 10352-14444 | C135: TJ250 | D135: 10919.00571 | E135: 652.7385029 | F135: 7127255.44 | G135: 5459.50284 | H135: 617.4613511 | I135: 3371032 | J135: 2016 | K135: 10498287
B136: 10352-14458 | C136: TJ250 | D136: 6488.7 | E136: 135.7272273 | F136: 880693.26 | G136: 3244.349971 | H136: 576.1610235 | I136: 1869268 | J136: 2016 | K136: 2749961
B137: 10353-14445 | C137: TK570 | D137: 7006.539683 | E137: 134.7650913 | F137: 944236.96 | G137: 3503.269927 | H137: 623.6516299 | I137: 2184820 | J137: 2016 | K137: 3129057
B138: 10353-9583 | C138: TK570 | D138: 7344.975 | E138: 65.27761497 | F138: 479462.45 | G138: 3672.487397 | H138: 623.6516977 | I138: 2290353 | J138: 2016 | K138: 2769815
B139: 10354-6991 | C139: RJ065 | D139: 10107.91667 | E139: 295.9467888 | F139: 2991405.48 | G139: 5053.958261 | H139: 623.6515692 | I139: 3151909 | J139: 2016 | K139: 6143314
B140: 10354-7034 | C140: RJ065 | D140: 35057.18 | E140: 82.76389202 | F140: 2901468.66 | G140: 17528.58945 | H140: 623.6516653 | I140: 10931734 | J140: 2016 | K140: 13833203
B141: 10355-7015 | C141: SJ805 | D141: 4579.3 | E141: 287.7264014 | F141: 1317585.51 | G141: 2289.65008 | H141: 623.651628 | I141: 1427944 | J141: 2016 | K141: 2745530
B142: 10355-7016 | C142: SJ805 | D142: 9706.309524 | E142: 502.9258987 | F142: =IFERROR(D142*E142,0) -> 4881554.44 | G142: 4853.154647 | H142: 623.6516699 | I142: =IFERROR(G142*H142,"") -> 3026678 | J142: 2016 | K142: =IFERROR(ROUND((F142+I142),0),0) -> 7908232
B143: 10357-10968 | C143: RJ115 | D143: 9224.114286 | E143: 491.4199759 | F143: 4532914.02 | G143: 4612.05729 | H143: 1300.611121 | I143: 5998493 | J143: 2016 | K143: 10531407
B144: 10357-6992 | C144: RJ115 | D144: 8329.585714 | E144: 477.8644073 | F144: 3980412.54 | G144: 4164.792767 | H144: 1239.737314 | I144: 5163249 | J144: 2016 | K144: 9143662
B145: 10358-6991 | C145: SJ805 | D145: 4542.666667 | E145: 557.4748305 | F145: 2532422.33 | G145: 2271.333409 | H145: 623.6517256 | I145: 1416521 | J145: 2016 | K145: 3948943
B146: 10358-6994 | C146: SJ805 | D146: 7032.946667 | E146: 230.5430251 | F146: 1621396.8 | G146: 3516.473306 | H146: 623.6515421 | I146: 2193054 | J146: 2016 | K146: 3814451
B147: 10361-10371 | C147: TL895 | D147: 6006.8 | E147: 225.2376939 | F147: 1352957.78 | G147: 3003.399986 | H147: 162.6946135 | I147: 488637 | J147: 2016 | K147: 1841595
B148: 10361-10372 | C148: TL715 | D148: 17198.91498 | E148: 315.1058027 | F148: 5419477.91 | G148: 8599.457415 | H148: 162.6944506 | I148: 1399084 | J148: 2016 | K148: 6818562
B149: 10361-14480 | C149: TL715 | D149: 6188.653019 | E149: 155.76655 | F149: 963985.13 | G149: 3094.326433 | H149: 162.6945349 | I149: 503430 | J149: 2016 | K149: 1467415
B150: 10362-10363 | C150: TL895 | D150: 12731.02597 | E150: 238.1752607 | F150: 3032215.43 | G150: 6365.512952 | H150: 576.1611087 | I150: 3667561 | J150: 2016 | K150: 6699776
B151: 10362-10373 | C151: TL195 | D151: 6989.078571 | E151: 889.1922328 | F151: 6214634.38 | G151: 3494.53936 | H151: 576.1612025 | I151: 2013418 | J151: 2016 | K151: 8228052
B152: 10362-10381 | C152: TL895 | D152: 6239.7 | E152: 77.27944933 | F152: 482200.58 | G152: 3119.849886 | H152: 576.1610544 | I152: 1797536 | J152: 2016 | K152: 2279737
B153: 10363-10362 | C153: TL895 | D153: 12731.02597 | E153: 238.1752607 | F153: 3032215.43 | G153: 6365.512952 | H153: 576.1611087 | I153: 3667561 | J153: 2016 | K153: 6699776
B154: 10363-14479 | C154: TL895 | D154: 8589.554545 | E154: 328.3869932 | F154: 2820697.99 | G154: 4294.777157 | H154: 576.1612092 | I154: 2474484 | J154: 2016 | K154: 5295182
B155: 10364-10381 | C155: TL895 | D155: 8111.8 | E155: 459.2615708 | F155: 3725438.01 | G155: 4055.900144 | H155: 576.1611275 | I155: 2336852 | J155: 2016 | K155: 6062290
B156: 10364-7026 | C156: TL895 | D156: 5644.3 | E156: 663.0030048 | F156: 3742187.86 | G156: 2822.149916 | H156: 576.1611 | I156: 1626013 | J156: 2016 | K156: 5368201
B157: 10365-10348 | C157: TL195 | D157: 14300.30833 | E157: 275.4841811 | F157: 3939508.73 | G157: 7150.154325 | H157: 576.1611306 | I157: 4119641 | J157: 2016 | K157: 8059150
B158: 10365-10373 | C158: TL195 | D158: 13828.525 | E158: 273.5793405 | F158: 3783198.75 | G158: 6914.26257 | H158: 576.1610815 | I158: 3983729 | J158: 2016 | K158: 7766928
B159: 10366-10245 | C159: TJ170 | D159: 14948.21786 | E159: 202.1541523 | F159: 3021844.31 | G159: 7474.108581 | H159: 576.1611506 | I159: 4306291 | J159: 2016 | K159: 7328135
B160: 10366-7026 | C160: TJ170 | D160: 16422.05714 | E160: 117.0295161 | F160: 1921865.4 | G160: 8211.028484 | H160: 576.161197 | I160: 4730876 | J160: 2016 | K160: 6652741
B161: 10368-10369 | C161: TL570 | D161: 27090.43333 | E161: 98.80600164 | F161: 2676697.4 | G161: 13545.21631 | H161: 576.16112 | I161: 7804227 | J161: 2016 | K161: 10480924
B162: 10368-10383 | C162: TL150 | D162: 9327.55 | E162: 117.0875042 | F162: 1092139.55 | G162: 4663.774967 | H162: 576.1611611 | I162: 2687086 | J162: 2016 | K162: 3779226
B163: 10368-7022 | C163: TL570 | D163: 19104.075 | E163: 232.1556757 | F163: 4435119.44 | G163: 9552.037197 | H163: 576.1611776 | I163: 5503513 | J163: 2016 | K163: 9938632
B164: 10369-10368 | C164: TL570 | D164: 27090.43333 | E164: 98.80600164 | F164: 2676697.4 | G164: 13545.21631 | H164: 576.16112 | I164: 7804227 | J164: 2016 | K164: 10480924
B165: 10369-9393 | C165: TL570 | D165: 19159.86667 | E165: 75.44827033 | F165: 1445578.8 | G165: 9579.933756 | H165: 576.1611866 | I165: 5519586 | J165: 2016 | K165: 6965165
B166: 10370-14476 | C166: TL105 | D166: 6034.723529 | E166: 726.0607034 | F166: 4381575.61 | J166: 2016 | K166: 0
B167: 10370-14480 | C167: TL715 | D167: 14293.48844 | E167: 240.5848379 | F167: 3438796.6 | G167: 7146.74413 | H167: 400.7655721 | I167: 2864169 | J167: 2016 | K167: 6302966
B168: 10370-8343 | C168: TL715 | D168: 6417.770706 | E168: 140.69402 | F168: 902941.96 | G168: 3208.885372 | H168: 576.1611232 | I168: 1848835 | J168: 2016 | K168: 2751777
B169: 10371-10361 | C169: TL895 | D169: 6006.8 | E169: 225.2376939 | F169: 1352957.78 | G169: 3003.399986 | H169: 162.6946135 | I169: 488637 | J169: 2016 | K169: 1841595
B170: 10371-14479 | C170: TL895 | D170: 7121.3 | E170: 190.3636541 | F170: 1355636.69 | G170: 3560.650085 | H170: 330.0290598 | I170: 1175118 | J170: 2016 | K170: 2530755
B171: 10372-10361 | C171: TL715 | D171: 17198.91498 | E171: 315.1058027 | F171: 5419477.91 | G171: 8599.457415 | H171: 162.6944506 | I171: 1399084 | J171: 2016 | K171: 6818562
B172: 10372-8342 | C172: TL715 | D172: 17828.81097 | E172: 345.5307267 | F172: 6160402.01 | G172: 8914.405559 | H172: 162.6945275 | I172: 1450325 | J172: 2016 | K172: 7610727
B173: 10373-10362 | C173: TL195 | D173: 6989.078571 | E173: 889.1922328 | F173: 6214634.38 | G173: 3494.53936 | H173: 576.1612025 | I173: 2013418 | J173: 2016 | K173: 8228052
B174: 10373-10365 | C174: TL195 | D174: 13828.525 | E174: 273.5793405 | F174: 3783198.75 | G174: 6914.26257 | H174: 576.1610815 | I174: 3983729 | J174: 2016 | K174: 7766928
B175: 10374-14437 | C175: TK170 | D175: 8289.507143 | E175: 453.5721298 | F175: 3759889.41 | G175: 4144.753452 | H175: 576.1611704 | I175: 2388046 | J175: 2016 | K175: 6147935
B176: 10374-7022 | C176: TK170 | D176: 19063.79524 | E176: 90.1874437 | F176: 1719314.96 | G176: 9531.897736 | H176: 576.1611331 | I176: 5491909 | J176: 2016 | K176: 7211224
B177: 10375-10380 | C177: TK510 | D177: 13876.63333 | E177: 116.83204 | F177: 1621235.38 | G177: 6938.316508 | H177: 576.1610897 | I177: 3997588 | J177: 2016 | K177: 5618823
B178: 10375-10382 | C178: TL075 | D178: 6562.9 | E178: 553.0003474 | F178: 3629285.98 | G178: 3281.449959 | H178: 576.1611555 | I178: 1890644 | J178: 2016 | K178: 5519930
B179: 10375-9369 | C179: TK510 | D179: 12366.24048 | E179: 286.9430629 | F179: 3548406.92 | G179: 6183.120124 | H179: 576.1612145 | I179: 3562474 | J179: 2016 | K179: 7110881
B180: 10376-10377 | C180: TK510 | D180: 11620.025 | E180: 121.96742 | F180: 1417264.47 | G180: 5810.012635 | H180: 576.1612255 | I180: 3347504 | J180: 2016 | K180: 4764768
B181: 10376-9112 | C181: TL495 | D181: 10660.13333 | E181: 51.7526876 | F181: 551690.55 | G181: 5330.066732 | H181: 507.8741292 | I181: 2707003 | J181: 2016 | K181: 3258694
B182: 10377-10376 | C182: TK510 | D182: 11620.025 | E182: 121.96742 | F182: 1417264.47 | G182: 5810.012635 | H182: 576.1612255 | I182: 3347504 | J182: 2016 | K182: 4764768
B183: 10377-9369 | C183: TK510 | D183: 12213.325 | E183: 110.2510946 | F183: 1346532.45 | G183: 6106.662524 | H183: 576.1611987 | I183: 3518422 | J183: 2016 | K183: 4864954
B184: 10378-10382 | C184: TL075 | D184: 5649.6 | E184: 252.4667976 | F184: 1426336.42 | G184: 2824.800109 | H184: 576.1611219 | I184: 1627540 | J184: 2016 | K184: 3053876
B185: 10378-14435 | C185: TL075 | D185: 6153.1 | E185: 162.7494482 | F185: 1001413.63 | G185: 3076.549996 | H185: 576.1612853 | I185: 1772589 | J185: 2016 | K185: 2774003
B186: 10379-14435 | C186: TL075 | D186: 6391.7 | E186: 112.7630505 | F186: 720747.59 | G186: 3195.849903 | H186: 576.1612891 | I186: 1841325 | J186: 2016 | K186: 2562073
B187: 10379-14436 | C187: TL075 | D187: 6225.8 | E187: 178.8984725 | F187: 1113786.11 | G187: 3112.899837 | H187: 576.1611661 | I187: 1793532 | J187: 2016 | K187: 2907318
B188: 10380-10375 | C188: TK510 | D188: 13876.63333 | E188: 116.83204 | F188: 1621235.38 | G188: 6938.316508 | H188: 576.1610897 | I188: 3997588 | J188: 2016 | K188: 5618823
B189: 10380-7020 | C189: TK510 | D189: 6817.85 | E189: 759.7529485 | F189: 5179881.64 | G189: 3408.924941 | H189: 592.7733919 | I189: 2020720 | J189: 2016 | K189: 7200602
B190: 10381-10362 | C190: TL895 | D190: 6239.7 | E190: 77.27944933 | F190: 482200.58 | G190: 3119.849886 | H190: 576.1610544 | I190: 1797536 | J190: 2016 | K190: 2279737
B191: 10381-10364 | C191: TL895 | D191: 8111.8 | E191: 459.2615708 | F191: 3725438.01 | G191: 4055.900144 | H191: 576.1611275 | I191: 2336852 | J191: 2016 | K191: 6062290
B192: 10381-25672 | C192: TL150 | D192: 9772.1 | E192: 106.1134055 | F192: 1036950.81 | G192: 4886.050062 | H192: 576.1611044 | I192: 2815152 | J192: 2016 | K192: 3852103
B193: 10382-10375 | C193: TL075 | D193: 6562.9 | E193: 553.0003474 | F193: 3629285.98 | G193: 3281.449959 | H193: 576.1611555 | I193: 1890644 | J193: 2016 | K193: 5519930
B194: 10382-10378 | C194: TL075 | D194: 5649.6 | E194: 252.4667976 | F194: 1426336.42 | G194: 2824.800109 | H194: 576.1611219 | I194: 1627540 | J194: 2016 | K194: 3053876
B195: 10383-10228 | C195: TL499 | D195: 6390.9 | E195: 86.7482968 | F195: 554399.69 | G195: 3195.449919 | H195: 576.1611187 | I195: 1841094 | J195: 2016 | K195: 2395494
B196: 10383-10368 | C196: TL150 | D196: 9327.55 | E196: 117.0875042 | F196: 1092139.55 | G196: 4663.774967 | H196: 576.1611611 | I196: 2687086 | J196: 2016 | K196: 3779226
B197: 10383-25673 | C197: TL150 | D197: 5905.583333 | E197: 265.1513494 | F197: 1565873.39 | G197: 2952.791565 | H197: 576.1612232 | I197: 1701284 | J197: 2016 | K197: 3267157
B198: 10384-10400 | C198: SJ595 | D198: 14936.85833 | E198: 107.8160504 | F198: 1610433.07 | G198: 7468.429255 | H198: 623.6516195 | I198: 4657698 | J198: 2016 | K198: 6268131
B199: 10384-7012 | C199: TK570 | D199: 11627.2 | E199: 83.11232111 | F199: 966363.58 | G199: 5813.600035 | H199: 623.6516063 | I199: 3625661 | J199: 2016 | K199: 4592025
B200: 10388-14412 | C200: TK470 | D200: 12890.37143 | E200: 354.1254699 | F200: 4564808.84 | G200: 6445.185505 | H200: 623.651716 | I200: 4019551 | J200: 2016 | K200: 8584360
B201: 10388-7010 | C201: TK470 | D201: 4671.1 | E201: 136.4105671 | F201: 637187.4 | G201: 2335.550006 | H201: 623.6518149 | I201: 1456570 | J201: 2016 | K201: 2093757
B202: 10393-10405 | C202: TK730 | D202: 6526.25 | E202: 254.1247163 | F202: 1658481.43 | G202: 3263.124911 | H202: 623.651578 | I202: 2035053 | J202: 2016 | K202: 3693534
B203: 10393-10407 | C203: TK010 | D203: 10980.16294 | E203: 492.5875098 | F203: 5408691.12 | J203: 2016 | K203: 0
B204: 10393-10464 | C204: TK730 | D204: 5060.6 | E204: 293.1722207 | F204: 1483627.34 | G204: 2530.299929 | H204: 623.6517584 | I204: 1578026 | J204: 2016 | K204: 3061653
... 8807 more rows

Sheet Future Trunk Assets - Transport
B1: ='Navigation Pane'!B2 -> Brisbane City Council
B2: Transport
B4: Future Trunk Assets
B6: Data Refernces | E6: 1. Indirect embellishment costs are on costs or overheads applied to the direct embellishment cost, to deliver the project. Indirect embellishment costs equate to 17% of the direct embellishment cost. 2. Project costs are on costs to undertake detailed design, survey, geotechnical investigations, project management, and supervision of construction works and obtain certification from a Registered Professional Engineer of Queensland. Project costs equate to 13% of the direct and indirect embellishment costs. 3. Contingency costs are based on the project delivery date, and applied to the direct construction cost, indirect construction cost and project cost. Contingencies equate to 7.5% for projects with a delivery date up to 2021 and 15% for projects with a delivery date up to 2026. 4. Total embellishment cost is the sum of direct embellishment cost, indirect embellishment cost, project cost and construction contingency cost. 5. Grants and subsidies only apply to Open Level Crossing projects. 6. All items and costs are allocated to a service catchment based on outputs from the BSTM Transport Model.
H11: Asset Data
B12: Basic Asset Data | G12: Asset Attributes | M12: Basic Asset Valuation | Z12: Refined Asset Value
B13: Asset ID | C13: LGIP ID | D13: Project Type | E13: Service Catchment | F13: Description | G13: Unit Rate Type (*) | H13: Length/unit (*) | I13: Hiercahy/name | J13: Size of land (sqm) (*) | K13: Unit Cost | L13: Land Value | M13: Unit Rate | N13: Baseline Valuation | O13: Valuation Year | P13: Base Est Escalation | Q13: Site/Condition | R13: Utility Rate | S13: Utility Cost | T13: Construction Contingency Rate | U13: Construction Contingency Cost ($) | V13: Indirect costs - indirect and overhead costs to deliver the project (17%of construction cost) ($) | W13: Project owners costs – master planning, survey, geotechnical, design, project management, environments (13% of indirect and construction costs) ($) | X13: Grants and Subsidies ($) | Y13: Total construction cost | Z13: Year provided (*) | AA13: Escalation | AB13: Discounting | AC13: Gross Cost of the trunk infrastructure | AD13: Gross Cost (escalated) | AE13: Present Day Value
B15: Councils ID (from GIS, FAR, AMA etc.) | C15: ID from the LGIP drawings | N15: May be calculated from unit rates OR unique values can be direct entered | AD15: Gross cost (used for CF forecasts) | AE15: Adjusted Current Day Value
B16: R293 | C16: ACR-RI-001 | D16: Road Intersection Project | E16: 7 | F16: Learoyd Road/Bradman Street Intersection | G16: 6 Lane Road / 4 Lane Road | H16: 0 | I16: Arterial / Suburban | J16: 600 | K16: =IFERROR(L16/J16,0) -> 405.25 | L16: 243150 | M16: =IFERROR(N16/H16,"") ->  | N16: 896822 | O16: 2016 | P16: =IFERROR(('General Input Sheet'!$G$38/(VLOOKUP(O16,Histindex,3,FALSE))),1) -> 1 | Q16: Existing unsignallised Int | R16: =IFERROR(_xlfn.IFS(AND(Q16<>"New",D16<>"Road Bridge"),30%,D16="Road Bridge",10%),0) -> 0.3 | S16: =ROUND(N16*R16,0) -> 269047 | T16: =IF(Z16="","",IF(Z16<=YEAR+5,0.075,IF(AND(Z16>YEAR+5,Z16<=YEAR+10),0.15,IF(AND(Z16>YEAR+10,Z16<=YEAR+20),0.2,IF(Z16>YEAR+20,0.25,""))))) -> 0.15 | U16: =ROUND((N16+V16+W16)*T16,0) -> 177853 | V16: =ROUND(N16*17%,0) -> 152460 | W16: =ROUND((N16+V16)*13%,0) -> 136407 | X16: 0 | Y16: =ROUND(N16+S16+U16+V16+W16,0) -> 1632589 | Z16: 2024 | AA16: =(1+PPI)^('Future Trunk Assets - Transport'!Z16-YEAR) -> 1.159916788 | AB16: =IF(Z16<YEAR,1,IF('General Input Sheet'!$E$32="WACC1",1/(1+WACC1)^(Z16-YEAR), IF('General Input Sheet'!$E$32="WACC2",1/(1+WACC2)^(Z16-YEAR),"Check WACC Option in General Input Sheet"))) -> 0.6316903693 | AC16: =ROUND(Y16+L16-X16,0) -> 1875739 | AD16: =IFERROR(ROUND((Y16*AA16)+((1+Landind)^(Z16-YEAR)*L16),0),0) -> 2189922 | AE16: =IFERROR(ROUND((AD16*AB16),0),0) -> 1383353
B17: R292 | C17: ACR-RI-002 | D17: Road Intersection Project | E17: 7 | F17: Learoyd Road/Paradise Road Intersection | G17: 6 Lane Road / 4 Lane Road | H17: 0 | I17: Arterial / Suburban | J17: 300 | K17: =IFERROR(L17/J17,0) -> 296 | L17: 88800 | N17: 597881 | O17: 2016 | P17: =IFERROR(('General Input Sheet'!$G$38/(VLOOKUP(O17,Histindex,3,FALSE))),1) -> 1 | Q17: Existing signallised Int | R17: =IFERROR(_xlfn.IFS(AND(Q17<>"New",D17<>"Road Bridge"),30%,D17="Road Bridge",10%),0) -> 0.3 | S17: 179364 | T17: 0.15 | U17: 118569 | V17: 101640 | W17: 90938 | X17: 0 | Y17: 1088392 | Z17: 2024 | AA17: =(1+PPI)^('Future Trunk Assets - Transport'!Z17-YEAR) -> 1.159916788 | AB17: =IF(Z17<YEAR,1,IF('General Input Sheet'!$E$32="WACC1",1/(1+WACC1)^(Z17-YEAR), IF('General Input Sheet'!$E$32="WACC2",1/(1+WACC2)^(Z17-YEAR),"Check WACC Option in General Input Sheet"))) -> 0.6316903693 | AC17: 1177192 | AD17: 1370638 | AE17: 865819
B18: R272 | C18: ACR-RI-003 | D18: Road Intersection Project | E18: 7 | F18: Beatty Road/Mortimer Road Intersection | G18: 4 Lane Road / 2 Lane Road | H18: 0 | I18: Suburban / District | J18: 600 | K18: 645.5 | L18: 387300 | N18: 474634 | O18: 2016 | P18: =IFERROR(('General Input Sheet'!$G$38/(VLOOKUP(O18,Histindex,3,FALSE))),1) -> 1 | Q18: Existing signallised Int | R18: =IFERROR(_xlfn.IFS(AND(Q18<>"New",D18<>"Road Bridge"),30%,D18="Road Bridge",10%),0) -> 0.3 | S18: 142390 | T18: 0.15 | U18: 94127 | V18: 80688 | W18: 72192 | X18: 0 | Y18: 864031 | Z18: 2024 | AA18: =(1+PPI)^('Future Trunk Assets - Transport'!Z18-YEAR) -> 1.159916788 | AB18: =IF(Z18<YEAR,1,IF('General Input Sheet'!$E$32="WACC1",1/(1+WACC1)^(Z18-YEAR), IF('General Input Sheet'!$E$32="WACC2",1/(1+WACC2)^(Z18-YEAR),"Check WACC Option in General Input Sheet"))) -> 0.6316903693 | AC18: 1251331 | AD18: 1474092 | AE18: 931170
B19: R272 | C19: AFD-RC-002 | D19: Road Corridor Project | E19: 7 | F19: Beatty Road (Granard Road to Barton Street) | G19: 4 Lane Road | H19: 435 | I19: Suburban | J19: 2103 | K19: 646.0404184 | L19: 1358623 | M19: 2465.590805 | N19: 1072532 | O19: 2016 | P19: =IFERROR(('General Input Sheet'!$G$38/(VLOOKUP(O19,Histindex,3,FALSE))),1) -> 1 | Q19: Upgrade | R19: =IFERROR(_xlfn.IFS(AND(Q19<>"New",D19<>"Road Bridge"),30%,D19="Road Bridge",10%),0) -> 0.3 | S19: 321760 | T19: 0.15 | U19: 212699 | V19: 182330 | W19: 163132 | X19: 0 | Y19: 1952453 | Z19: 2024 | AA19: =(1+PPI)^('Future Trunk Assets - Transport'!Z19-YEAR) -> 1.159916788 | AB19: =IF(Z19<YEAR,1,IF('General Input Sheet'!$E$32="WACC1",1/(1+WACC1)^(Z19-YEAR), IF('General Input Sheet'!$E$32="WACC2",1/(1+WACC2)^(Z19-YEAR),"Check WACC Option in General Input Sheet"))) -> 0.6316903693 | AC19: 3311076 | AD19: 3920033 | AE19: 2476247
B20: R272 | C20: AFD-RC-004 | D20: Road Corridor Project | E20: 7 | F20: Beatty Road (Mortimer Road to Kerry Road) | G20: 4 Lane Road | H20: 701 | I20: Suburban | J20: 4687 | K20: 377.81246 | L20: 1770807 | M20: 2463.687589 | N20: 1727045 | O20: 2016 | P20: =IFERROR(('General Input Sheet'!$G$38/(VLOOKUP(O20,Histindex,3,FALSE))),1) -> 1 | Q20: Upgrade | R20: =IFERROR(_xlfn.IFS(AND(Q20<>"New",D20<>"Road Bridge"),30%,D20="Road Bridge",10%),0) -> 0.3 | S20: 518114 | T20: 0.15 | U20: 342499 | V20: 293598 | W20: 262684 | X20: 0 | Y20: 3143940 | Z20: 2024 | AA20: =(1+PPI)^('Future Trunk Assets - Transport'!Z20-YEAR) -> 1.159916788 | AB20: =IF(Z20<YEAR,1,IF('General Input Sheet'!$E$32="WACC1",1/(1+WACC1)^(Z20-YEAR), IF('General Input Sheet'!$E$32="WACC2",1/(1+WACC2)^(Z20-YEAR),"Check WACC Option in General Input Sheet"))) -> 0.6316903693 | AC20: 4914747 | AD20: 5804265 | AE20: 3666498
B21: R272 | C21: AFD-RC-005 | D21: Road Corridor Project | E21: 7 | F21: Beatty Road (Kerry Road to Boundary Road) | G21: 4 Lane Road | H21: 460 | I21: Suburban | J21: 2835 | K21: 387.437037 | L21: 1098384 | M21: 2465.213043 | N21: 1133998 | O21: 2016 | P21: =IFERROR(('General Input Sheet'!$G$38/(VLOOKUP(O21,Histindex,3,FALSE))),1) -> 1 | Q21: Upgrade | R21: =IFERROR(_xlfn.IFS(AND(Q21<>"New",D21<>"Road Bridge"),30%,D21="Road Bridge",10%),0) -> 0.3 | S21: 340199 | T21: 0.15 | U21: 224889 | V21: 192780 | W21: 172481 | X21: 0 | Y21: 2064347 | Z21: 2024 | AA21: =(1+PPI)^('Future Trunk Assets - Transport'!Z21-YEAR) -> 1.159916788 | AB21: =IF(Z21<YEAR,1,IF('General Input Sheet'!$E$32="WACC1",1/(1+WACC1)^(Z21-YEAR), IF('General Input Sheet'!$E$32="WACC2",1/(1+WACC2)^(Z21-YEAR),"Check WACC Option in General Input Sheet"))) -> 0.6316903693 | AC21: 3162731 | AD21: 3732745 | AE21: 2357939
B22: R272 | C22: AFD-RC-006 | D22: Road Corridor Project | E22: 7 | F22: Beatty Road (Barton Street to Boundary Road) | G22: 4 Lane Road | H22: 512 | I22: Suburban | J22: 1885 | K22: 389.2785146 | L22: 733790 | M22: 2462.986328 | N22: 1261049 | O22: 2016 | P22: =IFERROR(('General Input Sheet'!$G$38/(VLOOKUP(O22,Histindex,3,FALSE))),1) -> 1 | Q22: Upgrade | R22: =IFERROR(_xlfn.IFS(AND(Q22<>"New",D22<>"Road Bridge"),30%,D22="Road Bridge",10%),0) -> 0.3 | S22: 378315 | T22: 0.15 | U22: 250085 | V22: 214378 | W22: 191806 | X22: 0 | Y22: 2295633 | Z22: 2024 | AA22: =(1+PPI)^('Future Trunk Assets - Transport'!Z22-YEAR) -> 1.159916788 | AB22: =IF(Z22<YEAR,1,IF('General Input Sheet'!$E$32="WACC1",1/(1+WACC1)^(Z22-YEAR), IF('General Input Sheet'!$E$32="WACC2",1/(1+WACC2)^(Z22-YEAR),"Check WACC Option in General Input Sheet"))) -> 0.6316903693 | AC22: 3029423 | AD22: 3556795 | AE22: 2246793
B23: R272 | C23: AFD-RI-001 | D23: Road Intersection Project | E23: 7 | F23: Beatty Road/Boundary Road Intersection | G23: 4 Lane Road / 4 Lane Road | H23: 0 | I23: Suburban / Suburban | J23: 150 | K23: 890 | L23: 133500 | N23: 476691 | O23: 2016 | P23: =IFERROR(('General Input Sheet'!$G$38/(VLOOKUP(O23,Histindex,3,FALSE))),1) -> 1 | Q23: Existing signallised Int | R23: =IFERROR(_xlfn.IFS(AND(Q23<>"New",D23<>"Road Bridge"),30%,D23="Road Bridge",10%),0) -> 0.3 | S23: 143007 | T23: 0.075 | U23: 47267 | V23: 81037 | W23: 72505 | X23: 0 | Y23: 820507 | Z23: 2019 | AA23: =(1+PPI)^('Future Trunk Assets - Transport'!Z23-YEAR) -> 1.05720708 | AB23: =IF(Z23<YEAR,1,IF('General Input Sheet'!$E$32="WACC1",1/(1+WACC1)^(Z23-YEAR), IF('General Input Sheet'!$E$32="WACC2",1/(1+WACC2)^(Z23-YEAR),"Check WACC Option in General Input Sheet"))) -> 0.8417615727 | AC23: 954007 | AD23: 1011211 | AE23: 851199
B24: R272 | C24: AFD-RI-002 | D24: Road Intersection Project | E24: 7 | F24: Beatty Road/Kerry Road Intersection | G24: 4 Lane Road / 2 Lane Road | H24: 0 | I24: Suburban / District | J24: 150 | K24: 475 | L24: 71250 | N24: 711951 | O24: 2016 | P24: =IFERROR(('General Input Sheet'!$G$38/(VLOOKUP(O24,Histindex,3,FALSE))),1) -> 1 | Q24: Existing unsignallised Int | R24: =IFERROR(_xlfn.IFS(AND(Q24<>"New",D24<>"Road Bridge"),30%,D24="Road Bridge",10%),0) -> 0.3 | S24: 213585 | T24: 0.075 | U24: 70595 | V24: 121032 | W24: 108288 | X24: 0 | Y24: 1225451 | Z24: 2019 | AA24: =(1+PPI)^('Future Trunk Assets - Transport'!Z24-YEAR) -> 1.05720708 | AB24: =IF(Z24<YEAR,1,IF('General Input Sheet'!$E$32="WACC1",1/(1+WACC1)^(Z24-YEAR), IF('General Input Sheet'!$E$32="WACC2",1/(1+WACC2)^(Z24-YEAR),"Check WACC Option in General Input Sheet"))) -> 0.8417615727 | AC24: 1296701 | AD24: 1372284 | AE24: 1155136
B25: R272 | C25: AFD-RI-003 | D25: Road Intersection Project | E25: 7 | F25: Beatty Road/Barton Street Intersection | G25: 4 Lane Road / 4 Lane Road | H25: 0 | I25: Suburban / Suburban | J25: 300 | K25: 682.5 | L25: 204750 | N25: 544790 | O25: 2016 | P25: =IFERROR(('General Input Sheet'!$G$38/(VLOOKUP(O25,Histindex,3,FALSE))),1) -> 1 | Q25: Existing signallised Int | R25: =IFERROR(_xlfn.IFS(AND(Q25<>"New",D25<>"Road Bridge"),30%,D25="Road Bridge",10%),0) -> 0.3 | S25: 163437 | T25: 0.15 | U25: 108040 | V25: 92614 | W25: 82863 | X25: 0 | Y25: 991744 | Z25: 2024 | AA25: =(1+PPI)^('Future Trunk Assets - Transport'!Z25-YEAR) -> 1.159916788 | AB25: =IF(Z25<YEAR,1,IF('General Input Sheet'!$E$32="WACC1",1/(1+WACC1)^(Z25-YEAR), IF('General Input Sheet'!$E$32="WACC2",1/(1+WACC2)^(Z25-YEAR),"Check WACC Option in General Input Sheet"))) -> 0.6316903693 | AC25: 1196494 | AD25: 1399809 | AE25: 884246
B26: R293 | C26: AGR-RC-002 | D26: Road Corridor Project | E26: 7 | F26: Delathin Road (Range Drive to Delathin Road) | G26: 2 Lane Road | H26: 375 | I26: District | J26: 26 | K26: 40.42307692 | L26: 1051 | M26: 1356.768 | N26: 508788 | O26: 2016 | P26: =IFERROR(('General Input Sheet'!$G$38/(VLOOKUP(O26,Histindex,3,FALSE))),1) -> 1 | Q26: Upgrade | R26: =IFERROR(_xlfn.IFS(AND(Q26<>"New",D26<>"Road Bridge"),30%,D26="Road Bridge",10%),0) -> 0.3 | S26: 152636 | T26: 0.15 | U26: 100900 | V26: 86494 | W26: 77387 | X26: 0 | Y26: 926205 | Z26: 2024 | AA26: =(1+PPI)^('Future Trunk Assets - Transport'!Z26-YEAR) -> 1.159916788 | AB26: =IF(Z26<YEAR,1,IF('General Input Sheet'!$E$32="WACC1",1/(1+WACC1)^(Z26-YEAR), IF('General Input Sheet'!$E$32="WACC2",1/(1+WACC2)^(Z26-YEAR),"Check WACC Option in General Input Sheet"))) -> 0.6316903693 | AC26: 927256 | AD26: 1075601 | AE26: 679447
B27: R293 | C27: AGR-RC-003 | D27: Road Corridor Project | E27: 7 | F27: Learoyd Road (McCotter Street to Bradman Street) | G27: 6 Lane Road | H27: 150 | I27: Arterial | J27: 2 | K27: 0 | L27: 0 | M27: 3006.893333 | N27: 451034 | O27: 2016 | P27: =IFERROR(('General Input Sheet'!$G$38/(VLOOKUP(O27,Histindex,3,FALSE))),1) -> 1 | Q27: Upgrade | R27: =IFERROR(_xlfn.IFS(AND(Q27<>"New",D27<>"Road Bridge"),30%,D27="Road Bridge",10%),0) -> 0.3 | S27: 135310 | T27: 0.15 | U27: 89447 | V27: 76676 | W27: 68602 | X27: 0 | Y27: 821069 | Z27: 2024 | AA27: =(1+PPI)^('Future Trunk Assets - Transport'!Z27-YEAR) -> 1.159916788 | AB27: =IF(Z27<YEAR,1,IF('General Input Sheet'!$E$32="WACC1",1/(1+WACC1)^(Z27-YEAR), IF('General Input Sheet'!$E$32="WACC2",1/(1+WACC2)^(Z27-YEAR),"Check WACC Option in General Input Sheet"))) -> 0.6316903693 | AC27: 821069 | AD27: 952372 | AE27: 601604
B28: R293 | C28: AGR-RC-004 | D28: Road Corridor Project | E28: 7 | F28: Delathin Road (Learoyd Road to Range Drive) | G28: 2 Lane Road | H28: 213 | I28: District | J28: 1234 | K28: 142.1685575 | L28: 175436 | M28: 2813.173709 | N28: 599206 | O28: 2016 | P28: =IFERROR(('General Input Sheet'!$G$38/(VLOOKUP(O28,Histindex,3,FALSE))),1) -> 1 | Q28: New | R28: =IFERROR(_xlfn.IFS(AND(Q28<>"New",D28<>"Road Bridge"),30%,D28="Road Bridge",10%),0) -> 0 | S28: 0 | T28: 0.15 | U28: 118832 | V28: 101865 | W28: 91139 | X28: 0 | Y28: 911042 | Z28: 2024 | AA28: =(1+PPI)^('Future Trunk Assets - Transport'!Z28-YEAR) -> 1.159916788 | AB28: =IF(Z28<YEAR,1,IF('General Input Sheet'!$E$32="WACC1",1/(1+WACC1)^(Z28-YEAR), IF('General Input Sheet'!$E$32="WACC2",1/(1+WACC2)^(Z28-YEAR),"Check WACC Option in General Input Sheet"))) -> 0.6316903693 | AC28: 1086478 | AD28: 1270485 | AE28: 802553
B29: R153 | C29: ALB-RC-001 | D29: Road Corridor Project | E29: 16 | F29: Kingsford Smith Drive (Amy Street to Hunt Street) | G29: 6 Lane Road | H29: 188 | I29: Arterial | J29: 0 | K29: 0 | L29: 124 | M29: 3006.489362 | N29: 565220 | O29: 2016 | P29: =IFERROR(('General Input Sheet'!$G$38/(VLOOKUP(O29,Histindex,3,FALSE))),1) -> 1 | Q29: Upgrade | R29: =IFERROR(_xlfn.IFS(AND(Q29<>"New",D29<>"Road Bridge"),30%,D29="Road Bridge",10%),0) -> 0.3 | S29: 169566 | T29: 0.075 | U29: 56046 | V29: 96087 | W29: 85970 | X29: 0 | Y29: 972889 | Z29: 2019 | AA29: =(1+PPI)^('Future Trunk Assets - Transport'!Z29-YEAR) -> 1.05720708 | AB29: =IF(Z29<YEAR,1,IF('General Input Sheet'!$E$32="WACC1",1/(1+WACC1)^(Z29-YEAR), IF('General Input Sheet'!$E$32="WACC2",1/(1+WACC2)^(Z29-YEAR),"Check WACC Option in General Input Sheet"))) -> 0.8417615727 | AC29: 973013 | AD29: 1028679 | AE29: 865902
B30: R153 | C30: ALB-RC-004 | D30: Road Corridor Project | E30: 16 | F30: Abbotsford Road (Crosby Road to Collingwood Street) | G30: 6 Lane Road | H30: 66 | I30: Arterial | J30: 11 | K30: 816.5454545 | L30: 8982 | M30: 3688.348485 | N30: 243431 | O30: 2016 | P30: =IFERROR(('General Input Sheet'!$G$38/(VLOOKUP(O30,Histindex,3,FALSE))),1) -> 1 | Q30: Upgrade | R30: =IFERROR(_xlfn.IFS(AND(Q30<>"New",D30<>"Road Bridge"),30%,D30="Road Bridge",10%),0) -> 0.3 | S30: 73029 | T30: 0.075 | U30: 24138 | V30: 41383 | W30: 37026 | X30: 0 | Y30: 419007 | Z30: 2019 | AA30: =(1+PPI)^('Future Trunk Assets - Transport'!Z30-YEAR) -> 1.05720708 | AB30: =IF(Z30<YEAR,1,IF('General Input Sheet'!$E$32="WACC1",1/(1+WACC1)^(Z30-YEAR), IF('General Input Sheet'!$E$32="WACC2",1/(1+WACC2)^(Z30-YEAR),"Check WACC Option in General Input Sheet"))) -> 0.8417615727 | AC30: 427989 | AD30: 452650 | AE30: 381023
B31: R153 | C31: ALB-RC-007 | D31: Road Corridor Project | E31: 16 | F31: Hudson Road (Bimbil Street to Albion Overpass) | G31: 4 Lane Road | H31: 225 | I31: Suburban | J31: 1721 | K31: 652.1167926 | L31: 1122293 | M31: 2737.186667 | N31: 615867 | O31: 2016 | P31: =IFERROR(('General Input Sheet'!$G$38/(VLOOKUP(O31,Histindex,3,FALSE))),1) -> 1 | Q31: Upgrade | R31: =IFERROR(_xlfn.IFS(AND(Q31<>"New",D31<>"Road Bridge"),30%,D31="Road Bridge",10%),0) -> 0.3 | S31: 184760 | T31: 0.075 | U31: 61068 | V31: 104697 | W31: 93673 | X31: 0 | Y31: 1060065 | Z31: 2019 | AA31: =(1+PPI)^('Future Trunk Assets - Transport'!Z31-YEAR) -> 1.05720708 | AB31: =IF(Z31<YEAR,1,IF('General Input Sheet'!$E$32="WACC1",1/(1+WACC1)^(Z31-YEAR), IF('General Input Sheet'!$E$32="WACC2",1/(1+WACC2)^(Z31-YEAR),"Check WACC Option in General Input Sheet"))) -> 0.8417615727 | AC31: 2182358 | AD31: 2329295 | AE31: 1960711
B32: R153 | C32: ALB-RC-009 | D32: Road Corridor Project | E32: 16 | F32: Hudson Road (Albion Overpass to Birkbeck Street) | G32: 4 Lane Road | H32: 262 | I32: Suburban | J32: 2222 | K32: 1509.030603 | L32: 3353066 | M32: 2988.545802 | N32: 782999 | O32: 2016 | P32: =IFERROR(('General Input Sheet'!$G$38/(VLOOKUP(O32,Histindex,3,FALSE))),1) -> 1 | Q32: Upgrade | R32: =IFERROR(_xlfn.IFS(AND(Q32<>"New",D32<>"Road Bridge"),30%,D32="Road Bridge",10%),0) -> 0.3 | S32: 234900 | T32: 0.075 | U32: 77640 | V32: 133110 | W32: 119094 | X32: 0 | Y32: 1347743 | Z32: 2019 | AA32: =(1+PPI)^('Future Trunk Assets - Transport'!Z32-YEAR) -> 1.05720708 | AB32: =IF(Z32<YEAR,1,IF('General Input Sheet'!$E$32="WACC1",1/(1+WACC1)^(Z32-YEAR), IF('General Input Sheet'!$E$32="WACC2",1/(1+WACC2)^(Z32-YEAR),"Check WACC Option in General Input Sheet"))) -> 0.8417615727 | AC32: 4700809 | AD32: 5035729 | AE32: 4238883
B33: R153 | C33: ALB-RC-010 | D33: Road Corridor Project | E33: 16 | F33: Hudson Road (Birkbeck Street to Store Street) | G33: 4 Lane Road | H33: 101 | I33: Suburban | J33: 1633 | K33: 636.7997551 | L33: 1039894 | M33: 2737.722772 | N33: 276510 | O33: 2016 | P33: =IFERROR(('General Input Sheet'!$G$38/(VLOOKUP(O33,Histindex,3,FALSE))),1) -> 1 | Q33: Upgrade | R33: =IFERROR(_xlfn.IFS(AND(Q33<>"New",D33<>"Road Bridge"),30%,D33="Road Bridge",10%),0) -> 0.3 | S33: 82953 | T33: 0.075 | U33: 27418 | V33: 47007 | W33: 42057 | X33: 0 | Y33: 475945 | Z33: 2019 | AA33: =(1+PPI)^('Future Trunk Assets - Transport'!Z33-YEAR) -> 1.05720708 | AB33: =IF(Z33<YEAR,1,IF('General Input Sheet'!$E$32="WACC1",1/(1+WACC1)^(Z33-YEAR), IF('General Input Sheet'!$E$32="WACC2",1/(1+WACC2)^(Z33-YEAR),"Check WACC Option in General Input Sheet"))) -> 0.8417615727 | AC33: 1515839 | AD33: 1623025 | AE33: 1366200
B34: R153 | C34: ALB-RC-011 | D34: Road Corridor Project | E34: 16 | F34: Sandgate Road (Albion Overpass to Anstey Street) | G34: 6 Lane Road | H34: 59 | I34: Arterial | J34: 766 | K34: 1593.484334 | L34: 1220609 | M34: 4438.271186 | N34: 261858 | O34: 2016 | P34: =IFERROR(('General Input Sheet'!$G$38/(VLOOKUP(O34,Histindex,3,FALSE))),1) -> 1 | Q34: Upgrade | R34: =IFERROR(_xlfn.IFS(AND(Q34<>"New",D34<>"Road Bridge"),30%,D34="Road Bridge",10%),0) -> 0.3 | S34: 78557 | T34: 0.075 | U34: 25965 | V34: 44516 | W34: 39829 | X34: 0 | Y34: 450725 | Z34: 2019 | AA34: =(1+PPI)^('Future Trunk Assets - Transport'!Z34-YEAR) -> 1.05720708 | AB34: =IF(Z34<YEAR,1,IF('General Input Sheet'!$E$32="WACC1",1/(1+WACC1)^(Z34-YEAR), IF('General Input Sheet'!$E$32="WACC2",1/(1+WACC2)^(Z34-YEAR),"Check WACC Option in General Input Sheet"))) -> 0.8417615727 | AC34: 1671334 | AD34: 1790972 | AE34: 1507571
B35: R153 | C35: ALB-RC-012 | D35: Road Corridor Project | E35: 16 | F35: Sandgate Road Anstey Street to Abbotsford Road/Frodsham Street/Crosby Road) | G35: 6 Lane Road | H35: 118 | I35: Arterial | J35: 1497 | K35: 925.005344 | L35: 1384733 | M35: 3005.338983 | N35: 354630 | O35: 2016 | P35: =IFERROR(('General Input Sheet'!$G$38/(VLOOKUP(O35,Histindex,3,FALSE))),1) -> 1 | Q35: Upgrade | R35: =IFERROR(_xlfn.IFS(AND(Q35<>"New",D35<>"Road Bridge"),30%,D35="Road Bridge",10%),0) -> 0.3 | S35: 106389 | T35: 0.075 | U35: 35164 | V35: 60287 | W35: 53939 | X35: 0 | Y35: 610409 | Z35: 2019 | AA35: =(1+PPI)^('Future Trunk Assets - Transport'!Z35-YEAR) -> 1.05720708 | AB35: =IF(Z35<YEAR,1,IF('General Input Sheet'!$E$32="WACC1",1/(1+WACC1)^(Z35-YEAR), IF('General Input Sheet'!$E$32="WACC2",1/(1+WACC2)^(Z35-YEAR),"Check WACC Option in General Input Sheet"))) -> 0.8417615727 | AC35: 1995142 | AD35: 2136535 | AE35: 1798453
B36: R153 | C36: ALB-RI-001 | D36: Road Intersection Project | E36: 16 | F36: Kingsford Smith Drive/Amy Street Intersection | G36: 6 Lane Road / 6 Lane Road | H36: 0 | I36: Arterial / Arterial | J36: 300 | K36: 2029 | L36: 608700 | N36: 552011 | O36: 2016 | P36: =IFERROR(('General Input Sheet'!$G$38/(VLOOKUP(O36,Histindex,3,FALSE))),1) -> 1 | Q36: Existing signallised Int | R36: =IFERROR(_xlfn.IFS(AND(Q36<>"New",D36<>"Road Bridge"),30%,D36="Road Bridge",10%),0) -> 0.3 | S36: 165603 | T36: 0.075 | U36: 54736 | V36: 93842 | W36: 83961 | X36: 0 | Y36: 950153 | Z36: 2019 | AA36: =(1+PPI)^('Future Trunk Assets - Transport'!Z36-YEAR) -> 1.05720708 | AB36: =IF(Z36<YEAR,1,IF('General Input Sheet'!$E$32="WACC1",1/(1+WACC1)^(Z36-YEAR), IF('General Input Sheet'!$E$32="WACC2",1/(1+WACC2)^(Z36-YEAR),"Check WACC Option in General Input Sheet"))) -> 0.8417615727 | AC36: 1558853 | AD36: 1660012 | AE36: 1397334
B37: R153 | C37: ALB-RI-002 | D37: Road Intersection Project | E37: 16 | F37: Hudson Road/Albion Road Intersection | G37: 4 Lane Road / 4 Lane Road | H37: 0 | I37: Suburban / Suburban | J37: 450 | K37: 1804 | L37: 811800 | N37: 659482 | O37: 2016 | P37: =IFERROR(('General Input Sheet'!$G$38/(VLOOKUP(O37,Histindex,3,FALSE))),1) -> 1 | Q37: Existing signallised Int | R37: =IFERROR(_xlfn.IFS(AND(Q37<>"New",D37<>"Road Bridge"),30%,D37="Road Bridge",10%),0) -> 0.3 | S37: 197845 | T37: 0.075 | U37: 65393 | V37: 112112 | W37: 100307 | X37: 0 | Y37: 1135139 | Z37: 2019 | AA37: =(1+PPI)^('Future Trunk Assets - Transport'!Z37-YEAR) -> 1.05720708 | AB37: =IF(Z37<YEAR,1,IF('General Input Sheet'!$E$32="WACC1",1/(1+WACC1)^(Z37-YEAR), IF('General Input Sheet'!$E$32="WACC2",1/(1+WACC2)^(Z37-YEAR),"Check WACC Option in General Input Sheet"))) -> 0.8417615727 | AC37: 1946939 | AD37: 2074297 | AE37: 1746064
B38: R153 | C38: ALB-RI-005 | D38: Road Intersection Project | E38: 16 | F38: Sandgate Road/Frodsham Street Intersection | G38: 6 Lane Road / 4 Lane Road | H38: 0 | I38: Arterial / Suburban | J38: 150 | K38: 1612 | L38: 241800 | N38: 597881 | O38: 2016 | P38: =IFERROR(('General Input Sheet'!$G$38/(VLOOKUP(O38,Histindex,3,FALSE))),1) -> 1 | Q38: Existing signallised Int | R38: =IFERROR(_xlfn.IFS(AND(Q38<>"New",D38<>"Road Bridge"),30%,D38="Road Bridge",10%),0) -> 0.3 | S38: 179364 | T38: 0.075 | U38: 59284 | V38: 101640 | W38: 90938 | X38: 0 | Y38: 1029107 | Z38: 2019 | AA38: =(1+PPI)^('Future Trunk Assets - Transport'!Z38-YEAR) -> 1.05720708 | AB38: =IF(Z38<YEAR,1,IF('General Input Sheet'!$E$32="WACC1",1/(1+WACC1)^(Z38-YEAR), IF('General Input Sheet'!$E$32="WACC2",1/(1+WACC2)^(Z38-YEAR),"Check WACC Option in General Input Sheet"))) -> 0.8417615727 | AC38: 1270907 | AD38: 1348371 | AE38: 1135007
B39: R153 | C39: ALB-RI-006 | D39: Road Intersection Project | E39: 16 | F39: Sandgate Road/Albion Overpass | G39: 6 Lane Road / 4 Lane Road | H39: 0 | I39: Arterial / Suburban | J39: 300 | K39: 1575.5 | L39: 472650 | N39: 633282 | O39: 2016 | P39: =IFERROR(('General Input Sheet'!$G$38/(VLOOKUP(O39,Histindex,3,FALSE))),1) -> 1 | Q39: Existing signallised Int | R39: =IFERROR(_xlfn.IFS(AND(Q39<>"New",D39<>"Road Bridge"),30%,D39="Road Bridge",10%),0) -> 0.3 | S39: 189985 | T39: 0.075 | U39: 62795 | V39: 107658 | W39: 96322 | X39: 0 | Y39: 1090042 | Z39: 2019 | AA39: =(1+PPI)^('Future Trunk Assets - Transport'!Z39-YEAR) -> 1.05720708 | AB39: =IF(Z39<YEAR,1,IF('General Input Sheet'!$E$32="WACC1",1/(1+WACC1)^(Z39-YEAR), IF('General Input Sheet'!$E$32="WACC2",1/(1+WACC2)^(Z39-YEAR),"Check WACC Option in General Input Sheet"))) -> 0.8417615727 | AC39: 1562692 | AD39: 1661392 | AE39: 1398496
B40: R153 | C40: ALB-RI-007 | D40: Road Intersection Project | E40: 16 | F40: Sandgate Road/Collingwood Street Intersection | G40: 6 Lane Road / 4 Lane Road | H40: 0 | I40: Arterial / Suburban | J40: 150 | K40: 890 | L40: 133500 | N40: 523146 | O40: 2016 | P40: =IFERROR(('General Input Sheet'!$G$38/(VLOOKUP(O40,Histindex,3,FALSE))),1) -> 1 | Q40: Existing signallised Int | R40: =IFERROR(_xlfn.IFS(AND(Q40<>"New",D40<>"Road Bridge"),30%,D40="Road Bridge",10%),0) -> 0.3 | S40: 156944 | T40: 0.075 | U40: 51874 | V40: 88935 | W40: 79571 | X40: 0 | Y40: 900470 | Z40: 2019 | AA40: =(1+PPI)^('Future Trunk Assets - Transport'!Z40-YEAR) -> 1.05720708 | AB40: =IF(Z40<YEAR,1,IF('General Input Sheet'!$E$32="WACC1",1/(1+WACC1)^(Z40-YEAR), IF('General Input Sheet'!$E$32="WACC2",1/(1+WACC2)^(Z40-YEAR),"Check WACC Option in General Input Sheet"))) -> 0.8417615727 | AC40: 1033970 | AD40: 1095748 | AE40: 922359
B41: R213 | C41: ANN-RI-001 | D41: Road Intersection Project | E41: 7 | F41: Ipswich Road/Juliette Street Intersection | G41: 6 Lane Road / 6 Lane Road | H41: 0 | I41: Arterial / Arterial | J41: 150 | K41: 2261 | L41: 339150 | N41: 668224 | O41: 2016 | P41: =IFERROR(('General Input Sheet'!$G$38/(VLOOKUP(O41,Histindex,3,FALSE))),1) -> 1 | Q41: Existing signallised Int | R41: =IFERROR(_xlfn.IFS(AND(Q41<>"New",D41<>"Road Bridge"),30%,D41="Road Bridge",10%),0) -> 0.3 | S41: 200467 | T41: 0.075 | U41: 66259 | V41: 113598 | W41: 101637 | X41: 0 | Y41: 1150185 | Z41: 2019 | AA41: =(1+PPI)^('Future Trunk Assets - Transport'!Z41-YEAR) -> 1.05720708 | AB41: =IF(Z41<YEAR,1,IF('General Input Sheet'!$E$32="WACC1",1/(1+WACC1)^(Z41-YEAR), IF('General Input Sheet'!$E$32="WACC2",1/(1+WACC2)^(Z41-YEAR),"Check WACC Option in General Input Sheet"))) -> 0.8417615727 | AC41: 1489335 | AD41: 1581211 | AE41: 1331003
B42: R232 | C42: ANN-RI-002 | D42: Road Intersection Project | E42: 7 | F42: Ipswich Road/Cracknell Road/Villa Street Intersection | G42: 6 Lane Road / 2 Lane Road | H42: 0 | I42: Arterial / District | J42: 450 | K42: 1472 | L42: 662400 | N42: 526462 | O42: 2016 | P42: =IFERROR(('General Input Sheet'!$G$38/(VLOOKUP(O42,Histindex,3,FALSE))),1) -> 1 | Q42: Existing signallised Int | R42: =IFERROR(_xlfn.IFS(AND(Q42<>"New",D42<>"Road Bridge"),30%,D42="Road Bridge",10%),0) -> 0.3 | S42: 157939 | T42: 0.075 | U42: 52203 | V42: 89499 | W42: 80075 | X42: 0 | Y42: 906178 | Z42: 2019 | AA42: =(1+PPI)^('Future Trunk Assets - Transport'!Z42-YEAR) -> 1.05720708 | AB42: =IF(Z42<YEAR,1,IF('General Input Sheet'!$E$32="WACC1",1/(1+WACC1)^(Z42-YEAR), IF('General Input Sheet'!$E$32="WACC2",1/(1+WACC2)^(Z42-YEAR),"Check WACC Option in General Input Sheet"))) -> 0.8417615727 | AC42: 1568578 | AD42: 1671350 | AE42: 1406878
B43: R171 | C43: ASH-RI-001 | D43: Road Intersection Project | E43: 12 | F43: Waterworks Road/Stewart Road Intersection | G43: 6 Lane Road / 6 Lane Road | H43: 0 | I43: Arterial / Arterial | J43: 150 | K43: 2261 | L43: 339150 | N43: 668224 | O43: 2016 | P43: =IFERROR(('General Input Sheet'!$G$38/(VLOOKUP(O43,Histindex,3,FALSE))),1) -> 1 | Q43: Existing signallised Int | R43: =IFERROR(_xlfn.IFS(AND(Q43<>"New",D43<>"Road Bridge"),30%,D43="Road Bridge",10%),0) -> 0.3 | S43: 200467 | T43: 0.075 | U43: 66259 | V43: 113598 | W43: 101637 | X43: 0 | Y43: 1150185 | Z43: 2019 | AA43: =(1+PPI)^('Future Trunk Assets - Transport'!Z43-YEAR) -> 1.05720708 | AB43: =IF(Z43<YEAR,1,IF('General Input Sheet'!$E$32="WACC1",1/(1+WACC1)^(Z43-YEAR), IF('General Input Sheet'!$E$32="WACC2",1/(1+WACC2)^(Z43-YEAR),"Check WACC Option in General Input Sheet"))) -> 0.8417615727 | AC43: 1489335 | AD43: 1581211 | AE43: 1331003
B44: R171 | C44: ASH-RI-002 | D44: Road Intersection Project | E44: 12 | F44: Waterworks Road/Ashgrove Avenue Intersection | G44: 6 Lane Road / 4 Lane Road | H44: 0 | I44: Arterial / Suburban | J44: 300 | K44: 2261 | L44: 678300 | N44: 633282 | O44: 2016 | P44: =IFERROR(('General Input Sheet'!$G$38/(VLOOKUP(O44,Histindex,3,FALSE))),1) -> 1 | Q44: Existing signallised Int | R44: =IFERROR(_xlfn.IFS(AND(Q44<>"New",D44<>"Road Bridge"),30%,D44="Road Bridge",10%),0) -> 0.3 | S44: 189985 | T44: 0.075 | U44: 62795 | V44: 107658 | W44: 96322 | X44: 0 | Y44: 1090042 | Z44: 2019 | AA44: =(1+PPI)^('Future Trunk Assets - Transport'!Z44-YEAR) -> 1.05720708 | AB44: =IF(Z44<YEAR,1,IF('General Input Sheet'!$E$32="WACC1",1/(1+WACC1)^(Z44-YEAR), IF('General Input Sheet'!$E$32="WACC2",1/(1+WACC2)^(Z44-YEAR),"Check WACC Option in General Input Sheet"))) -> 0.8417615727 | AC44: 1768342 | AD44: 1882855 | AE44: 1584915
B45: R171 | C45: ASH-RI-003 | D45: Road Intersection Project | E45: 12 | F45: Waterworks Road/Jubilee Terrace Intersection | G45: 6 Lane Road / 6 Lane Road | H45: 0 | I45: Arterial / Arterial | J45: 600 | K45: 1183.75 | L45: 710250 | N45: 630869 | O45: 2016 | P45: =IFERROR(('General Input Sheet'!$G$38/(VLOOKUP(O45,Histindex,3,FALSE))),1) -> 1 | Q45: Existing signallised Int | R45: =IFERROR(_xlfn.IFS(AND(Q45<>"New",D45<>"Road Bridge"),30%,D45="Road Bridge",10%),0) -> 0.3 | S45: 189261 | T45: 0.075 | U45: 62555 | V45: 107248 | W45: 95955 | X45: 0 | Y45: 1085888 | Z45: 2019 | AA45: =(1+PPI)^('Future Trunk Assets - Transport'!Z45-YEAR) -> 1.05720708 | AB45: =IF(Z45<YEAR,1,IF('General Input Sheet'!$E$32="WACC1",1/(1+WACC1)^(Z45-YEAR), IF('General Input Sheet'!$E$32="WACC2",1/(1+WACC2)^(Z45-YEAR),"Check WACC Option in General Input Sheet"))) -> 0.8417615727 | AC45: 1796138 | AD45: 1912870 | AE45: 1610180
B46: R216 | C46: BEL-RC-002 | D46: Road Corridor Project | E46: 1, 2 | F46: Meadowland Road (Wright Street to Belmont Road) | G46: 4 Lane Road | H46: 400 | I46: Suburban | J46: 784 | K46: 724.6364796 | L46: 568115 | M46: 2462.23 | N46: 984892 | O46: 2016 | P46: =IFERROR(('General Input Sheet'!$G$38/(VLOOKUP(O46,Histindex,3,FALSE))),1) -> 1 | Q46: Upgrade | R46: =IFERROR(_xlfn.IFS(AND(Q46<>"New",D46<>"Road Bridge"),30%,D46="Road Bridge",10%),0) -> 0.3 | S46: 295468 | T46: 0.075 | U46: 97659 | V46: 167432 | W46: 149802 | X46: 0 | Y46: 1695253 | Z46: 2019 | AA46: =(1+PPI)^('Future Trunk Assets - Transport'!Z46-YEAR) -> 1.05720708 | AB46: =IF(Z46<YEAR,1,IF('General Input Sheet'!$E$32="WACC1",1/(1+WACC1)^(Z46-YEAR), IF('General Input Sheet'!$E$32="WACC2",1/(1+WACC2)^(Z46-YEAR),"Check WACC Option in General Input Sheet"))) -> 0.8417615727 | AC46: 2263368 | AD46: 2404031 | AE46: 2023621
B47: R216 | C47: BEL-RI-001 | D47: Road Intersection Project | E47: 1 | F47: Belmont Road/Meadowlands Road Intersection | G47: 4 Lane Road / 4 Lane Road | H47: 0 | I47: Suburban / Suburban | J47: 150 | K47: 838 | L47: 125700 | N47: 476691 | O47: 2016 | P47: =IFERROR(('General Input Sheet'!$G$38/(VLOOKUP(O47,Histindex,3,FALSE))),1) -> 1 | Q47: Existing signallised Int | R47: =IFERROR(_xlfn.IFS(AND(Q47<>"New",D47<>"Road Bridge"),30%,D47="Road Bridge",10%),0) -> 0.3 | S47: 143007 | T47: 0.15 | U47: 94535 | V47: 81037 | W47: 72505 | X47: 0 | Y47: 867775 | Z47: 2024 | AA47: =(1+PPI)^('Future Trunk Assets - Transport'!Z47-YEAR) -> 1.159916788 | AB47: =IF(Z47<YEAR,1,IF('General Input Sheet'!$E$32="WACC1",1/(1+WACC1)^(Z47-YEAR), IF('General Input Sheet'!$E$32="WACC2",1/(1+WACC2)^(Z47-YEAR),"Check WACC Option in General Input Sheet"))) -> 0.6316903693 | AC47: 993475 | AD47: 1159700 | AE47: 732571
B48: R216 | C48: BEL-RI-002 | D48: Road Intersection Project | E48: 2 | F48: Meadowlands Road/Wright Street Intersection | G48: 4 Lane Road / 4 Lane Road | H48: 0 | I48: Suburban / Suburban | J48: 150 | K48: 139 | L48: 20850 | N48: 476691 | O48: 2016 | P48: =IFERROR(('General Input Sheet'!$G$38/(VLOOKUP(O48,Histindex,3,FALSE))),1) -> 1 | Q48: Existing signallised Int | R48: =IFERROR(_xlfn.IFS(AND(Q48<>"New",D48<>"Road Bridge"),30%,D48="Road Bridge",10%),0) -> 0.3 | S48: =ROUND(N48*R48,0) -> 143007 | T48: 0.075 | U48: 47267 | V48: 81037 | W48: 72505 | X48: 0 | Y48: 820507 | Z48: 2019 | AA48: =(1+PPI)^('Future Trunk Assets - Transport'!Z48-YEAR) -> 1.05720708 | AB48: =IF(Z48<YEAR,1,IF('General Input Sheet'!$E$32="WACC1",1/(1+WACC1)^(Z48-YEAR), IF('General Input Sheet'!$E$32="WACC2",1/(1+WACC2)^(Z48-YEAR),"Check WACC Option in General Input Sheet"))) -> 0.8417615727 | AC48: 841357 | AD48: 889899 | AE48: 749083
B49: R153 | C49: BOH-RC-001 | D49: Road Corridor Project | E49: 8 | F49: Abbotsford Road (Burrows Street to Allison Street) | G49: 6 Lane Road | H49: 355 | I49: Arterial | J49: 2975 | K49: 121.4094118 | L49: 361193 | M49: 2852.540845 | N49: 1012652 | O49: 2016 | P49: =IFERROR(('General Input Sheet'!$G$38/(VLOOKUP(O49,Histindex,3,FALSE))),1) -> 1 | Q49: Upgrade | R49: =IFERROR(_xlfn.IFS(AND(Q49<>"New",D49<>"Road Bridge"),30%,D49="Road Bridge",10%),0) -> 0.3 | S49: 303796 | T49: 0.075 | U49: 100412 | V49: 172151 | W49: 154024 | X49: 0 | Y49: 1743035 | Z49: 2019 | AA49: =(1+PPI)^('Future Trunk Assets - Transport'!Z49-YEAR) -> 1.05720708 | AB49: =IF(Z49<YEAR,1,IF('General Input Sheet'!$E$32="WACC1",1/(1+WACC1)^(Z49-YEAR), IF('General Input Sheet'!$E$32="WACC2",1/(1+WACC2)^(Z49-YEAR),"Check WACC Option in General Input Sheet"))) -> 0.8417615727 | AC49: 2104228 | AD49: 2231714 | AE49: 1878571
B50: R173 | C50: BOH-RC-002 | D50: Road Corridor Project | E50: 8 | F50: Costin Street/Constance Street (Gregory Terrace to St Pauls Terrace) | G50: 2 Lane Road | H50: 350 | I50: District | J50: 1593 | K50: 2564.045825 | L50: 4084525 | M50: 1427.048571 | N50: 499467 | O50: 2016 | P50: =IFERROR(('General Input Sheet'!$G$38/(VLOOKUP(O50,Histindex,3,FALSE))),1) -> 1 | Q50: Upgrade | R50: =IFERROR(_xlfn.IFS(AND(Q50<>"New",D50<>"Road Bridge"),30%,D50="Road Bridge",10%),0) -> 0.3 | S50: 149840 | T50: 0.15 | U50: 99052 | V50: 84909 | W50: 75969 | X50: 0 | Y50: 909237 | Z50: 2024 | AA50: =(1+PPI)^('Future Trunk Assets - Transport'!Z50-YEAR) -> 1.159916788 | AB50: =IF(Z50<YEAR,1,IF('General Input Sheet'!$E$32="WACC1",1/(1+WACC1)^(Z50-YEAR), IF('General Input Sheet'!$E$32="WACC2",1/(1+WACC2)^(Z50-YEAR),"Check WACC Option in General Input Sheet"))) -> 0.6316903693 | AC50: 4993762 | AD50: 6031236 | AE50: 3809874
B51: R173 | C51: BOH-RI-001 | D51: Road Intersection Project | E51: 8 | F51: Gregory Terrace/Costin Street Intersection | G51: 2 Lane Road / 2 Lane Road | H51: 0 | I51: District / District | J51: 300 | K51: 2395 | L51: 718500 | N51: 418448 | O51: 2016 | P51: =IFERROR(('General Input Sheet'!$G$38/(VLOOKUP(O51,Histindex,3,FALSE))),1) -> 1 | Q51: Existing unsignallised Int | R51: =IFERROR(_xlfn.IFS(AND(Q51<>"New",D51<>"Road Bridge"),30%,D51="Road Bridge",10%),0) -> 0.3 | S51: 125534 | T51: 0.075 | U51: 41492 | V51: 71136 | W51: 63646 | X51: 0 | Y51: 720256 | Z51: 2019 | AA51: =(1+PPI)^('Future Trunk Assets - Transport'!Z51-YEAR) -> 1.05720708 | AB51: =IF(Z51<YEAR,1,IF('General Input Sheet'!$E$32="WACC1",1/(1+WACC1)^(Z51-YEAR), IF('General Input Sheet'!$E$32="WACC2",1/(1+WACC2)^(Z51-YEAR),"Check WACC Option in General Input Sheet"))) -> 0.8417615727 | AC51: 1438756 | AD51: 1535206 | AE51: 1292277
B52: R73 | C52: BRG-RC-003 | D52: Road Corridor Project | E52: 15 | F52: Telegraph Road (Mustang Street to Denham Street) | G52: 6 Lane Road | H52: 716 | I52: Arterial | J52: 5302 | K52: 331.1337231 | L52: 1755671 | M52: 2711.498603 | N52: 1941433 | O52: 2016 | P52: =IFERROR(('General Input Sheet'!$G$38/(VLOOKUP(O52,Histindex,3,FALSE))),1) -> 1 | Q52: Upgrade | R52: =IFERROR(_xlfn.IFS(AND(Q52<>"New",D52<>"Road Bridge"),30%,D52="Road Bridge",10%),0) -> 0.3 | S52: 582430 | T52: 0.075 | U52: 192508 | V52: 330044 | W52: 295292 | X52: 0 | Y52: 3341707 | Z52: 2019 | AA52: =(1+PPI)^('Future Trunk Assets - Transport'!Z52-YEAR) -> 1.05720708 | AB52: =IF(Z52<YEAR,1,IF('General Input Sheet'!$E$32="WACC1",1/(1+WACC1)^(Z52-YEAR), IF('General Input Sheet'!$E$32="WACC2",1/(1+WACC2)^(Z52-YEAR),"Check WACC Option in General Input Sheet"))) -> 0.8417615727 | AC52: 5097378 | AD52: 5423542 | AE52: 4565329
B53: R73 | C53: BRG-RC-004 | D53: Road Corridor Project | E53: 15 | F53: Depot Road (Lemke Road to Quinlan Street) | G53: 6 Lane Road | H53: 87 | I53: Arterial | J53: 9 | K53: 0 | L53: 0 | M53: 3661.597701 | N53: 318559 | O53: 2016 | P53: =IFERROR(('General Input Sheet'!$G$38/(VLOOKUP(O53,Histindex,3,FALSE))),1) -> 1 | Q53: Upgrade | R53: =IFERROR(_xlfn.IFS(AND(Q53<>"New",D53<>"Road Bridge"),30%,D53="Road Bridge",10%),0) -> 0.3 | S53: 95568 | T53: 0.075 | U53: 31588 | V53: 54155 | W53: 48453 | X53: 0 | Y53: 548323 | Z53: 2019 | AA53: =(1+PPI)^('Future Trunk Assets - Transport'!Z53-YEAR) -> 1.05720708 | AB53: =IF(Z53<YEAR,1,IF('General Input Sheet'!$E$32="WACC1",1/(1+WACC1)^(Z53-YEAR), IF('General Input Sheet'!$E$32="WACC2",1/(1+WACC2)^(Z53-YEAR),"Check WACC Option in General Input Sheet"))) -> 0.8417615727 | AC53: 548323 | AD53: 579691 | AE53: 487962
B54: R73 | C54: BRG-RC-005 | D54: Road Corridor Project | E54: 15 | F54: Telegraph Road (Denham Street to Lemke Road) | G54: 6 Lane Road | H54: 376 | I54: Arterial | J54: 1721 | K54: 423.5432888 | L54: 728918 | M54: 2713.68617 | N54: 1020346 | O54: 2016 | P54: =IFERROR(('General Input Sheet'!$G$38/(VLOOKUP(O54,Histindex,3,FALSE))),1) -> 1 | Q54: Upgrade | R54: =IFERROR(_xlfn.IFS(AND(Q54<>"New",D54<>"Road Bridge"),30%,D54="Road Bridge",10%),0) -> 0.3 | S54: 306104 | T54: 0.075 | U54: 101175 | V54: 173459 | W54: 155195 | X54: 0 | Y54: 1756279 | Z54: 2019 | AA54: =(1+PPI)^('Future Trunk Assets - Transport'!Z54-YEAR) -> 1.05720708 | AB54: =IF(Z54<YEAR,1,IF('General Input Sheet'!$E$32="WACC1",1/(1+WACC1)^(Z54-YEAR), IF('General Input Sheet'!$E$32="WACC2",1/(1+WACC2)^(Z54-YEAR),"Check WACC Option in General Input Sheet"))) -> 0.8417615727 | AC54: 2485197 | AD54: 2641716 | AE54: 2223695
B55: R73 | C55: BRG-RI-001 | D55: Road Intersection Project | E55: 15 | F55: Telegraph Road/Denham Street Intersection | G55: 6 Lane Road / 4 Lane Road | H55: 0 | I55: Arterial / Suburban | J55: 150 | K55: 306 | L55: 45900 | N55: 597881 | O55: 2016 | P55: =IFERROR(('General Input Sheet'!$G$38/(VLOOKUP(O55,Histindex,3,FALSE))),1) -> 1 | Q55: Existing signallised Int | R55: =IFERROR(_xlfn.IFS(AND(Q55<>"New",D55<>"Road Bridge"),30%,D55="Road Bridge",10%),0) -> 0.3 | S55: 179364 | T55: 0.075 | U55: 59284 | V55: 101640 | W55: 90938 | X55: 0 | Y55: 1029107 | Z55: 2019 | AA55: =(1+PPI)^('Future Trunk Assets - Transport'!Z55-YEAR) -> 1.05720708 | AB55: =IF(Z55<YEAR,1,IF('General Input Sheet'!$E$32="WACC1",1/(1+WACC1)^(Z55-YEAR), IF('General Input Sheet'!$E$32="WACC2",1/(1+WACC2)^(Z55-YEAR),"Check WACC Option in General Input Sheet"))) -> 0.8417615727 | AC55: 1075007 | AD55: 1137408 | AE55: 957426
B56: R92 | C56: BRG-RI-002 | D56: Road Intersection Project | E56: 15 | F56: Robinson Road West/Kirby Road Intersection | G56: 6 Lane Road / 2 Lane Road | H56: 0 | I56: Arterial / District | J56: 600 | K56: 838 | L56: 502800 | N56: 789691 | O56: 2016 | P56: =IFERROR(('General Input Sheet'!$G$38/(VLOOKUP(O56,Histindex,3,FALSE))),1) -> 1 | Q56: Existing unsignallised Int | R56: =IFERROR(_xlfn.IFS(AND(Q56<>"New",D56<>"Road Bridge"),30%,D56="Road Bridge",10%),0) -> 0.3 | S56: 236907 | T56: 0.15 | U56: 156608 | V56: 134247 | W56: 120112 | X56: 0 | Y56: 1437565 | Z56: 2024 | AA56: =(1+PPI)^('Future Trunk Assets - Transport'!Z56-YEAR) -> 1.159916788 | AB56: =IF(Z56<YEAR,1,IF('General Input Sheet'!$E$32="WACC1",1/(1+WACC1)^(Z56-YEAR), IF('General Input Sheet'!$E$32="WACC2",1/(1+WACC2)^(Z56-YEAR),"Check WACC Option in General Input Sheet"))) -> 0.6316903693 | AC56: 1940365 | AD56: 2280069 | AE56: 1440298
B57: R53 | C57: BRG-RI-003 | D57: Road Intersection Project | E57: 15 | F57: Bracken Ridge Road/Barfoot Street Intersection | G57: 4 Lane Road / 4 Lane Road | H57: 0 | I57: Suburban / Suburban | J57: 0 | K57: 0 | L57: 0 | N57: 817184 | O57: 2016 | P57: =IFERROR(('General Input Sheet'!$G$38/(VLOOKUP(O57,Histindex,3,FALSE))),1) -> 1 | Q57: Existing unsignallised Int | R57: =IFERROR(_xlfn.IFS(AND(Q57<>"New",D57<>"Road Bridge"),30%,D57="Road Bridge",10%),0) -> 0.3 | S57: 245155 | T57: 0.15 | U57: 162060 | V57: 138921 | W57: 124294 | X57: 0 | Y57: 1487614 | Z57: 2024 | AA57: =(1+PPI)^('Future Trunk Assets - Transport'!Z57-YEAR) -> 1.159916788 | AB57: =IF(Z57<YEAR,1,IF('General Input Sheet'!$E$32="WACC1",1/(1+WACC1)^(Z57-YEAR), IF('General Input Sheet'!$E$32="WACC2",1/(1+WACC2)^(Z57-YEAR),"Check WACC Option in General Input Sheet"))) -> 0.6316903693 | AC57: 1487614 | AD57: 1725508 | AE57: 1089987
B58: R174 | C58: BUL-RI-001 | D58: Road Intersection Project | E58: 5 | F58: Lytton Road/Apollo Road/Thorpe Street Intersection | G58: 4 Lane Road / 2 Lane Road | H58: 0 | I58: Suburban / District | J58: 300 | K58: 970.5 | L58: 291150 | N58: 711951 | O58: 2016 | P58: =IFERROR(('General Input Sheet'!$G$38/(VLOOKUP(O58,Histindex,3,FALSE))),1) -> 1 | Q58: Existing unsignallised Int | R58: =IFERROR(_xlfn.IFS(AND(Q58<>"New",D58<>"Road Bridge"),30%,D58="Road Bridge",10%),0) -> 0.3 | S58: 213585 | T58: 0.075 | U58: 70595 | V58: 121032 | W58: 108288 | X58: 0 | Y58: 1225451 | Z58: 2019 | AA58: =(1+PPI)^('Future Trunk Assets - Transport'!Z58-YEAR) -> 1.05720708 | AB58: =IF(Z58<YEAR,1,IF('General Input Sheet'!$E$32="WACC1",1/(1+WACC1)^(Z58-YEAR), IF('General Input Sheet'!$E$32="WACC2",1/(1+WACC2)^(Z58-YEAR),"Check WACC Option in General Input Sheet"))) -> 0.8417615727 | AC58: 1516601 | AD58: 1609092 | AE58: 1354472
B59: R114 | C59: BYO-RC-001 | D59: Road Corridor Project | E59: 16 | F59: Nudgee Road (Raubers Road to Tufnell Road) | G59: 4 Lane Road | H59: 615 | I59: Suburban | J59: 2951 | K59: 247.6286005 | L59: 730752 | M59: 2466.60813 | N59: 1516964 | O59: 2016 | P59: =IFERROR(('General Input Sheet'!$G$38/(VLOOKUP(O59,Histindex,3,FALSE))),1) -> 1 | Q59: Upgrade | R59: =IFERROR(_xlfn.IFS(AND(Q59<>"New",D59<>"Road Bridge"),30%,D59="Road Bridge",10%),0) -> 0.3 | S59: 455089 | T59: 0.15 | U59: 300837 | V59: 257884 | W59: 230730 | X59: 0 | Y59: 2761504 | Z59: 2024 | AA59: =(1+PPI)^('Future Trunk Assets - Transport'!Z59-YEAR) -> 1.159916788 | AB59: =IF(Z59<YEAR,1,IF('General Input Sheet'!$E$32="WACC1",1/(1+WACC1)^(Z59-YEAR), IF('General Input Sheet'!$E$32="WACC2",1/(1+WACC2)^(Z59-YEAR),"Check WACC Option in General Input Sheet"))) -> 0.6316903693 | AC59: 3492256 | AD59: 4093465 | AE59: 2585802
B60: R114 | C60: BYO-RI-001 | D60: Road Intersection Project | E60: 16 | F60: Nudgee Road/Tufnell Road Intersection | G60: 4 Lane Road / 4 Lane Road | H60: 0 | I60: Suburban / Suburban | J60: 150 | K60: 890 | L60: 133500 | N60: 476691 | O60: 2016 | P60: =IFERROR(('General Input Sheet'!$G$38/(VLOOKUP(O60,Histindex,3,FALSE))),1) -> 1 | Q60: Existing signallised Int | R60: =IFERROR(_xlfn.IFS(AND(Q60<>"New",D60<>"Road Bridge"),30%,D60="Road Bridge",10%),0) -> 0.3 | S60: 143007 | T60: 0.15 | U60: 94535 | V60: 81037 | W60: 72505 | X60: 0 | Y60: 867775 | Z60: 2024 | AA60: =(1+PPI)^('Future Trunk Assets - Transport'!Z60-YEAR) -> 1.159916788 | AB60: =IF(Z60<YEAR,1,IF('General Input Sheet'!$E$32="WACC1",1/(1+WACC1)^(Z60-YEAR), IF('General Input Sheet'!$E$32="WACC2",1/(1+WACC2)^(Z60-YEAR),"Check WACC Option in General Input Sheet"))) -> 0.6316903693 | AC60: 1001275 | AD60: 1169204 | AE60: 738575
B61: R214 | C61: CAH-RI-001 | D61: Road Intersection Project | E61: 4 | F61: Boundary Road/Chatsworth Road/Samuel Street Intersection | G61: 4 Lane Road / 4 Lane Road | H61: 0 | I61: Suburban / Suburban | J61: 300 | K61: 936 | L61: 280800 | N61: 544790 | O61: 2016 | P61: =IFERROR(('General Input Sheet'!$G$38/(VLOOKUP(O61,Histindex,3,FALSE))),1) -> 1 | Q61: Existing signallised Int | R61: =IFERROR(_xlfn.IFS(AND(Q61<>"New",D61<>"Road Bridge"),30%,D61="Road Bridge",10%),0) -> 0.3 | S61: 163437 | T61: 0.075 | U61: 54020 | V61: 92614 | W61: 82863 | X61: 0 | Y61: 937724 | Z61: 2019 | AA61: =(1+PPI)^('Future Trunk Assets - Transport'!Z61-YEAR) -> 1.05720708 | AB61: =IF(Z61<YEAR,1,IF('General Input Sheet'!$E$32="WACC1",1/(1+WACC1)^(Z61-YEAR), IF('General Input Sheet'!$E$32="WACC2",1/(1+WACC2)^(Z61-YEAR),"Check WACC Option in General Input Sheet"))) -> 0.8417615727 | AC61: 1218524 | AD61: 1293759 | AE61: 1089037
B62: R72 | C62: CDE-LC-001 | D62: Open Level Crossing | E62: 15 | F62: Beams Road Open Level Crossing | G62: 4 Lane Road | H62: 0 | I62: Suburban | J62: 0 | K62: 0 | L62: 25000000 | N62: 123598191 | O62: 2016 | P62: =IFERROR(('General Input Sheet'!$G$38/(VLOOKUP(O62,Histindex,3,FALSE))),1) -> 1 | Q62: - | R62: =IFERROR(_xlfn.IFS(AND(Q62<>"New",D62<>"Road Bridge"),30%,D62="Road Bridge",10%),0) -> 0.3 | S62: 37079457 | T62: 0.15 | U62: 24511375 | V62: 21011692 | W62: 18799285 | X62: 191250000 | Y62: 225000000 | Z62: 2024 | AA62: =(1+PPI)^('Future Trunk Assets - Transport'!Z62-YEAR) -> 1.159916788 | AB62: =IF(Z62<YEAR,1,IF('General Input Sheet'!$E$32="WACC1",1/(1+WACC1)^(Z62-YEAR), IF('General Input Sheet'!$E$32="WACC2",1/(1+WACC2)^(Z62-YEAR),"Check WACC Option in General Input Sheet"))) -> 0.6316903693 | AC62: 58750000 | AD62: 291441350 | AE62: 184100694
B63: R72, R73 | C63: CDE-RC-002 | D63: Road Corridor Project | E63: 15 | F63: Beams Road (Balcara Avenue to Carselgrove Avenue) | G63: 4 Lane Road | H63: 463 | I63: Suburban | J63: 3052 | K63: 76.90301442 | L63: 234708 | M63: 2463.539957 | N63: 1140619 | O63: 2016 | P63: =IFERROR(('General Input Sheet'!$G$38/(VLOOKUP(O63,Histindex,3,FALSE))),1) -> 1 | Q63: Upgrade | R63: =IFERROR(_xlfn.IFS(AND(Q63<>"New",D63<>"Road Bridge"),30%,D63="Road Bridge",10%),0) -> 0.3 | S63: 342186 | T63: 0.15 | U63: 226202 | V63: 193905 | W63: 173488 | X63: 0 | Y63: 2076400 | Z63: 2024 | AA63: =(1+PPI)^('Future Trunk Assets - Transport'!Z63-YEAR) -> 1.159916788 | AB63: =IF(Z63<YEAR,1,IF('General Input Sheet'!$E$32="WACC1",1/(1+WACC1)^(Z63-YEAR), IF('General Input Sheet'!$E$32="WACC2",1/(1+WACC2)^(Z63-YEAR),"Check WACC Option in General Input Sheet"))) -> 0.6316903693 | AC63: 2311108 | AD63: 2694420 | AE63: 1702039
B64: R72 | C64: CDE-RC-003 | D64: Road Corridor Project | E64: 15 | F64: Beams Road (Dorville Road to Balcara Avenue) | G64: 4 Lane Road | H64: 475 | I64: Suburban | J64: 1733 | K64: 131.2019619 | L64: 227373 | M64: 2466.04 | N64: 1171369 | O64: 2016 | P64: =IFERROR(('General Input Sheet'!$G$38/(VLOOKUP(O64,Histindex,3,FALSE))),1) -> 1 | Q64: Upgrade | R64: =IFERROR(_xlfn.IFS(AND(Q64<>"New",D64<>"Road Bridge"),30%,D64="Road Bridge",10%),0) -> 0.3 | S64: 351411 | T64: 0.15 | U64: 232300 | V64: 199133 | W64: 178165 | X64: 0 | Y64: 2132378 | Z64: 2024 | AA64: =(1+PPI)^('Future Trunk Assets - Transport'!Z64-YEAR) -> 1.159916788 | AB64: =IF(Z64<YEAR,1,IF('General Input Sheet'!$E$32="WACC1",1/(1+WACC1)^(Z64-YEAR), IF('General Input Sheet'!$E$32="WACC2",1/(1+WACC2)^(Z64-YEAR),"Check WACC Option in General Input Sheet"))) -> 0.6316903693 | AC64: 2359751 | AD64: 2750413 | AE64: 1737409
B65: R72 | C65: CDE-RC-004 | D65: Road Corridor Project | E65: 15 | F65: Beams Road (Gympie Road to Lacey Road) | G65: 4 Lane Road | H65: 145 | I65: Suburban | J65: 233 | K65: 126.9871245 | L65: 29588 | M65: 2729.193103 | N65: 395733 | O65: 2016 | P65: =IFERROR(('General Input Sheet'!$G$38/(VLOOKUP(O65,Histindex,3,FALSE))),1) -> 1 | Q65: Upgrade | R65: =IFERROR(_xlfn.IFS(AND(Q65<>"New",D65<>"Road Bridge"),30%,D65="Road Bridge",10%),0) -> 0.3 | S65: 118720 | T65: 0.15 | U65: 78480 | V65: 67275 | W65: 60191 | X65: 0 | Y65: 720399 | Z65: 2024 | AA65: =(1+PPI)^('Future Trunk Assets - Transport'!Z65-YEAR) -> 1.159916788 | AB65: =IF(Z65<YEAR,1,IF('General Input Sheet'!$E$32="WACC1",1/(1+WACC1)^(Z65-YEAR), IF('General Input Sheet'!$E$32="WACC2",1/(1+WACC2)^(Z65-YEAR),"Check WACC Option in General Input Sheet"))) -> 0.6316903693 | AC65: 749987 | AD65: 871653 | AE65: 550615
B66: R72 | C66: CDE-RC-005 | D66: Road Corridor Project | E66: 15 | F66: Beams Road (Lacey Road to Cowie Road) | G66: 4 Lane Road | H66: 384 | I66: Suburban | J66: 2045 | K66: 546.0943765 | L66: 1116763 | M66: 2467.328125 | N66: 947454 | O66: 2016 | P66: =IFERROR(('General Input Sheet'!$G$38/(VLOOKUP(O66,Histindex,3,FALSE))),1) -> 1 | Q66: Upgrade | R66: =IFERROR(_xlfn.IFS(AND(Q66<>"New",D66<>"Road Bridge"),30%,D66="Road Bridge",10%),0) -> 0.3 | S66: 284236 | T66: 0.15 | U66: 187894 | V66: 161067 | W66: 144108 | X66: 0 | Y66: 1724759 | Z66: 2024 | AA66: =(1+PPI)^('Future Trunk Assets - Transport'!Z66-YEAR) -> 1.159916788 | AB66: =IF(Z66<YEAR,1,IF('General Input Sheet'!$E$32="WACC1",1/(1+WACC1)^(Z66-YEAR), IF('General Input Sheet'!$E$32="WACC2",1/(1+WACC2)^(Z66-YEAR),"Check WACC Option in General Input Sheet"))) -> 0.6316903693 | AC66: 2841522 | AD66: 3361244 | AE66: 2123265
B67: R72 | C67: CDE-RC-006 | D67: Road Corridor Project | E67: 15 | F67: Beams Road (Cowie Road to Dorville Road) | G67: 4 Lane Road | H67: 383 | I67: Suburban | J67: 1526 | K67: 708.1834862 | L67: 1080688 | M67: 2468.370757 | N67: 945386 | O67: 2016 | P67: =IFERROR(('General Input Sheet'!$G$38/(VLOOKUP(O67,Histindex,3,FALSE))),1) -> 1 | Q67: Upgrade | R67: =IFERROR(_xlfn.IFS(AND(Q67<>"New",D67<>"Road Bridge"),30%,D67="Road Bridge",10%),0) -> 0.3 | S67: 283616 | T67: 0.15 | U67: 187484 | V67: 160716 | W67: 143793 | X67: 0 | Y67: 1720995 | Z67: 2024 | AA67: =(1+PPI)^('Future Trunk Assets - Transport'!Z67-YEAR) -> 1.159916788 | AB67: =IF(Z67<YEAR,1,IF('General Input Sheet'!$E$32="WACC1",1/(1+WACC1)^(Z67-YEAR), IF('General Input Sheet'!$E$32="WACC2",1/(1+WACC2)^(Z67-YEAR),"Check WACC Option in General Input Sheet"))) -> 0.6316903693 | AC67: 2801683 | AD67: 3312924 | AE67: 2092742
B68: R72 | C68: CDE-RI-002 | D68: Road Intersection Project | E68: 15 | F68: Beams Road/Dorville Road Intersection | G68: 4 Lane Road / 2 Lane Road | H68: 0 | I68: Suburban / District | J68: 300 | K68: 488.5 | L68: 146550 | N68: 711951 | O68: 2016 | P68: =IFERROR(('General Input Sheet'!$G$38/(VLOOKUP(O68,Histindex,3,FALSE))),1) -> 1 | Q68: Existing unsignallised Int | R68: =IFERROR(_xlfn.IFS(AND(Q68<>"New",D68<>"Road Bridge"),30%,D68="Road Bridge",10%),0) -> 0.3 | S68: 213585 | T68: 0.15 | U68: 141191 | V68: 121032 | W68: 108288 | X68: 0 | Y68: 1296047 | Z68: 2024 | AA68: =(1+PPI)^('Future Trunk Assets - Transport'!Z68-YEAR) -> 1.159916788 | AB68: =IF(Z68<YEAR,1,IF('General Input Sheet'!$E$32="WACC1",1/(1+WACC1)^(Z68-YEAR), IF('General Input Sheet'!$E$32="WACC2",1/(1+WACC2)^(Z68-YEAR),"Check WACC Option in General Input Sheet"))) -> 0.6316903693 | AC68: 1442597 | AD68: 1681864 | AE68: 1062417
B69: R72 | C69: CDE-RI-003 | D69: Road Intersection Project | E69: 15 | F69: Beams Road/Cowie Road Intersection | G69: 4 Lane Road / 2 Lane Road | H69: 0 | I69: Suburban / District | J69: 150 | K69: 280 | L69: 42000 | N69: 533964 | O69: 2016 | P69: =IFERROR(('General Input Sheet'!$G$38/(VLOOKUP(O69,Histindex,3,FALSE))),1) -> 1 | Q69: Existing unsignallised Int | R69: =IFERROR(_xlfn.IFS(AND(Q69<>"New",D69<>"Road Bridge"),30%,D69="Road Bridge",10%),0) -> 0.3 | S69: 160189 | T69: 0.15 | U69: 105893 | V69: 90774 | W69: 81216 | X69: 0 | Y69: 972036 | Z69: 2024 | AA69: =(1+PPI)^('Future Trunk Assets - Transport'!Z69-YEAR) -> 1.159916788 | AB69: =IF(Z69<YEAR,1,IF('General Input Sheet'!$E$32="WACC1",1/(1+WACC1)^(Z69-YEAR), IF('General Input Sheet'!$E$32="WACC2",1/(1+WACC2)^(Z69-YEAR),"Check WACC Option in General Input Sheet"))) -> 0.6316903693 | AC69: 1014036 | AD69: 1178654 | AE69: 744544
B70: R215 | C70: CDL-RB-002 | D70: Road Bridge | E70: 2, 4 | F70: Meadowlands Road Bridge (between Cadogan Street and Wright Street) | G70: 4 Lane Road | H70: 121 | I70: Suburban | J70: 82.18872939 | K70: 0 | L70: 0 | M70: 49325.05785 | N70: 5968332 | O70: 2016 | P70: =IFERROR(('General Input Sheet'!$G$38/(VLOOKUP(O70,Histindex,3,FALSE))),1) -> 1 | Q70: Upgrade | R70: =IFERROR(_xlfn.IFS(AND(Q70<>"New",D70<>"Road Bridge"),30%,D70="Road Bridge",10%),0) -> 0.1 | S70: 596833 | T70: 0.075 | U70: 591805 | V70: 1014616 | W70: 907783 | X70: 0 | Y70: 9079369 | Z70: 2019 | AA70: =(1+PPI)^('Future Trunk Assets - Transport'!Z70-YEAR) -> 1.05720708 | AB70: =IF(Z70<YEAR,1,IF('General Input Sheet'!$E$32="WACC1",1/(1+WACC1)^(Z70-YEAR), IF('General Input Sheet'!$E$32="WACC2",1/(1+WACC2)^(Z70-YEAR),"Check WACC Option in General Input Sheet"))) -> 0.8417615727 | AC70: 9079369 | AD70: 9598773 | AE70: 8079878
B71: R215 | C71: CDL-RC-002 | D71: Road Corridor Project | E71: 4 | F71: Meadowlands Road (Preston Road to bridge over Bulimba Creek) | G71: 4 Lane Road | H71: 455 | I71: Suburban | J71: 1237 | K71: 756.6297494 | L71: 935951 | M71: 2462.962637 | N71: 1120648 | O71: 2016 | P71: =IFERROR(('General Input Sheet'!$G$38/(VLOOKUP(O71,Histindex,3,FALSE))),1) -> 1 | Q71: Upgrade | R71: =IFERROR(_xlfn.IFS(AND(Q71<>"New",D71<>"Road Bridge"),30%,D71="Road Bridge",10%),0) -> 0.3 | S71: 336194 | T71: 0.075 | U71: 111121 | V71: 190510 | W71: 170451 | X71: 0 | Y71: 1928924 | Z71: 2019 | AA71: =(1+PPI)^('Future Trunk Assets - Transport'!Z71-YEAR) -> 1.05720708 | AB71: =IF(Z71<YEAR,1,IF('General Input Sheet'!$E$32="WACC1",1/(1+WACC1)^(Z71-YEAR), IF('General Input Sheet'!$E$32="WACC2",1/(1+WACC2)^(Z71-YEAR),"Check WACC Option in General Input Sheet"))) -> 0.8417615727 | AC71: 2864875 | AD71: 3047189 | AE71: 2565007
B72: R216, R215 | C72: CDL-RC-003 | D72: Road Corridor Project | E72: 2 | F72: Meadowlands Road (bridge over Bulimba Creek to Wright Street) | G72: 4 Lane Road | H72: 301 | I72: Suburban | J72: 442 | K72: 0 | L72: 0 | M72: 2461.289037 | N72: 740848 | O72: 2016 | P72: =IFERROR(('General Input Sheet'!$G$38/(VLOOKUP(O72,Histindex,3,FALSE))),1) -> 1 | Q72: Upgrade | R72: =IFERROR(_xlfn.IFS(AND(Q72<>"New",D72<>"Road Bridge"),30%,D72="Road Bridge",10%),0) -> 0.3 | S72: 222254 | T72: 0.075 | U72: 73461 | V72: 125944 | W72: 112683 | X72: 0 | Y72: 1275190 | Z72: 2019 | AA72: =(1+PPI)^('Future Trunk Assets - Transport'!Z72-YEAR) -> 1.05720708 | AB72: =IF(Z72<YEAR,1,IF('General Input Sheet'!$E$32="WACC1",1/(1+WACC1)^(Z72-YEAR), IF('General Input Sheet'!$E$32="WACC2",1/(1+WACC2)^(Z72-YEAR),"Check WACC Option in General Input Sheet"))) -> 0.8417615727 | AC72: 1275190 | AD72: 1348140 | AE72: 1134812
B73: R113, R93 | C73: CHE-RC-007 | D73: Road Corridor Project | E73: 15 | F73: Murphy Road (Kittyhawk Drive to Ellison Road) | G73: 4 Lane Road | H73: 534 | I73: Suburban | J73: 4097 | K73: 110.9794972 | L73: 454683 | M73: 2464.031835 | N73: 1315793 | O73: 2016 | P73: =IFERROR(('General Input Sheet'!$G$38/(VLOOKUP(O73,Histindex,3,FALSE))),1) -> 1 | Q73: Upgrade | R73: =IFERROR(_xlfn.IFS(AND(Q73<>"New",D73<>"Road Bridge"),30%,D73="Road Bridge",10%),0) -> 0.3 | S73: 394738 | T73: 0.075 | U73: 130471 | V73: 223685 | W73: 200132 | X73: 0 | Y73: 2264819 | Z73: 2019 | AA73: =(1+PPI)^('Future Trunk Assets - Transport'!Z73-YEAR) -> 1.05720708 | AB73: =IF(Z73<YEAR,1,IF('General Input Sheet'!$E$32="WACC1",1/(1+WACC1)^(Z73-YEAR), IF('General Input Sheet'!$E$32="WACC2",1/(1+WACC2)^(Z73-YEAR),"Check WACC Option in General Input Sheet"))) -> 0.8417615727 | AC73: 2719502 | AD73: 2884027 | AE73: 2427663
B74: R113, R112 | C74: CHE-RC-008 | D74: Road Corridor Project | E74: 15 | F74: Murphy Road (Gympie Road to Kittyhawk Drive) | G74: 4 Lane Road | H74: 253 | I74: Suburban | J74: 1820 | K74: 126.1923077 | L74: 229670 | M74: 2466.810277 | N74: 624103 | O74: 2016 | P74: =IFERROR(('General Input Sheet'!$G$38/(VLOOKUP(O74,Histindex,3,FALSE))),1) -> 1 | Q74: Upgrade | R74: =IFERROR(_xlfn.IFS(AND(Q74<>"New",D74<>"Road Bridge"),30%,D74="Road Bridge",10%),0) -> 0.3 | S74: 187231 | T74: 0.075 | U74: 61885 | V74: 106098 | W74: 94926 | X74: 0 | Y74: 1074243 | Z74: 2019 | AA74: =(1+PPI)^('Future Trunk Assets - Transport'!Z74-YEAR) -> 1.05720708 | AB74: =IF(Z74<YEAR,1,IF('General Input Sheet'!$E$32="WACC1",1/(1+WACC1)^(Z74-YEAR), IF('General Input Sheet'!$E$32="WACC2",1/(1+WACC2)^(Z74-YEAR),"Check WACC Option in General Input Sheet"))) -> 0.8417615727 | AC74: 1303913 | AD74: 1383027 | AE74: 1164179
B75: R113 | C75: CHE-RC-009 | D75: Road Corridor Project | E75: 14 | F75: Hamilton Road (Kittyhawk Drive to Pfingst Road) | G75: 4 Lane Road | H75: 792 | I75: Suburban | J75: 4617 | K75: 779.2768031 | L75: 3597921 | M75: 2466.739899 | N75: 1953658 | O75: 2016 | P75: =IFERROR(('General Input Sheet'!$G$38/(VLOOKUP(O75,Histindex,3,FALSE))),1) -> 1 | Q75: Upgrade | R75: =IFERROR(_xlfn.IFS(AND(Q75<>"New",D75<>"Road Bridge"),30%,D75="Road Bridge",10%),0) -> 0.3 | S75: 586097 | T75: 0.075 | U75: 193720 | V75: 332122 | W75: 297151 | X75: 0 | Y75: 3362748 | Z75: 2019 | AA75: =(1+PPI)^('Future Trunk Assets - Transport'!Z75-YEAR) -> 1.05720708 | AB75: =IF(Z75<YEAR,1,IF('General Input Sheet'!$E$32="WACC1",1/(1+WACC1)^(Z75-YEAR), IF('General Input Sheet'!$E$32="WACC2",1/(1+WACC2)^(Z75-YEAR),"Check WACC Option in General Input Sheet"))) -> 0.8417615727 | AC75: 6960669 | AD75: 7429688 | AE75: 6254026
B76: R113 | C76: CHE-RC-010 | D76: Road Corridor Project | E76: 14 | F76: Hamilton Road (Gympie Road to Kingsmill Street) | G76: 4 Lane Road | H76: 322 | I76: Suburban | J76: 477 | K76: 262.0125786 | L76: 124980 | M76: 2979.630435 | N76: 959441 | O76: 2016 | P76: =IFERROR(('General Input Sheet'!$G$38/(VLOOKUP(O76,Histindex,3,FALSE))),1) -> 1 | Q76: Upgrade | R76: =IFERROR(_xlfn.IFS(AND(Q76<>"New",D76<>"Road Bridge"),30%,D76="Road Bridge",10%),0) -> 0.3 | S76: 287832 | T76: 0.075 | U76: 95136 | V76: 163105 | W76: 145931 | X76: 0 | Y76: 1651445 | Z76: 2019 | AA76: =(1+PPI)^('Future Trunk Assets - Transport'!Z76-YEAR) -> 1.05720708 | AB76: =IF(Z76<YEAR,1,IF('General Input Sheet'!$E$32="WACC1",1/(1+WACC1)^(Z76-YEAR), IF('General Input Sheet'!$E$32="WACC2",1/(1+WACC2)^(Z76-YEAR),"Check WACC Option in General Input Sheet"))) -> 0.8417615727 | AC76: 1776425 | AD76: 1880509 | AE76: 1582940
B77: R113 | C77: CHE-RC-011 | D77: Road Corridor Project | E77: 14 | F77: Hamilton Road (Pfingst Road to Newman Road) | G77: 4 Lane Road | H77: 145 | I77: Suburban | J77: 964 | K77: 764.5819502 | L77: 737057 | M77: 2737.565517 | N77: 396947 | O77: 2016 | P77: =IFERROR(('General Input Sheet'!$G$38/(VLOOKUP(O77,Histindex,3,FALSE))),1) -> 1 | Q77: Upgrade | R77: =IFERROR(_xlfn.IFS(AND(Q77<>"New",D77<>"Road Bridge"),30%,D77="Road Bridge",10%),0) -> 0.3 | S77: 119084 | T77: 0.075 | U77: 39360 | V77: 67481 | W77: 60376 | X77: 0 | Y77: 683248 | Z77: 2019 | AA77: =(1+PPI)^('Future Trunk Assets - Transport'!Z77-YEAR) -> 1.05720708 | AB77: =IF(Z77<YEAR,1,IF('General Input Sheet'!$E$32="WACC1",1/(1+WACC1)^(Z77-YEAR), IF('General Input Sheet'!$E$32="WACC2",1/(1+WACC2)^(Z77-YEAR),"Check WACC Option in General Input Sheet"))) -> 0.8417615727 | AC77: 1420305 | AD77: 1516064 | AE77: 1276164
B78: R113 | C78: CHE-RI-001 | D78: Road Intersection Project | E78: 15 | F78: Murphy Road/Kittyhawk Drive Intersection | G78: 4 Lane Road / 2 Lane Road | H78: 0 | I78: Suburban / District | J78: 0 | K78: 0 | L78: 0 | N78: 415305 | O78: 2016 | P78: =IFERROR(('General Input Sheet'!$G$38/(VLOOKUP(O78,Histindex,3,FALSE))),1) -> 1 | Q78: Existing signallised Int | R78: =IFERROR(_xlfn.IFS(AND(Q78<>"New",D78<>"Road Bridge"),30%,D78="Road Bridge",10%),0) -> 0.3 | S78: 124592 | T78: 0.075 | U78: 41181 | V78: 70602 | W78: 63168 | X78: 0 | Y78: 714848 | Z78: 2019 | AA78: =(1+PPI)^('Future Trunk Assets - Transport'!Z78-YEAR) -> 1.05720708 | AB78: =IF(Z78<YEAR,1,IF('General Input Sheet'!$E$32="WACC1",1/(1+WACC1)^(Z78-YEAR), IF('General Input Sheet'!$E$32="WACC2",1/(1+WACC2)^(Z78-YEAR),"Check WACC Option in General Input Sheet"))) -> 0.8417615727 | AC78: 714848 | AD78: 755742 | AE78: 636155
B79: R113 | C79: CHE-RI-006 | D79: Road Intersection Project | E79: 14 | F79: Hamilton Road/Kittyhawk Drive Intersection | G79: 4 Lane Road / 2 Lane Road | H79: 0 | I79: Suburban / District | J79: 600 | K79: 980.5 | L79: 588300 | N79: 474634 | O79: 2016 | P79: =IFERROR(('General Input Sheet'!$G$38/(VLOOKUP(O79,Histindex,3,FALSE))),1) -> 1 | Q79: Existing signallised Int | R79: =IFERROR(_xlfn.IFS(AND(Q79<>"New",D79<>"Road Bridge"),30%,D79="Road Bridge",10%),0) -> 0.3 | S79: 142390 | T79: =IF(Z79="","",IF(Z79<=YEAR+5,0.075,IF(AND(Z79>YEAR+5,Z79<=YEAR+10),0.15,IF(AND(Z79>YEAR+10,Z79<=YEAR+20),0.2,IF(Z79>YEAR+20,0.25,""))))) -> 0.075 | U79: 47064 | V79: 80688 | W79: 72192 | X79: 0 | Y79: 816968 | Z79: 2019 | AA79: =(1+PPI)^('Future Trunk Assets - Transport'!Z79-YEAR) -> 1.05720708 | AB79: =IF(Z79<YEAR,1,IF('General Input Sheet'!$E$32="WACC1",1/(1+WACC1)^(Z79-YEAR), IF('General Input Sheet'!$E$32="WACC2",1/(1+WACC2)^(Z79-YEAR),"Check WACC Option in General Input Sheet"))) -> 0.8417615727 | AC79: 1405268 | AD79: 1497239 | AE79: 1260318
B80: R113 | C80: CHE-RI-007 | D80: Road Intersection Project | E80: 14 | F80: Hamilton Road/Pfingst Road Intersection | G80: 4 Lane Road / 2 Lane Road | H80: 0 | I80: Suburban / District | J80: 300 | K80: =IFERROR(L80/J80,0) -> 895 | L80: 268500 | M80: =IFERROR(N80/H80,"") ->  | N80: 415305 | O80: 2016 | P80: =IFERROR(('General Input Sheet'!$G$38/(VLOOKUP(O80,Histindex,3,FALSE))),1) -> 1 | Q80: Existing signallised Int | R80: =IFERROR(_xlfn.IFS(AND(Q80<>"New",D80<>"Road Bridge"),30%,D80="Road Bridge",10%),0) -> 0.3 | S80: =ROUND(N80*R80,0) -> 124592 | T80: 0.075 | U80: =ROUND((N80+V80+W80)*T80,0) -> 41181 | V80: =ROUND(N80*17%,0) -> 70602 | W80: =ROUND((N80+V80)*13%,0) -> 63168 | X80: 0 | Y80: =ROUND(N80+S80+U80+V80+W80,0) -> 714848 | Z80: 2019 | AA80: =(1+PPI)^('Future Trunk Assets - Transport'!Z80-YEAR) -> 1.05720708 | AB80: =IF(Z80<YEAR,1,IF('General Input Sheet'!$E$32="WACC1",1/(1+WACC1)^(Z80-YEAR), IF('General Input Sheet'!$E$32="WACC2",1/(1+WACC2)^(Z80-YEAR),"Check WACC Option in General Input Sheet"))) -> 0.8417615727 | AC80: =ROUND(Y80+L80-X80,0) -> 983348 | AD80: =IFERROR(ROUND((Y80*AA80)+((1+Landind)^(Z80-YEAR)*L80),0),0) -> 1044887 | AE80: =IFERROR(ROUND((AD80*AB80),0),0) -> 879546
B81: R112 | C81: CHW-RC-003 | D81: Road Corridor Project | E81: 14 | F81: Rode Road (Maundrell Terrace to bridge over Downfall Creek) | G81: 4 Lane Road | H81: 584 | I81: Suburban | J81: 3338 | K81: 698.5482325 | L81: 2331754 | M81: 2465.82363 | N81: 1440041 | O81: 2016 | P81: =IFERROR(('General Input Sheet'!$G$38/(VLOOKUP(O81,Histindex,3,FALSE))),1) -> 1 | Q81: Upgrade | R81: =IFERROR(_xlfn.IFS(AND(Q81<>"New",D81<>"Road Bridge"),30%,D81="Road Bridge",10%),0) -> 0.3 | S81: 432012 | T81: 0.075 | U81: 142791 | V81: 244807 | W81: 219030 | X81: 0 | Y81: 2478681 | Z81: 2019 | AA81: =(1+PPI)^('Future Trunk Assets - Transport'!Z81-YEAR) -> 1.05720708 | AB81: =IF(Z81<YEAR,1,IF('General Input Sheet'!$E$32="WACC1",1/(1+WACC1)^(Z81-YEAR), IF('General Input Sheet'!$E$32="WACC2",1/(1+WACC2)^(Z81-YEAR),"Check WACC Option in General Input Sheet"))) -> 0.8417615727 | AC81: 4810435 | AD81: 5131523 | AE81: 4319519
B82: R112 | C82: CHW-RC-004 | D82: Road Corridor Project | E82: 14 | F82: Rode Road (Maundrell Terrace to Webster Road) | G82: 4 Lane Road | H82: 375 | I82: Suburban | J82: 642 | K82: 914.3800623 | L82: 587032 | M82: 2462.245333 | N82: 923342 | O82: 2016 | P82: =IFERROR(('General Input Sheet'!$G$38/(VLOOKUP(O82,Histindex,3,FALSE))),1) -> 1 | Q82: Upgrade | R82: =IFERROR(_xlfn.IFS(AND(Q82<>"New",D82<>"Road Bridge"),30%,D82="Road Bridge",10%),0) -> 0.3 | S82: 277003 | T82: 0.075 | U82: 91556 | V82: 156968 | W82: 140440 | X82: 0 | Y82: 1589309 | Z82: 2019 | AA82: =(1+PPI)^('Future Trunk Assets - Transport'!Z82-YEAR) -> 1.05720708 | AB82: =IF(Z82<YEAR,1,IF('General Input Sheet'!$E$32="WACC1",1/(1+WACC1)^(Z82-YEAR), IF('General Input Sheet'!$E$32="WACC2",1/(1+WACC2)^(Z82-YEAR),"Check WACC Option in General Input Sheet"))) -> 0.8417615727 | AC82: 2176341 | AD82: 2312398 | AE82: 1946488
B83: R112 | C83: CHW-RC-005 | D83: Road Corridor Project | E83: 14 | F83: Rode Road (Maundrell Terrace to Webster Road) | G83: 4 Lane Road | H83: 102 | I83: Suburban | J83: 0 | K83: 0 | L83: 0 | M83: 3302.460784 | N83: 336851 | O83: 2016 | P83: =IFERROR(('General Input Sheet'!$G$38/(VLOOKUP(O83,Histindex,3,FALSE))),1) -> 1 | Q83: Upgrade | R83: =IFERROR(_xlfn.IFS(AND(Q83<>"New",D83<>"Road Bridge"),30%,D83="Road Bridge",10%),0) -> 0.3 | S83: 101055 | T83: 0.075 | U83: 33401 | V83: 57265 | W83: 51235 | X83: 0 | Y83: 579807 | Z83: 2019 | AA83: =(1+PPI)^('Future Trunk Assets - Transport'!Z83-YEAR) -> 1.05720708 | AB83: =IF(Z83<YEAR,1,IF('General Input Sheet'!$E$32="WACC1",1/(1+WACC1)^(Z83-YEAR), IF('General Input Sheet'!$E$32="WACC2",1/(1+WACC2)^(Z83-YEAR),"Check WACC Option in General Input Sheet"))) -> 0.8417615727 | AC83: 579807 | AD83: 612976 | AE83: 515980
B84: R112 | C84: CHW-RI-001 | D84: Road Intersection Project | E84: 15 | F84: Hamilton Road/Maundrell Terrace Intersection | G84: 4 Lane Road / 4 Lane Road | H84: 0 | I84: Suburban / Suburban | J84: 450 | K84: 936 | L84: 421200 | N84: 544790 | O84: 2016 | P84: =IFERROR(('General Input Sheet'!$G$38/(VLOOKUP(O84,Histindex,3,FALSE))),1) -> 1 | Q84: Existing signallised Int | R84: =IFERROR(_xlfn.IFS(AND(Q84<>"New",D84<>"Road Bridge"),30%,D84="Road Bridge",10%),0) -> 0.3 | S84: 163437 | T84: 0.15 | U84: 108040 | V84: 92614 | W84: 82863 | X84: 0 | Y84: 991744 | Z84: 2024 | AA84: =(1+PPI)^('Future Trunk Assets - Transport'!Z84-YEAR) -> 1.159916788 | AB84: =IF(Z84<YEAR,1,IF('General Input Sheet'!$E$32="WACC1",1/(1+WACC1)^(Z84-YEAR), IF('General Input Sheet'!$E$32="WACC2",1/(1+WACC2)^(Z84-YEAR),"Check WACC Option in General Input Sheet"))) -> 0.6316903693 | AC84: 1412944 | AD84: 1663532 | AE84: 1050837
B85: R112 | C85: CHW-RI-002 | D85: Road Intersection Project | E85: 14 | F85: Rode Road/Webster Road Intersection | G85: 4 Lane Road / 4 Lane Road | H85: 0 | I85: Suburban / Suburban | J85: 300 | K85: 718 | L85: 215400 | N85: 544790 | O85: 2016 | P85: =IFERROR(('General Input Sheet'!$G$38/(VLOOKUP(O85,Histindex,3,FALSE))),1) -> 1 | Q85: Existing signallised Int | R85: =IFERROR(_xlfn.IFS(AND(Q85<>"New",D85<>"Road Bridge"),30%,D85="Road Bridge",10%),0) -> 0.3 | S85: 163437 | T85: 0.075 | U85: 54020 | V85: 92614 | W85: 82863 | X85: 0 | Y85: 937724 | Z85: 2019 | AA85: =(1+PPI)^('Future Trunk Assets - Transport'!Z85-YEAR) -> 1.05720708 | AB85: =IF(Z85<YEAR,1,IF('General Input Sheet'!$E$32="WACC1",1/(1+WACC1)^(Z85-YEAR), IF('General Input Sheet'!$E$32="WACC2",1/(1+WACC2)^(Z85-YEAR),"Check WACC Option in General Input Sheet"))) -> 0.8417615727 | AC85: 1153124 | AD85: 1223331 | AE85: 1029753
B86: R112 | C86: CHW-RI-003 | D86: Road Intersection Project | E86: 14 | F86: Rode Road/Maundrell Terrace Intersection | G86: 4 Lane Road / 4 Lane Road | H86: 0 | I86: Suburban / Suburban | J86: 300 | K86: 936 | L86: 280800 | N86: 544790 | O86: 2016 | P86: =IFERROR(('General Input Sheet'!$G$38/(VLOOKUP(O86,Histindex,3,FALSE))),1) -> 1 | Q86: Existing signallised Int | R86: =IFERROR(_xlfn.IFS(AND(Q86<>"New",D86<>"Road Bridge"),30%,D86="Road Bridge",10%),0) -> 0.3 | S86: 163437 | T86: 0.075 | U86: 54020 | V86: 92614 | W86: 82863 | X86: 0 | Y86: 937724 | Z86: 2019 | AA86: =(1+PPI)^('Future Trunk Assets - Transport'!Z86-YEAR) -> 1.05720708 | AB86: =IF(Z86<YEAR,1,IF('General Input Sheet'!$E$32="WACC1",1/(1+WACC1)^(Z86-YEAR), IF('General Input Sheet'!$E$32="WACC2",1/(1+WACC2)^(Z86-YEAR),"Check WACC Option in General Input Sheet"))) -> 0.8417615727 | AC86: 1218524 | AD86: 1293759 | AE86: 1089037
B87: R195 | C87: CLL-RC-004 | D87: Road Corridor Project | E87: 5 | F87: Wynnum Road (Southgate Avenue to Creek Road) | G87: 6 Lane Road | H87: 275 | I87: Arterial | J87: 496 | K87: 873.3467742 | L87: 433180 | M87: 3280.829091 | N87: 902228 | O87: 2016 | P87: =IFERROR(('General Input Sheet'!$G$38/(VLOOKUP(O87,Histindex,3,FALSE))),1) -> 1 | Q87: Upgrade | R87: =IFERROR(_xlfn.IFS(AND(Q87<>"New",D87<>"Road Bridge"),30%,D87="Road Bridge",10%),0) -> 0.3 | S87: 270668 | T87: 0.15 | U87: 178925 | V87: 153379 | W87: 137229 | X87: 0 | Y87: 1642429 | Z87: 2024 | AA87: =(1+PPI)^('Future Trunk Assets - Transport'!Z87-YEAR) -> 1.159916788 | AB87: =IF(Z87<YEAR,1,IF('General Input Sheet'!$E$32="WACC1",1/(1+WACC1)^(Z87-YEAR), IF('General Input Sheet'!$E$32="WACC2",1/(1+WACC2)^(Z87-YEAR),"Check WACC Option in General Input Sheet"))) -> 0.6316903693 | AC87: 2075609 | AD87: 2432869 | AE87: 1536820
B88: R195 | C88: CLL-RI-003 | D88: Road Intersection Project | E88: 5 | F88: Wynnum Road/Creek Road Intersection | G88: 6 Lane Road / 6 Lane Road | H88: 0 | I88: Arterial / Arterial | J88: 150 | K88: 790 | L88: 118500 | N88: 763684 | O88: 2016 | P88: =IFERROR(('General Input Sheet'!$G$38/(VLOOKUP(O88,Histindex,3,FALSE))),1) -> 1 | Q88: Existing signallised Int | R88: =IFERROR(_xlfn.IFS(AND(Q88<>"New",D88<>"Road Bridge"),30%,D88="Road Bridge",10%),0) -> 0.3 | S88: 229105 | T88: 0.15 | U88: 151450 | V88: 129826 | W88: 116156 | X88: 0 | Y88: 1390221 | Z88: 2024 | AA88: =(1+PPI)^('Future Trunk Assets - Transport'!Z88-YEAR) -> 1.159916788 | AB88: =IF(Z88<YEAR,1,IF('General Input Sheet'!$E$32="WACC1",1/(1+WACC1)^(Z88-YEAR), IF('General Input Sheet'!$E$32="WACC2",1/(1+WACC2)^(Z88-YEAR),"Check WACC Option in General Input Sheet"))) -> 0.6316903693 | AC88: 1508721 | AD88: 1756921 | AE88: 1109830
B89: R195 | C89: CLL-RI-004 | D89: Road Intersection Project | E89: 5 | F89: Wynnum Road/Southgate Avenue/Cannondale Street Intersection | G89: 6 Lane Road / 2 Lane Road | H89: 0 | I89: Arterial / District | J89: 450 | K89: 1456.333333 | L89: 655350 | N89: 637296 | O89: 2016 | P89: =IFERROR(('General Input Sheet'!$G$38/(VLOOKUP(O89,Histindex,3,FALSE))),1) -> 1 | Q89: Existing signallised Int | R89: =IFERROR(_xlfn.IFS(AND(Q89<>"New",D89<>"Road Bridge"),30%,D89="Road Bridge",10%),0) -> 0.3 | S89: 191189 | T89: 0.15 | U89: 126385 | V89: 108340 | W89: 96933 | X89: 0 | Y89: 1160143 | Z89: 2024 | AA89: =(1+PPI)^('Future Trunk Assets - Transport'!Z89-YEAR) -> 1.159916788 | AB89: =IF(Z89<YEAR,1,IF('General Input Sheet'!$E$32="WACC1",1/(1+WACC1)^(Z89-YEAR), IF('General Input Sheet'!$E$32="WACC2",1/(1+WACC2)^(Z89-YEAR),"Check WACC Option in General Input Sheet"))) -> 0.6316903693 | AC89: 1815493 | AD89: 2144150 | AE89: 1354439
B90: R211 | C90: CLR-RI-001 | D90: Road Intersection Project | E90: 9 | F90: Coonan Street/Wharf Street Intersection | G90: 6 Lane Road / 6 Lane Road | H90: 0 | I90: Arterial / Arterial | J90: 150 | K90: 936 | L90: 140400 | N90: 552011 | O90: 2016 | P90: =IFERROR(('General Input Sheet'!$G$38/(VLOOKUP(O90,Histindex,3,FALSE))),1) -> 1 | Q90: Existing signallised Int | R90: =IFERROR(_xlfn.IFS(AND(Q90<>"New",D90<>"Road Bridge"),30%,D90="Road Bridge",10%),0) -> 0.3 | S90: 165603 | T90: 0.15 | U90: 109472 | V90: 93842 | W90: 83961 | X90: 0 | Y90: 1004889 | Z90: 2024 | AA90: =(1+PPI)^('Future Trunk Assets - Transport'!Z90-YEAR) -> 1.159916788 | AB90: =IF(Z90<YEAR,1,IF('General Input Sheet'!$E$32="WACC1",1/(1+WACC1)^(Z90-YEAR), IF('General Input Sheet'!$E$32="WACC2",1/(1+WACC2)^(Z90-YEAR),"Check WACC Option in General Input Sheet"))) -> 0.6316903693 | AC90: 1145289 | AD90: 1336651 | AE90: 844350
B91: R213 | C91: COO-LC-001 | D91: Open Level Crossing | E91: 4 | F91: Cavendish Road Open Level Crossing | G91: 4 Lane Road | H91: 0 | I91: Suburban | J91: 0 | K91: 0 | L91: 35000000 | N91: 173037467 | O91: 2016 | P91: =IFERROR(('General Input Sheet'!$G$38/(VLOOKUP(O91,Histindex,3,FALSE))),1) -> 1 | Q91: - | R91: =IFERROR(_xlfn.IFS(AND(Q91<>"New",D91<>"Road Bridge"),30%,D91="Road Bridge",10%),0) -> 0.3 | S91: =ROUND(N91*R91,0) -> 51911240 | T91: 0.15 | U91: 34315925 | V91: 29416369 | W91: 26318999 | X91: 267750000 | Y91: 315000000 | Z91: 2024 | AA91: =(1+PPI)^('Future Trunk Assets - Transport'!Z91-YEAR) -> 1.159916788 | AB91: =IF(Z91<YEAR,1,IF('General Input Sheet'!$E$32="WACC1",1/(1+WACC1)^(Z91-YEAR), IF('General Input Sheet'!$E$32="WACC2",1/(1+WACC2)^(Z91-YEAR),"Check WACC Option in General Input Sheet"))) -> 0.6316903693 | AC91: 82250000 | AD91: 408017890 | AE91: 257740972
B92: R213 | C92: COO-RC-005 | D92: Road Corridor Project | E92: 4 | F92: Cavendish Road (Holdsworth Street to Wakefield Street) | G92: 4 Lane Road | H92: 159 | I92: Suburban | J92: 799 | K92: 1093.953692 | L92: 874069 | M92: 3311.874214 | N92: 526588 | O92: 2016 | P92: =IFERROR(('General Input Sheet'!$G$38/(VLOOKUP(O92,Histindex,3,FALSE))),1) -> 1 | Q92: Upgrade | R92: =IFERROR(_xlfn.IFS(AND(Q92<>"New",D92<>"Road Bridge"),30%,D92="Road Bridge",10%),0) -> 0.3 | S92: 157976 | T92: 0.075 | U92: 52215 | V92: 89520 | W92: 80094 | X92: 0 | Y92: 906393 | Z92: 2019 | AA92: =(1+PPI)^('Future Trunk Assets - Transport'!Z92-YEAR) -> 1.05720708 | AB92: =IF(Z92<YEAR,1,IF('General Input Sheet'!$E$32="WACC1",1/(1+WACC1)^(Z92-YEAR), IF('General Input Sheet'!$E$32="WACC2",1/(1+WACC2)^(Z92-YEAR),"Check WACC Option in General Input Sheet"))) -> 0.8417615727 | AC92: 1780462 | AD92: 1899522 | AE92: 1598945
B93: R213, R193 | C93: COO-RC-006 | D93: Road Corridor Project | E93: 4 | F93: Cavendish Road (Wakefield Street to Stanley Street East) | G93: 4 Lane Road | H93: 620 | I93: Suburban | J93: 3775 | K93: 1014.99947 | L93: 3831623 | M93: 2466.15 | N93: 1529013 | O93: 2016 | P93: =IFERROR(('General Input Sheet'!$G$38/(VLOOKUP(O93,Histindex,3,FALSE))),1) -> 1 | Q93: Upgrade | R93: =IFERROR(_xlfn.IFS(AND(Q93<>"New",D93<>"Road Bridge"),30%,D93="Road Bridge",10%),0) -> 0.3 | S93: 458704 | T93: 0.075 | U93: 151613 | V93: 259932 | W93: 232563 | X93: 0 | Y93: 2631825 | Z93: 2019 | AA93: =(1+PPI)^('Future Trunk Assets - Transport'!Z93-YEAR) -> 1.05720708 | AB93: =IF(Z93<YEAR,1,IF('General Input Sheet'!$E$32="WACC1",1/(1+WACC1)^(Z93-YEAR), IF('General Input Sheet'!$E$32="WACC2",1/(1+WACC2)^(Z93-YEAR),"Check WACC Option in General Input Sheet"))) -> 0.8417615727 | AC93: 6463448 | AD93: 6908623 | AE93: 5815413
B94: R193 | C94: COO-RC-007 | D94: Road Corridor Project | E94: 8, 4 | F94: Stanley Street East (Cavendish Road to bridge over Norman Creek) | G94: 4 Lane Road | H94: 350 | I94: Suburban | J94: 1207 | K94: 58.36288318 | L94: 70444 | M94: 2464.385714 | N94: 862535 | O94: 2016 | P94: =IFERROR(('General Input Sheet'!$G$38/(VLOOKUP(O94,Histindex,3,FALSE))),1) -> 1 | Q94: Upgrade | R94: =IFERROR(_xlfn.IFS(AND(Q94<>"New",D94<>"Road Bridge"),30%,D94="Road Bridge",10%),0) -> 0.3 | S94: 258761 | T94: 0.15 | U94: 171054 | V94: 146631 | W94: 131192 | X94: 0 | Y94: 1570173 | Z94: 2024 | AA94: =(1+PPI)^('Future Trunk Assets - Transport'!Z94-YEAR) -> 1.159916788 | AB94: =IF(Z94<YEAR,1,IF('General Input Sheet'!$E$32="WACC1",1/(1+WACC1)^(Z94-YEAR), IF('General Input Sheet'!$E$32="WACC2",1/(1+WACC2)^(Z94-YEAR),"Check WACC Option in General Input Sheet"))) -> 0.6316903693 | AC94: 1640617 | AD94: 1907099 | AE94: 1204696
B95: R213 | C95: COO-RC-008 | D95: Road Corridor Project | E95: 4 | F95: Cavendish Road (Old Cleveland Road to Holdsworth Street) | G95: 4 Lane Road | H95: 76 | I95: Suburban | J95: 588 | K95: 1327.238095 | L95: 780416 | M95: 4009.855263 | N95: 304749 | O95: 2016 | P95: =IFERROR(('General Input Sheet'!$G$38/(VLOOKUP(O95,Histindex,3,FALSE))),1) -> 1 | Q95: - | R95: =IFERROR(_xlfn.IFS(AND(Q95<>"New",D95<>"Road Bridge"),30%,D95="Road Bridge",10%),0) -> 0.3 | S95: 91425 | T95: 0.075 | U95: 30218 | V95: 51807 | W95: 46352 | X95: 0 | Y95: 524551 | Z95: 2019 | AA95: =(1+PPI)^('Future Trunk Assets - Transport'!Z95-YEAR) -> 1.05720708 | AB95: =IF(Z95<YEAR,1,IF('General Input Sheet'!$E$32="WACC1",1/(1+WACC1)^(Z95-YEAR), IF('General Input Sheet'!$E$32="WACC2",1/(1+WACC2)^(Z95-YEAR),"Check WACC Option in General Input Sheet"))) -> 0.8417615727 | AC95: 1304967 | AD95: 1394982 | AE95: 1174242
B96: R193 | C96: COO-RI-001 | D96: Road Intersection Project | E96: 4 | F96: Cavendish Road/Stanley Street East Intersection | G96: 4 Lane Road / 4 Lane Road | H96: 0 | I96: Suburban / Suburban | J96: 150 | K96: 890 | L96: 133500 | N96: 544790 | O96: 2016 | P96: =IFERROR(('General Input Sheet'!$G$38/(VLOOKUP(O96,Histindex,3,FALSE))),1) -> 1 | Q96: Existing signallised Int | R96: =IFERROR(_xlfn.IFS(AND(Q96<>"New",D96<>"Road Bridge"),30%,D96="Road Bridge",10%),0) -> 0.3 | S96: 163437 | T96: 0.075 | U96: 54020 | V96: 92614 | W96: 82863 | X96: 0 | Y96: 937724 | Z96: 2019 | AA96: =(1+PPI)^('Future Trunk Assets - Transport'!Z96-YEAR) -> 1.05720708 | AB96: =IF(Z96<YEAR,1,IF('General Input Sheet'!$E$32="WACC1",1/(1+WACC1)^(Z96-YEAR), IF('General Input Sheet'!$E$32="WACC2",1/(1+WACC2)^(Z96-YEAR),"Check WACC Option in General Input Sheet"))) -> 0.8417615727 | AC96: 1071224 | AD96: 1135133 | AE96: 955511
B97: R213 | C97: COO-RI-002 | D97: Road Intersection Project | E97: 4 | F97: Cavendish Road/Holdsworth Street | G97: 4 Lane Road / 4 Lane Road | H97: 0 | I97: Suburban / Suburban | J97: 300 | K97: 1630 | L97: 489000 | N97: 741918 | O97: 2016 | P97: =IFERROR(('General Input Sheet'!$G$38/(VLOOKUP(O97,Histindex,3,FALSE))),1) -> 1 | Q97: Existing unsignallised Int | R97: =IFERROR(_xlfn.IFS(AND(Q97<>"New",D97<>"Road Bridge"),30%,D97="Road Bridge",10%),0) -> 0.3 | S97: 222575 | T97: 0.075 | U97: 73567 | V97: 126126 | W97: 112846 | X97: 0 | Y97: 1277032 | Z97: 2019 | AA97: =(1+PPI)^('Future Trunk Assets - Transport'!Z97-YEAR) -> 1.05720708 | AB97: =IF(Z97<YEAR,1,IF('General Input Sheet'!$E$32="WACC1",1/(1+WACC1)^(Z97-YEAR), IF('General Input Sheet'!$E$32="WACC2",1/(1+WACC2)^(Z97-YEAR),"Check WACC Option in General Input Sheet"))) -> 0.8417615727 | AC97: 1766032 | AD97: 1876687 | AE97: 1579723
B98: R214 | C98: COO-RI-003 | D98: Road Intersection Project | E98: 4 | F98: Cavendish Road/Chatsworth Road Intersection | G98: 4 Lane Road / 4 Lane Road | H98: 0 | I98: Suburban / Suburban | J98: 300 | K98: 1138 | L98: 341400 | N98: 544790 | O98: 2016 | P98: =IFERROR(('General Input Sheet'!$G$38/(VLOOKUP(O98,Histindex,3,FALSE))),1) -> 1 | Q98: Existing signallised Int | R98: =IFERROR(_xlfn.IFS(AND(Q98<>"New",D98<>"Road Bridge"),30%,D98="Road Bridge",10%),0) -> 0.3 | S98: 163437 | T98: 0.075 | U98: 54020 | V98: 92614 | W98: 82863 | X98: 0 | Y98: 937724 | Z98: 2019 | AA98: =(1+PPI)^('Future Trunk Assets - Transport'!Z98-YEAR) -> 1.05720708 | AB98: =IF(Z98<YEAR,1,IF('General Input Sheet'!$E$32="WACC1",1/(1+WACC1)^(Z98-YEAR), IF('General Input Sheet'!$E$32="WACC2",1/(1+WACC2)^(Z98-YEAR),"Check WACC Option in General Input Sheet"))) -> 0.8417615727 | AC98: 1279124 | AD98: 1359019 | AE98: 1143970
B99: R214 | C99: COO-RI-004 | D99: Road Intersection Project | E99: 4 | F99: Old Cleveland Road/Leicester Street Intersection | G99: 6 Lane Road / 2 Lane Road | H99: 0 | I99: Arterial / District | J99: 300 | K99: 1627 | L99: 488100 | N99: 592269 | O99: 2016 | P99: =IFERROR(('General Input Sheet'!$G$38/(VLOOKUP(O99,Histindex,3,FALSE))),1) -> 1 | Q99: Existing unsignallised Int | R99: =IFERROR(_xlfn.IFS(AND(Q99<>"New",D99<>"Road Bridge"),30%,D99="Road Bridge",10%),0) -> 0.3 | S99: 177681 | T99: 0.15 | U99: 117456 | V99: 100686 | W99: 90084 | X99: 0 | Y99: 1078176 | Z99: 2024 | AA99: =(1+PPI)^('Future Trunk Assets - Transport'!Z99-YEAR) -> 1.159916788 | AB99: =IF(Z99<YEAR,1,IF('General Input Sheet'!$E$32="WACC1",1/(1+WACC1)^(Z99-YEAR), IF('General Input Sheet'!$E$32="WACC2",1/(1+WACC2)^(Z99-YEAR),"Check WACC Option in General Input Sheet"))) -> 0.6316903693 | AC99: 1566276 | AD99: 1845297 | AE99: 1165656
B100: R213 | C100: COO-RI-005 | D100: Road Intersection Project | E100: 4 | F100: Old Cleveland Road/Cavendish Road Intersection | G100: 6 Lane Road / 4 Lane Road | H100: 0 | I100: Arterial / Suburban | J100: 600 | K100: 1694.5 | L100: 1016700 | N100: 723750 | O100: 2016 | P100: =IFERROR(('General Input Sheet'!$G$38/(VLOOKUP(O100,Histindex,3,FALSE))),1) -> 1 | Q100: Existing signallised Int | R100: =IFERROR(_xlfn.IFS(AND(Q100<>"New",D100<>"Road Bridge"),30%,D100="Road Bridge",10%),0) -> 0.3 | S100: 217125 | T100: 0.075 | U100: 71765 | V100: 123038 | W100: 110082 | X100: 0 | Y100: 1245760 | Z100: 2019 | AA100: =(1+PPI)^('Future Trunk Assets - Transport'!Z100-YEAR) -> 1.05720708 | AB100: =IF(Z100<YEAR,1,IF('General Input Sheet'!$E$32="WACC1",1/(1+WACC1)^(Z100-YEAR), IF('General Input Sheet'!$E$32="WACC2",1/(1+WACC2)^(Z100-YEAR),"Check WACC Option in General Input Sheet"))) -> 0.8417615727 | AC100: 2262460 | AD100: 2411901 | AE100: 2030246
B101: R273 | C101: COP-LC-001 | D101: Open Level Crossing | E101: 7 | F101: Boundary Road Open Level Crossing | G101: 4 Lane Road | H101: 0 | I101: Suburban | J101: 0 | K101: 0 | L101: 23000000 | N101: 113710335 | O101: 2016 | P101: =IFERROR(('General Input Sheet'!$G$38/(VLOOKUP(O101,Histindex,3,FALSE))),1) -> 1 | Q101: - | R101: =IFERROR(_xlfn.IFS(AND(Q101<>"New",D101<>"Road Bridge"),30%,D101="Road Bridge",10%),0) -> 0.3 | S101: 34113101 | T101: 0.15 | U101: 22550465 | V101: 19330757 | W101: 17295342 | X101: 175950000 | Y101: 207000000 | Z101: 2024 | AA101: =(1+PPI)^('Future Trunk Assets - Transport'!Z101-YEAR) -> 1.159916788 | AB101: =IF(Z101<YEAR,1,IF('General Input Sheet'!$E$32="WACC1",1/(1+WACC1)^(Z101-YEAR), IF('General Input Sheet'!$E$32="WACC2",1/(1+WACC2)^(Z101-YEAR),"Check WACC Option in General Input Sheet"))) -> 0.6316903693 | AC101: 54050000 | AD101: 268126042 | AE101: 169372638
B102: R313 | C102: CVE-RC-002 | D102: Road Corridor Project | E102: 6 | F102: Ormskirk Street (Benhiam Street to Hamish Street) | G102: 2 Lane Road | H102: 372 | I102: District | J102: 4072 | K102: 103.5658153 | L102: 421720 | M102: 2536.483871 | N102: 943572 | O102: 2016 | P102: =IFERROR(('General Input Sheet'!$G$38/(VLOOKUP(O102,Histindex,3,FALSE))),1) -> 1 | Q102: New | R102: =IFERROR(_xlfn.IFS(AND(Q102<>"New",D102<>"Road Bridge"),30%,D102="Road Bridge",10%),0) -> 0 | S102: 0 | T102: 0.15 | U102: 187124 | V102: 160407 | W102: 143517 | X102: 0 | Y102: 1434620 | Z102: 2024 | AA102: =(1+PPI)^('Future Trunk Assets - Transport'!Z102-YEAR) -> 1.159916788 | AB102: =IF(Z102<YEAR,1,IF('General Input Sheet'!$E$32="WACC1",1/(1+WACC1)^(Z102-YEAR), IF('General Input Sheet'!$E$32="WACC2",1/(1+WACC2)^(Z102-YEAR),"Check WACC Option in General Input Sheet"))) -> 0.6316903693 | AC102: 1856340 | AD102: 2177865 | AE102: 1375736
B103: R313 | C103: CVE-RC-007 | D103: Road Corridor Project | E103: 6 | F103: Benhiam Street (Benhiam Street to Highlands Drive) | G103: 2 Lane Road | H103: 310 | I103: District | J103: 5975 | K103: 177.505272 | L103: 1060594 | M103: 2535.835484 | N103: 786109 | O103: 2016 | P103: =IFERROR(('General Input Sheet'!$G$38/(VLOOKUP(O103,Histindex,3,FALSE))),1) -> 1 | Q103: New | R103: =IFERROR(_xlfn.IFS(AND(Q103<>"New",D103<>"Road Bridge"),30%,D103="Road Bridge",10%),0) -> 0 | S103: =ROUND(N103*R103,0) -> 0 | T103: 0.15 | U103: 155897 | V103: 133639 | W103: 119567 | X103: 0 | Y103: 1195212 | Z103: 2024 | AA103: =(1+PPI)^('Future Trunk Assets - Transport'!Z103-YEAR) -> 1.159916788 | AB103: =IF(Z103<YEAR,1,IF('General Input Sheet'!$E$32="WACC1",1/(1+WACC1)^(Z103-YEAR), IF('General Input Sheet'!$E$32="WACC2",1/(1+WACC2)^(Z103-YEAR),"Check WACC Option in General Input Sheet"))) -> 0.6316903693 | AC103: 2255806 | AD103: 2678577 | AE103: 1692031
B104: R333 | C104: CVE-RC-010 | D104: Road Corridor Project | E104: 6 | F104: Nottingham Road (Benhiam Street to Appleby Street) | G104: 4 Lane Road | H104: 403 | I104: Suburban | J104: 1889 | K104: 211.7681313 | L104: 400030 | M104: 2462.69727 | N104: 992467 | O104: 2016 | P104: =IFERROR(('General Input Sheet'!$G$38/(VLOOKUP(O104,Histindex,3,FALSE))),1) -> 1 | Q104: Upgrade | R104: =IFERROR(_xlfn.IFS(AND(Q104<>"New",D104<>"Road Bridge"),30%,D104="Road Bridge",10%),0) -> 0.3 | S104: 297740 | T104: 0.15 | U104: 196821 | V104: 168719 | W104: 150954 | X104: 0 | Y104: 1806701 | Z104: 2024 | AA104: =(1+PPI)^('Future Trunk Assets - Transport'!Z104-YEAR) -> 1.159916788 | AB104: =IF(Z104<YEAR,1,IF('General Input Sheet'!$E$32="WACC1",1/(1+WACC1)^(Z104-YEAR), IF('General Input Sheet'!$E$32="WACC2",1/(1+WACC2)^(Z104-YEAR),"Check WACC Option in General Input Sheet"))) -> 0.6316903693 | AC104: 2206731 | AD104: 2583021 | AE104: 1631669
B105: R333 | C105: CVE-RC-011 | D105: Road Corridor Project | E105: 6 | F105: Nottingham Road (Menser to Benhiam Street) | G105: 4 Lane Road | H105: 399 | I105: Suburban | J105: 2091 | K105: 292.9411765 | L105: 612540 | M105: 2467.130326 | N105: 984385 | O105: 2016 | P105: =IFERROR(('General Input Sheet'!$G$38/(VLOOKUP(O105,Histindex,3,FALSE))),1) -> 1 | Q105: Upgrade | R105: =IFERROR(_xlfn.IFS(AND(Q105<>"New",D105<>"Road Bridge"),30%,D105="Road Bridge",10%),0) -> 0.3 | S105: 295316 | T105: 0.15 | U105: 195218 | V105: 167345 | W105: 149725 | X105: 0 | Y105: 1791989 | Z105: 2024 | AA105: =(1+PPI)^('Future Trunk Assets - Transport'!Z105-YEAR) -> 1.159916788 | AB105: =IF(Z105<YEAR,1,IF('General Input Sheet'!$E$32="WACC1",1/(1+WACC1)^(Z105-YEAR), IF('General Input Sheet'!$E$32="WACC2",1/(1+WACC2)^(Z105-YEAR),"Check WACC Option in General Input Sheet"))) -> 0.6316903693 | AC105: 2404529 | AD105: 2824879 | AE105: 1784449
B106: R333 | C106: CVE-RI-001 | D106: Road Intersection Project | E106: 6 | F106: Nottingham Road/Benhiam Street Intersection | G106: 4 Lane Road / 2 Lane Road | H106: 0 | I106: Suburban / District | J106: 450 | K106: 372 | L106: 167400 | N106: 415305 | O106: 2016 | P106: =IFERROR(('General Input Sheet'!$G$38/(VLOOKUP(O106,Histindex,3,FALSE))),1) -> 1 | Q106: Existing signallised Int | R106: =IFERROR(_xlfn.IFS(AND(Q106<>"New",D106<>"Road Bridge"),30%,D106="Road Bridge",10%),0) -> 0.3 | S106: 124592 | T106: 0.15 | U106: 82361 | V106: 70602 | W106: 63168 | X106: 0 | Y106: 756028 | Z106: 2024 | AA106: =(1+PPI)^('Future Trunk Assets - Transport'!Z106-YEAR) -> 1.159916788 | AB106: =IF(Z106<YEAR,1,IF('General Input Sheet'!$E$32="WACC1",1/(1+WACC1)^(Z106-YEAR), IF('General Input Sheet'!$E$32="WACC2",1/(1+WACC2)^(Z106-YEAR),"Check WACC Option in General Input Sheet"))) -> 0.6316903693 | AC106: 923428 | AD106: 1080890 | AE106: 682788
B107: R270 | C107: DAR-RB-002 | D107: Road Bridge | E107: 10 | F107: Harcourt Road Bridge (between Railway Parade and Manburgh Terrace) | G107: 4 Lane Road | H107: 34 | I107: Suburban | J107: 1043.613064 | K107: 1.523553178 | L107: 1590 | M107: 90105.88235 | N107: 3063600 | O107: 2016 | P107: =IFERROR(('General Input Sheet'!$G$38/(VLOOKUP(O107,Histindex,3,FALSE))),1) -> 1 | Q107: Upgrade | R107: =IFERROR(_xlfn.IFS(AND(Q107<>"New",D107<>"Road Bridge"),30%,D107="Road Bridge",10%),0) -> 0.1 | S107: 306360 | T107: 0.15 | U107: 607558 | V107: 520812 | W107: 465974 | X107: 0 | Y107: 4964304 | Z107: 2024 | AA107: =(1+PPI)^('Future Trunk Assets - Transport'!Z107-YEAR) -> 1.159916788 | AB107: =IF(Z107<YEAR,1,IF('General Input Sheet'!$E$32="WACC1",1/(1+WACC1)^(Z107-YEAR), IF('General Input Sheet'!$E$32="WACC2",1/(1+WACC2)^(Z107-YEAR),"Check WACC Option in General Input Sheet"))) -> 0.6316903693 | AC107: 4965894 | AD107: 5760117 | AE107: 3638610
B108: R270 | C108: DAR-RC-007 | D108: Road Corridor Project | E108: 10 | F108: Harcourt Road (Railway Parade to Winslow Street) | G108: 4 Lane Road | H108: 443 | I108: Suburban | J108: 3286 | K108: 401.4096166 | L108: 1319032 | M108: 2467.099323 | N108: 1092925 | O108: 2016 | P108: =IFERROR(('General Input Sheet'!$G$38/(VLOOKUP(O108,Histindex,3,FALSE))),1) -> 1 | Q108: Upgrade | R108: =IFERROR(_xlfn.IFS(AND(Q108<>"New",D108<>"Road Bridge"),30%,D108="Road Bridge",10%),0) -> 0.3 | S108: 327878 | T108: 0.15 | U108: 216743 | V108: 185797 | W108: 166234 | X108: 0 | Y108: 1989577 | Z108: 2024 | AA108: =(1+PPI)^('Future Trunk Assets - Transport'!Z108-YEAR) -> 1.159916788 | AB108: =IF(Z108<YEAR,1,IF('General Input Sheet'!$E$32="WACC1",1/(1+WACC1)^(Z108-YEAR), IF('General Input Sheet'!$E$32="WACC2",1/(1+WACC2)^(Z108-YEAR),"Check WACC Option in General Input Sheet"))) -> 0.6316903693 | AC108: 3308609 | AD108: 3914856 | AE108: 2472977
B109: R270 | C109: DAR-RC-008 | D109: Road Corridor Project | E109: 10 | F109: Harcourt Road (Winslow Street to Ipswich Road) | G109: 4 Lane Road | H109: 222 | I109: Suburban | J109: 692 | K109: 523.5881503 | L109: 362323 | M109: 2726.171171 | N109: 605210 | O109: 2016 | P109: =IFERROR(('General Input Sheet'!$G$38/(VLOOKUP(O109,Histindex,3,FALSE))),1) -> 1 | Q109: Upgrade | R109: =IFERROR(_xlfn.IFS(AND(Q109<>"New",D109<>"Road Bridge"),30%,D109="Road Bridge",10%),0) -> 0.3 | S109: 181563 | T109: 0.15 | U109: 120022 | V109: 102886 | W109: 92052 | X109: 0 | Y109: 1101733 | Z109: 2024 | AA109: =(1+PPI)^('Future Trunk Assets - Transport'!Z109-YEAR) -> 1.159916788 | AB109: =IF(Z109<YEAR,1,IF('General Input Sheet'!$E$32="WACC1",1/(1+WACC1)^(Z109-YEAR), IF('General Input Sheet'!$E$32="WACC2",1/(1+WACC2)^(Z109-YEAR),"Check WACC Option in General Input Sheet"))) -> 0.6316903693 | AC109: 1464056 | AD109: 1719374 | AE109: 1086112
B110: R270 | C110: DAR-RC-009 | D110: Road Corridor Project | E110: 10 | F110: Boundary Road (Archerfield Road to Acanthus Street) | G110: 4 Lane Road | H110: 589 | I110: Suburban | J110: 2868 | K110: 198.9954672 | L110: 570719 | M110: 2466.037351 | N110: 1452496 | O110: 2016 | P110: =IFERROR(('General Input Sheet'!$G$38/(VLOOKUP(O110,Histindex,3,FALSE))),1) -> 1 | Q110: Upgrade | R110: =IFERROR(_xlfn.IFS(AND(Q110<>"New",D110<>"Road Bridge"),30%,D110="Road Bridge",10%),0) -> 0.3 | S110: 435749 | T110: 0.15 | U110: 288052 | V110: 246924 | W110: 220925 | X110: 0 | Y110: 2644146 | Z110: 2024 | AA110: =(1+PPI)^('Future Trunk Assets - Transport'!Z110-YEAR) -> 1.159916788 | AB110: =IF(Z110<YEAR,1,IF('General Input Sheet'!$E$32="WACC1",1/(1+WACC1)^(Z110-YEAR), IF('General Input Sheet'!$E$32="WACC2",1/(1+WACC2)^(Z110-YEAR),"Check WACC Option in General Input Sheet"))) -> 0.6316903693 | AC110: 3214865 | AD110: 3762355 | AE110: 2376643
B111: R270 | C111: DAR-RC-010 | D111: Road Corridor Project | E111: 10 | F111: Dowding Street (Englefield Road to Valance Street) | G111: 2 Lane Road | H111: 497 | I111: District | J111: 9499 | K111: 32.82334983 | L111: 311789 | M111: 2533.768612 | N111: 1259283 | O111: 2016 | P111: =IFERROR(('General Input Sheet'!$G$38/(VLOOKUP(O111,Histindex,3,FALSE))),1) -> 1 | Q111: New | R111: =IFERROR(_xlfn.IFS(AND(Q111<>"New",D111<>"Road Bridge"),30%,D111="Road Bridge",10%),0) -> 0 | S111: 0 | T111: 0.15 | U111: 249735 | V111: 214078 | W111: 191537 | X111: 0 | Y111: 1914633 | Z111: 2024 | AA111: =(1+PPI)^('Future Trunk Assets - Transport'!Z111-YEAR) -> 1.159916788 | AB111: =IF(Z111<YEAR,1,IF('General Input Sheet'!$E$32="WACC1",1/(1+WACC1)^(Z111-YEAR), IF('General Input Sheet'!$E$32="WACC2",1/(1+WACC2)^(Z111-YEAR),"Check WACC Option in General Input Sheet"))) -> 0.6316903693 | AC111: 2226422 | AD111: 2600700 | AE111: 1642837
B112: R270 | C112: DAR-RI-003 | D112: Road Intersection Project | E112: 10 | F112: Cardiff Road/Harcourt Road Intersection | G112: 4 Lane Road / 2 Lane Road | H112: 0 | I112: Suburban / Local | J112: 150 | K112: 306 | L112: 45900 | N112: 466452 | O112: 2016 | P112: =IFERROR(('General Input Sheet'!$G$38/(VLOOKUP(O112,Histindex,3,FALSE))),1) -> 1 | Q112: Existing unsignallised Int | R112: =IFERROR(_xlfn.IFS(AND(Q112<>"New",D112<>"Road Bridge"),30%,D112="Road Bridge",10%),0) -> 0.3 | S112: 139936 | T112: 0.15 | U112: 92504 | V112: 79297 | W112: 70947 | X112: 0 | Y112: 849136 | Z112: 2024 | AA112: =(1+PPI)^('Future Trunk Assets - Transport'!Z112-YEAR) -> 1.159916788 | AB112: =IF(Z112<YEAR,1,IF('General Input Sheet'!$E$32="WACC1",1/(1+WACC1)^(Z112-YEAR), IF('General Input Sheet'!$E$32="WACC2",1/(1+WACC2)^(Z112-YEAR),"Check WACC Option in General Input Sheet"))) -> 0.6316903693 | AC112: 895036 | AD112: 1040852 | AE112: 657496
B113: R270 | C113: DAR-RI-004 | D113: Road Intersection Project | E113: 10 | F113: Harcourt Road/Winslow Street Intersection | G113: 4 Lane Road / 2 Lane Road | H113: 0 | I113: Suburban / Local | J113: 150 | K113: 306 | L113: 45900 | N113: 466452 | O113: 2016 | P113: =IFERROR(('General Input Sheet'!$G$38/(VLOOKUP(O113,Histindex,3,FALSE))),1) -> 1 | Q113: Existing unsignallised Int | R113: =IFERROR(_xlfn.IFS(AND(Q113<>"New",D113<>"Road Bridge"),30%,D113="Road Bridge",10%),0) -> 0.3 | S113: 139936 | T113: 0.075 | U113: 46252 | V113: 79297 | W113: 70947 | X113: 0 | Y113: 802884 | Z113: 2019 | AA113: =(1+PPI)^('Future Trunk Assets - Transport'!Z113-YEAR) -> 1.05720708 | AB113: =IF(Z113<YEAR,1,IF('General Input Sheet'!$E$32="WACC1",1/(1+WACC1)^(Z113-YEAR), IF('General Input Sheet'!$E$32="WACC2",1/(1+WACC2)^(Z113-YEAR),"Check WACC Option in General Input Sheet"))) -> 0.8417615727 | AC113: 848784 | AD113: 898244 | AE113: 756107
B114: R270 | C114: DAR-RI-005 | D114: Road Intersection Project | E114: 10 | F114: Monier Road/Bellwood Street Intersection | G114: 4 Lane Road / 2 Lane Road | H114: 0 | I114: Suburban / District | J114: 450 | K114: 606 | L114: 272700 | N114: 711951 | O114: 2016 | P114: =IFERROR(('General Input Sheet'!$G$38/(VLOOKUP(O114,Histindex,3,FALSE))),1) -> 1 | Q114: Existing unsignallised Int | R114: =IFERROR(_xlfn.IFS(AND(Q114<>"New",D114<>"Road Bridge"),30%,D114="Road Bridge",10%),0) -> 0.3 | S114: 213585 | T114: 0.15 | U114: 141191 | V114: 121032 | W114: 108288 | X114: 0 | Y114: 1296047 | Z114: 2024 | AA114: =(1+PPI)^('Future Trunk Assets - Transport'!Z114-YEAR) -> 1.159916788 | AB114: =IF(Z114<YEAR,1,IF('General Input Sheet'!$E$32="WACC1",1/(1+WACC1)^(Z114-YEAR), IF('General Input Sheet'!$E$32="WACC2",1/(1+WACC2)^(Z114-YEAR),"Check WACC Option in General Input Sheet"))) -> 0.6316903693 | AC114: 1568747 | AD114: 1835565 | AE114: 1159509
B115: R53 | C115: DEA-RC-002 | D115: Road Corridor Project | E115: 15 | F115: Depot Road (Gateway Motorway Ramp to Deagon Deviation) | G115: 6 Lane Road | H115: 736 | I115: Arterial | J115: 819 | K115: 96.23076923 | L115: 78813 | M115: 2711.802989 | N115: 1995887 | O115: 2016 | P115: =IFERROR(('General Input Sheet'!$G$38/(VLOOKUP(O115,Histindex,3,FALSE))),1) -> 1 | Q115: Upgrade | R115: =IFERROR(_xlfn.IFS(AND(Q115<>"New",D115<>"Road Bridge"),30%,D115="Road Bridge",10%),0) -> 0.3 | S115: 598766 | T115: 0.075 | U115: 197907 | V115: 339301 | W115: 303574 | X115: 0 | Y115: 3435435 | Z115: 2019 | AA115: =(1+PPI)^('Future Trunk Assets - Transport'!Z115-YEAR) -> 1.05720708 | AB115: =IF(Z115<YEAR,1,IF('General Input Sheet'!$E$32="WACC1",1/(1+WACC1)^(Z115-YEAR), IF('General Input Sheet'!$E$32="WACC2",1/(1+WACC2)^(Z115-YEAR),"Check WACC Option in General Input Sheet"))) -> 0.8417615727 | AC115: 3514248 | AD115: 3716839 | AE115: 3128692
B116: R73, R53 | C116: DEA-RC-003 | D116: Road Corridor Project | E116: 15 | F116: Depot Road (Quinlan Street to Gateway Motorway Ramp) | G116: 6 Lane Road | H116: 304 | I116: Arterial | J116: 1309 | K116: 27.43315508 | L116: 35910 | M116: 2714.039474 | N116: 825068 | O116: 2016 | P116: =IFERROR(('General Input Sheet'!$G$38/(VLOOKUP(O116,Histindex,3,FALSE))),1) -> 1 | Q116: Upgrade | R116: =IFERROR(_xlfn.IFS(AND(Q116<>"New",D116<>"Road Bridge"),30%,D116="Road Bridge",10%),0) -> 0.3 | S116: 247520 | T116: 0.075 | U116: 81812 | V116: 140262 | W116: 125493 | X116: 0 | Y116: 1420155 | Z116: 2019 | AA116: =(1+PPI)^('Future Trunk Assets - Transport'!Z116-YEAR) -> 1.05720708 | AB116: =IF(Z116<YEAR,1,IF('General Input Sheet'!$E$32="WACC1",1/(1+WACC1)^(Z116-YEAR), IF('General Input Sheet'!$E$32="WACC2",1/(1+WACC2)^(Z116-YEAR),"Check WACC Option in General Input Sheet"))) -> 0.8417615727 | AC116: 1456065 | AD116: 1540069 | AE116: 1296371
B117: R53 | C117: DEA-RI-001 | D117: Road Intersection Project | E117: 15 | F117: Gateway Motorway Ramps/Depot Road Intersection | G117: 6 Lane Road / 6 Lane Road | H117: 0 | I117: Motorway / Arterial | J117: 150 | K117: 139 | L117: 20850 | N117: 552011 | O117: 2016 | P117: =IFERROR(('General Input Sheet'!$G$38/(VLOOKUP(O117,Histindex,3,FALSE))),1) -> 1 | Q117: Existing signallised Int | R117: =IFERROR(_xlfn.IFS(AND(Q117<>"New",D117<>"Road Bridge"),30%,D117="Road Bridge",10%),0) -> 0.3 | S117: 165603 | T117: 0.075 | U117: 54736 | V117: 93842 | W117: 83961 | X117: 0 | Y117: 950153 | Z117: 2019 | AA117: =(1+PPI)^('Future Trunk Assets - Transport'!Z117-YEAR) -> 1.05720708 | AB117: =IF(Z117<YEAR,1,IF('General Input Sheet'!$E$32="WACC1",1/(1+WACC1)^(Z117-YEAR), IF('General Input Sheet'!$E$32="WACC2",1/(1+WACC2)^(Z117-YEAR),"Check WACC Option in General Input Sheet"))) -> 0.8417615727 | AC117: 971003 | AD117: 1026962 | AE117: 864457
B118: R291 | C118: DUR-RC-002 | D118: Road Corridor Project | E118: 9 | F118: King Avenue (Inala Avenue to bridge over Bullockhead Creek) | G118: 6 Lane Road | H118: 300 | I118: Arterial | J118: 945 | K118: 1.085714286 | L118: 1026 | M118: 2708.45 | N118: 812535 | O118: 2016 | P118: =IFERROR(('General Input Sheet'!$G$38/(VLOOKUP(O118,Histindex,3,FALSE))),1) -> 1 | Q118: Upgrade | R118: =IFERROR(_xlfn.IFS(AND(Q118<>"New",D118<>"Road Bridge"),30%,D118="Road Bridge",10%),0) -> 0.3 | S118: 243761 | T118: 0.15 | U118: 161138 | V118: 138131 | W118: 123587 | X118: 0 | Y118: 1479152 | Z118: 2024 | AA118: =(1+PPI)^('Future Trunk Assets - Transport'!Z118-YEAR) -> 1.159916788 | AB118: =IF(Z118<YEAR,1,IF('General Input Sheet'!$E$32="WACC1",1/(1+WACC1)^(Z118-YEAR), IF('General Input Sheet'!$E$32="WACC2",1/(1+WACC2)^(Z118-YEAR),"Check WACC Option in General Input Sheet"))) -> 0.6316903693 | AC118: 1480178 | AD118: 1716943 | AE118: 1084576
B119: R291 | C119: DUR-RI-001 | D119: Road Intersection Project | E119: 9 | F119: King Avenue/Inala Avenue Intersection | G119: 6 Lane Road / 2 Lane Road | H119: 0 | I119: Arterial / District | J119: 150 | K119: 2 | L119: 300 | N119: 592269 | O119: 2016 | P119: =IFERROR(('General Input Sheet'!$G$38/(VLOOKUP(O119,Histindex,3,FALSE))),1) -> 1 | Q119: Existing unsignallised Int | R119: =IFERROR(_xlfn.IFS(AND(Q119<>"New",D119<>"Road Bridge"),30%,D119="Road Bridge",10%),0) -> 0.3 | S119: 177681 | T119: 0.15 | U119: 117456 | V119: 100686 | W119: 90084 | X119: 0 | Y119: 1078176 | Z119: 2024 | AA119: =(1+PPI)^('Future Trunk Assets - Transport'!Z119-YEAR) -> 1.159916788 | AB119: =IF(Z119<YEAR,1,IF('General Input Sheet'!$E$32="WACC1",1/(1+WACC1)^(Z119-YEAR), IF('General Input Sheet'!$E$32="WACC2",1/(1+WACC2)^(Z119-YEAR),"Check WACC Option in General Input Sheet"))) -> 0.6316903693 | AC119: 1078476 | AD119: 1250960 | AE119: 790219
B120: R193 | C120: EAB-RC-001 | D120: Road Corridor Project | E120: 8 | F120: Lytton Road (Heath Street to Laidlaw Parade) | G120: 6 Lane Road | H120: 367 | I120: Arterial | J120: 4400 | K120: 1365.336591 | L120: 6007481 | M120: 2855.722071 | N120: 1048050 | O120: 2016 | P120: =IFERROR(('General Input Sheet'!$G$38/(VLOOKUP(O120,Histindex,3,FALSE))),1) -> 1 | Q120: Upgrade | R120: =IFERROR(_xlfn.IFS(AND(Q120<>"New",D120<>"Road Bridge"),30%,D120="Road Bridge",10%),0) -> 0.3 | S120: 314415 | T120: 0.075 | U120: 103922 | V120: 178169 | W120: 159408 | X120: 0 | Y120: 1803964 | Z120: 2019 | AA120: =(1+PPI)^('Future Trunk Assets - Transport'!Z120-YEAR) -> 1.05720708 | AB120: =IF(Z120<YEAR,1,IF('General Input Sheet'!$E$32="WACC1",1/(1+WACC1)^(Z120-YEAR), IF('General Input Sheet'!$E$32="WACC2",1/(1+WACC2)^(Z120-YEAR),"Check WACC Option in General Input Sheet"))) -> 0.8417615727 | AC120: 7811445 | AD120: 8376563 | AE120: 7051069
B121: R193 | C121: EAB-RC-004 | D121: Road Corridor Project | E121: 8 | F121: Lytton Road (Latrobe Street to Heidelberg Street) | G121: 6 Lane Road | H121: 235 | I121: Arterial | J121: 3024 | K121: 1258.598545 | L121: 3806002 | M121: 3157.855319 | N121: 742096 | O121: 2016 | P121: =IFERROR(('General Input Sheet'!$G$38/(VLOOKUP(O121,Histindex,3,FALSE))),1) -> 1 | Q121: Upgrade | R121: =IFERROR(_xlfn.IFS(AND(Q121<>"New",D121<>"Road Bridge"),30%,D121="Road Bridge",10%),0) -> 0.3 | S121: 222629 | T121: 0.075 | U121: 73584 | V121: 126156 | W121: 112873 | X121: 0 | Y121: 1277338 | Z121: 2019 | AA121: =(1+PPI)^('Future Trunk Assets - Transport'!Z121-YEAR) -> 1.05720708 | AB121: =IF(Z121<YEAR,1,IF('General Input Sheet'!$E$32="WACC1",1/(1+WACC1)^(Z121-YEAR), IF('General Input Sheet'!$E$32="WACC2",1/(1+WACC2)^(Z121-YEAR),"Check WACC Option in General Input Sheet"))) -> 0.8417615727 | AC121: 5083340 | AD121: 5449059 | AE121: 4586808
B122: R193 | C122: EAB-RC-005 | D122: Road Corridor Project | E122: 8 | F122: Lytton Road (Wellington Road to Latrobe Street) | G122: 6 Lane Road | H122: 245 | I122: Arterial | J122: 2424 | K122: 1140.929868 | L122: 2765614 | M122: 3164.261224 | N122: 775244 | O122: 2016 | P122: =IFERROR(('General Input Sheet'!$G$38/(VLOOKUP(O122,Histindex,3,FALSE))),1) -> 1 | Q122: Upgrade | R122: =IFERROR(_xlfn.IFS(AND(Q122<>"New",D122<>"Road Bridge"),30%,D122="Road Bridge",10%),0) -> 0.3 | S122: 232573 | T122: 0.075 | U122: 76871 | V122: 131791 | W122: 117915 | X122: 0 | Y122: 1334394 | Z122: 2019 | AA122: =(1+PPI)^('Future Trunk Assets - Transport'!Z122-YEAR) -> 1.05720708 | AB122: =IF(Z122<YEAR,1,IF('General Input Sheet'!$E$32="WACC1",1/(1+WACC1)^(Z122-YEAR), IF('General Input Sheet'!$E$32="WACC2",1/(1+WACC2)^(Z122-YEAR),"Check WACC Option in General Input Sheet"))) -> 0.8417615727 | AC122: 4100008 | AD122: 4388995 | AE122: 3694487
B123: R193, R213 | C123: EAB-RC-006 | D123: Road Corridor Project | E123: 8 | F123: Stanley Street East (Caswell Street to Lisburn Street) | G123: 4 Lane Road | H123: 790 | I123: Suburban | J123: 5000 | K123: 1412.2224 | L123: 7061112 | M123: 2596.393671 | N123: 2051151 | O123: 2016 | P123: =IFERROR(('General Input Sheet'!$G$38/(VLOOKUP(O123,Histindex,3,FALSE))),1) -> 1 | Q123: Upgrade | R123: =IFERROR(_xlfn.IFS(AND(Q123<>"New",D123<>"Road Bridge"),30%,D123="Road Bridge",10%),0) -> 0.3 | S123: 615345 | T123: 0.15 | U123: 406774 | V123: 348696 | W123: 311980 | X123: 0 | Y123: 3733946 | Z123: 2024 | AA123: =(1+PPI)^('Future Trunk Assets - Transport'!Z123-YEAR) -> 1.159916788 | AB123: =IF(Z123<YEAR,1,IF('General Input Sheet'!$E$32="WACC1",1/(1+WACC1)^(Z123-YEAR), IF('General Input Sheet'!$E$32="WACC2",1/(1+WACC2)^(Z123-YEAR),"Check WACC Option in General Input Sheet"))) -> 0.6316903693 | AC123: 10795058 | AD123: 12934346 | AE123: 8170502
B124: R193 | C124: EAB-RC-007 | D124: Road Corridor Project | E124: 8 | F124: Stanley Street East (Lisburn Street to Wellington Road) | G124: 6 Lane Road | H124: 193 | I124: Arterial | J124: 2637 | K124: 1706.797876 | L124: 4500826 | M124: 3161.145078 | N124: 610101 | O124: 2016 | P124: =IFERROR(('General Input Sheet'!$G$38/(VLOOKUP(O124,Histindex,3,FALSE))),1) -> 1 | Q124: Upgrade | R124: =IFERROR(_xlfn.IFS(AND(Q124<>"New",D124<>"Road Bridge"),30%,D124="Road Bridge",10%),0) -> 0.3 | S124: 183030 | T124: 0.15 | U124: 120992 | V124: 103717 | W124: 92796 | X124: 0 | Y124: 1110636 | Z124: 2024 | AA124: =(1+PPI)^('Future Trunk Assets - Transport'!Z124-YEAR) -> 1.159916788 | AB124: =IF(Z124<YEAR,1,IF('General Input Sheet'!$E$32="WACC1",1/(1+WACC1)^(Z124-YEAR), IF('General Input Sheet'!$E$32="WACC2",1/(1+WACC2)^(Z124-YEAR),"Check WACC Option in General Input Sheet"))) -> 0.6316903693 | AC124: 5611462 | AD124: 6772065 | AE124: 4277848
B125: R193 | C125: EAB-RC-009 | D125: Road Corridor Project | E125: 8 | F125: Wynnum Road (Laidlaw Parade to bridge over Norman Creek) | G125: 6 Lane Road | H125: 72 | I125: Arterial | J125: 440 | K125: 1144.109091 | L125: 503408 | M125: 3873.347222 | N125: 278881 | O125: 2016 | P125: =IFERROR(('General Input Sheet'!$G$38/(VLOOKUP(O125,Histindex,3,FALSE))),1) -> 1 | Q125: Upgrade | R125: =IFERROR(_xlfn.IFS(AND(Q125<>"New",D125<>"Road Bridge"),30%,D125="Road Bridge",10%),0) -> 0.3 | S125: 83664 | T125: 0.15 | U125: 55306 | V125: 47410 | W125: 42418 | X125: 0 | Y125: 507679 | Z125: 2024 | AA125: =(1+PPI)^('Future Trunk Assets - Transport'!Z125-YEAR) -> 1.159916788 | AB125: =IF(Z125<YEAR,1,IF('General Input Sheet'!$E$32="WACC1",1/(1+WACC1)^(Z125-YEAR), IF('General Input Sheet'!$E$32="WACC2",1/(1+WACC2)^(Z125-YEAR),"Check WACC Option in General Input Sheet"))) -> 0.6316903693 | AC125: 1011087 | AD125: 1202219 | AE125: 759430
B126: R193 | C126: EAB-RC-010 | D126: Road Corridor Project | E126: 8 | F126: Wynnum Road (Laidlaw Parade to bridge over Norman Creek) | G126: 6 Lane Road | H126: 15 | I126: Arterial | J126: 87 | K126: 0 | L126: 0 | M126: 5060.533333 | N126: 75908 | O126: 2016 | P126: =IFERROR(('General Input Sheet'!$G$38/(VLOOKUP(O126,Histindex,3,FALSE))),1) -> 1 | Q126: Upgrade | R126: =IFERROR(_xlfn.IFS(AND(Q126<>"New",D126<>"Road Bridge"),30%,D126="Road Bridge",10%),0) -> 0.3 | S126: 22772 | T126: 0.15 | U126: 15054 | V126: 12904 | W126: 11546 | X126: 0 | Y126: 138184 | Z126: 2024 | AA126: =(1+PPI)^('Future Trunk Assets - Transport'!Z126-YEAR) -> 1.159916788 | AB126: =IF(Z126<YEAR,1,IF('General Input Sheet'!$E$32="WACC1",1/(1+WACC1)^(Z126-YEAR), IF('General Input Sheet'!$E$32="WACC2",1/(1+WACC2)^(Z126-YEAR),"Check WACC Option in General Input Sheet"))) -> 0.6316903693 | AC126: 138184 | AD126: 160282 | AE126: 101249
B127: R193 | C127: EAB-RC-011 | D127: Road Corridor Project | E127: 8 | F127: Stanley Street East (Vulture Street East to bridge over Norman Creek) | G127: 4 Lane Road | H127: 100 | I127: Suburban | J127: 693 | K127: 210.4155844 | L127: 145818 | M127: 2877.66 | N127: 287766 | O127: 2016 | P127: =IFERROR(('General Input Sheet'!$G$38/(VLOOKUP(O127,Histindex,3,FALSE))),1) -> 1 | Q127: - | R127: =IFERROR(_xlfn.IFS(AND(Q127<>"New",D127<>"Road Bridge"),30%,D127="Road Bridge",10%),0) -> 0.3 | S127: 86330 | T127: 0.15 | U127: 57068 | V127: 48920 | W127: 43769 | X127: 0 | Y127: 523853 | Z127: 2024 | AA127: =(1+PPI)^('Future Trunk Assets - Transport'!Z127-YEAR) -> 1.159916788 | AB127: =IF(Z127<YEAR,1,IF('General Input Sheet'!$E$32="WACC1",1/(1+WACC1)^(Z127-YEAR), IF('General Input Sheet'!$E$32="WACC2",1/(1+WACC2)^(Z127-YEAR),"Check WACC Option in General Input Sheet"))) -> 0.6316903693 | AC127: 669671 | AD127: 785291 | AE127: 496061
B128: R193 | C128: EAB-RI-001 | D128: Road Intersection Project | E128: 8 | F128: Lytton Road/Laidlaw Parade Intersection | G128: 6 Lane Road / 2 Lane Road | H128: 0 | I128: Arterial / Local | J128: 150 | K128: 1612 | L128: 241800 | N128: 552749 | O128: 2016 | P128: =IFERROR(('General Input Sheet'!$G$38/(VLOOKUP(O128,Histindex,3,FALSE))),1) -> 1 | Q128: Existing unsignallised Int | R128: =IFERROR(_xlfn.IFS(AND(Q128<>"New",D128<>"Road Bridge"),30%,D128="Road Bridge",10%),0) -> 0.3 | S128: 165825 | T128: 0.075 | U128: 54809 | V128: 93967 | W128: 84073 | X128: 0 | Y128: 951423 | Z128: 2019 | AA128: =(1+PPI)^('Future Trunk Assets - Transport'!Z128-YEAR) -> 1.05720708 | AB128: =IF(Z128<YEAR,1,IF('General Input Sheet'!$E$32="WACC1",1/(1+WACC1)^(Z128-YEAR), IF('General Input Sheet'!$E$32="WACC2",1/(1+WACC2)^(Z128-YEAR),"Check WACC Option in General Input Sheet"))) -> 0.8417615727 | AC128: 1193223 | AD128: 1266243 | AE128: 1065875
B129: R193 | C129: EAB-RI-002 | D129: Road Intersection Project | E129: 8 | F129: Shaftston Avenue/Latrobe Street Intersection | G129: 6 Lane Road / 6 Lane Road | H129: 0 | I129: Arterial / Arterial | J129: 300 | K129: 2221 | L129: 666300 | N129: 581064 | O129: 2016 | P129: =IFERROR(('General Input Sheet'!$G$38/(VLOOKUP(O129,Histindex,3,FALSE))),1) -> 1 | Q129: Existing signallised Int | R129: =IFERROR(_xlfn.IFS(AND(Q129<>"New",D129<>"Road Bridge"),30%,D129="Road Bridge",10%),0) -> 0.3 | S129: 174319 | T129: 0.075 | U129: 57617 | V129: 98781 | W129: 88380 | X129: 0 | Y129: 1000161 | Z129: 2019 | AA129: =(1+PPI)^('Future Trunk Assets - Transport'!Z129-YEAR) -> 1.05720708 | AB129: =IF(Z129<YEAR,1,IF('General Input Sheet'!$E$32="WACC1",1/(1+WACC1)^(Z129-YEAR), IF('General Input Sheet'!$E$32="WACC2",1/(1+WACC2)^(Z129-YEAR),"Check WACC Option in General Input Sheet"))) -> 0.8417615727 | AC129: 1666461 | AD129: 1774910 | AE129: 1494051
B130: R193 | C130: EAB-RI-003 | D130: Road Intersection Project | E130: 8 | F130: Lytton Road/Heidelberg Street Intersection | G130: 6 Lane Road / 2 Lane Road | H130: 0 | I130: Arterial / District | J130: 150 | K130: 2221 | L130: 333150 | N130: 554170 | O130: 2016 | P130: =IFERROR(('General Input Sheet'!$G$38/(VLOOKUP(O130,Histindex,3,FALSE))),1) -> 1 | Q130: Existing signallised Int | R130: =IFERROR(_xlfn.IFS(AND(Q130<>"New",D130<>"Road Bridge"),30%,D130="Road Bridge",10%),0) -> 0.3 | S130: 166251 | T130: 0.075 | U130: 54950 | V130: 94209 | W130: 84289 | X130: 0 | Y130: 953869 | Z130: 2019 | AA130: =(1+PPI)^('Future Trunk Assets - Transport'!Z130-YEAR) -> 1.05720708 | AB130: =IF(Z130<YEAR,1,IF('General Input Sheet'!$E$32="WACC1",1/(1+WACC1)^(Z130-YEAR), IF('General Input Sheet'!$E$32="WACC2",1/(1+WACC2)^(Z130-YEAR),"Check WACC Option in General Input Sheet"))) -> 0.8417615727 | AC130: 1287019 | AD130: 1367203 | AE130: 1150859
B131: R193 | C131: EAB-RI-004 | D131: Road Intersection Project | E131: 8 | F131: Stanley Street East/Lisburn Street Intersection | G131: 6 Lane Road / 4 Lane Road | H131: 0 | I131: Arterial / Suburban | J131: 600 | K131: 1525.75 | L131: 915450 | N131: 629348 | O131: 2016 | P131: =IFERROR(('General Input Sheet'!$G$38/(VLOOKUP(O131,Histindex,3,FALSE))),1) -> 1 | Q131: Existing signallised Int | R131: =IFERROR(_xlfn.IFS(AND(Q131<>"New",D131<>"Road Bridge"),30%,D131="Road Bridge",10%),0) -> 0.3 | S131: 188804 | T131: 0.15 | U131: 124809 | V131: 106989 | W131: 95724 | X131: 0 | Y131: 1145674 | Z131: 2024 | AA131: =(1+PPI)^('Future Trunk Assets - Transport'!Z131-YEAR) -> 1.159916788 | AB131: =IF(Z131<YEAR,1,IF('General Input Sheet'!$E$32="WACC1",1/(1+WACC1)^(Z131-YEAR), IF('General Input Sheet'!$E$32="WACC2",1/(1+WACC2)^(Z131-YEAR),"Check WACC Option in General Input Sheet"))) -> 0.6316903693 | AC131: 2061124 | AD131: 2444273 | AE131: 1544024
B132: R129 | C132: FGR-RB-001 | D132: Road Bridge | E132: 13 | F132: Upper Kedron Road Bridge (between Nelson Place and Hogarth Road) | G132: 4 Lane Road | H132: 51 | I132: Suburban | J132: 184.730936 | K132: 2.998956277 | L132: 554 | M132: 49315.58824 | N132: 2515095 | O132: 2016 | P132: =IFERROR(('General Input Sheet'!$G$38/(VLOOKUP(O132,Histindex,3,FALSE))),1) -> 1 | Q132: Upgrade | R132: =IFERROR(_xlfn.IFS(AND(Q132<>"New",D132<>"Road Bridge"),30%,D132="Road Bridge",10%),0) -> 0.1 | S132: 251510 | T132: 0.15 | U132: 498781 | V132: 427566 | W132: 382546 | X132: 0 | Y132: 4075498 | Z132: 2024 | AA132: =(1+PPI)^('Future Trunk Assets - Transport'!Z132-YEAR) -> 1.159916788 | AB132: =IF(Z132<YEAR,1,IF('General Input Sheet'!$E$32="WACC1",1/(1+WACC1)^(Z132-YEAR), IF('General Input Sheet'!$E$32="WACC2",1/(1+WACC2)^(Z132-YEAR),"Check WACC Option in General Input Sheet"))) -> 0.6316903693 | AC132: 4076052 | AD132: 4727914 | AE132: 2986578
B133: R129 | C133: FGR-RC-002 | D133: Road Corridor Project | E133: 13 | F133: Upper Kedron Road (bridge over Cedar Creek to Cemetery Road) | G133: 4 Lane Road | H133: 145 | I133: Suburban | J133: 116 | K133: 9.75862069 | L133: 1132 | M133: 2722.648276 | N133: 394784 | O133: 2016 | P133: =IFERROR(('General Input Sheet'!$G$38/(VLOOKUP(O133,Histindex,3,FALSE))),1) -> 1 | Q133: Upgrade | R133: =IFERROR(_xlfn.IFS(AND(Q133<>"New",D133<>"Road Bridge"),30%,D133="Road Bridge",10%),0) -> 0.3 | S133: 118435 | T133: 0.15 | U133: 78292 | V133: 67113 | W133: 60047 | X133: 0 | Y133: 718671 | Z133: 2024 | AA133: =(1+PPI)^('Future Trunk Assets - Transport'!Z133-YEAR) -> 1.159916788 | AB133: =IF(Z133<YEAR,1,IF('General Input Sheet'!$E$32="WACC1",1/(1+WACC1)^(Z133-YEAR), IF('General Input Sheet'!$E$32="WACC2",1/(1+WACC2)^(Z133-YEAR),"Check WACC Option in General Input Sheet"))) -> 0.6316903693 | AC133: 719803 | AD133: 834978 | AE133: 527448
B134: R129 | C134: FGR-RC-003 | D134: Road Corridor Project | E134: 13 | F134: Upper Kedron Road (Nelson Place to (bridge over Cedar Creek) | G134: 4 Lane Road | H134: 116 | I134: Suburban | J134: 225 | K134: 191.4355556 | L134: 43073 | M134: 2727.508621 | N134: 316391 | O134: 2016 | P134: =IFERROR(('General Input Sheet'!$G$38/(VLOOKUP(O134,Histindex,3,FALSE))),1) -> 1 | Q134: Upgrade | R134: =IFERROR(_xlfn.IFS(AND(Q134<>"New",D134<>"Road Bridge"),30%,D134="Road Bridge",10%),0) -> 0.3 | S134: 94917 | T134: 0.15 | U134: 62745 | V134: 53786 | W134: 48123 | X134: 0 | Y134: 575962 | Z134: 2024 | AA134: =(1+PPI)^('Future Trunk Assets - Transport'!Z134-YEAR) -> 1.159916788 | AB134: =IF(Z134<YEAR,1,IF('General Input Sheet'!$E$32="WACC1",1/(1+WACC1)^(Z134-YEAR), IF('General Input Sheet'!$E$32="WACC2",1/(1+WACC2)^(Z134-YEAR),"Check WACC Option in General Input Sheet"))) -> 0.6316903693 | AC134: 619035 | AD134: 720548 | AE134: 455163
B135: R330 | C135: FLK-RI-001 | D135: Road Intersection Project | E135: 10 | F135: Johnson Road/Woogaroo Street Intersection | G135: 4 Lane Road / 4 Lane Road | H135: 0 | I135: Suburban / Suburban | J135: 300 | K135: 453 | L135: 135900 | N135: 817184 | O135: 2016 | P135: =IFERROR(('General Input Sheet'!$G$38/(VLOOKUP(O135,Histindex,3,FALSE))),1) -> 1 | Q135: Existing unsignallised Int | R135: =IFERROR(_xlfn.IFS(AND(Q135<>"New",D135<>"Road Bridge"),30%,D135="Road Bridge",10%),0) -> 0.3 | S135: 245155 | T135: 0.15 | U135: 162060 | V135: 138921 | W135: 124294 | X135: 0 | Y135: 1487614 | Z135: 2024 | AA135: =(1+PPI)^('Future Trunk Assets - Transport'!Z135-YEAR) -> 1.159916788 | AB135: =IF(Z135<YEAR,1,IF('General Input Sheet'!$E$32="WACC1",1/(1+WACC1)^(Z135-YEAR), IF('General Input Sheet'!$E$32="WACC2",1/(1+WACC2)^(Z135-YEAR),"Check WACC Option in General Input Sheet"))) -> 0.6316903693 | AC135: 1623514 | AD135: 1891089 | AE135: 1194583
B136: R73 | C136: FTZ-RB-002 | D136: Road Bridge | E136: 15 | F136: Lemke Road Bridge (between Bluegum Place and Telegraph Road) | G136: 4 Lane Road | H136: 82 | I136: Suburban | J136: 83.27786835 | K136: 3.001998069 | L136: 250 | M136: 49314.43902 | N136: 4043784 | O136: 2016 | P136: =IFERROR(('General Input Sheet'!$G$38/(VLOOKUP(O136,Histindex,3,FALSE))),1) -> 1 | Q136: Upgrade | R136: =IFERROR(_xlfn.IFS(AND(Q136<>"New",D136<>"Road Bridge"),30%,D136="Road Bridge",10%),0) -> 0.1 | S136: 404378 | T136: 0.075 | U136: 400972 | V136: 687443 | W136: 615060 | X136: 0 | Y136: 6151637 | Z136: 2019 | AA136: =(1+PPI)^('Future Trunk Assets - Transport'!Z136-YEAR) -> 1.05720708 | AB136: =IF(Z136<YEAR,1,IF('General Input Sheet'!$E$32="WACC1",1/(1+WACC1)^(Z136-YEAR), IF('General Input Sheet'!$E$32="WACC2",1/(1+WACC2)^(Z136-YEAR),"Check WACC Option in General Input Sheet"))) -> 0.8417615727 | AC136: 6151887 | AD136: 6503823 | AE136: 5474668
B137: R73, R72 | C137: FTZ-RC-003 | D137: Road Corridor Project | E137: 15 | F137: Telegraph Road (Norris Road to Mustang Street) | G137: 6 Lane Road | H137: 719 | I137: Arterial | J137: 6715 | K137: 71.58868206 | L137: 480718 | M137: 2711.557719 | N137: 1949610 | O137: 2016 | P137: =IFERROR(('General Input Sheet'!$G$38/(VLOOKUP(O137,Histindex,3,FALSE))),1) -> 1 | Q137: Upgrade | R137: =IFERROR(_xlfn.IFS(AND(Q137<>"New",D137<>"Road Bridge"),30%,D137="Road Bridge",10%),0) -> 0.3 | S137: 584883 | T137: 0.075 | U137: 193319 | V137: 331434 | W137: 296536 | X137: 0 | Y137: 3355782 | Z137: 2019 | AA137: =(1+PPI)^('Future Trunk Assets - Transport'!Z137-YEAR) -> 1.05720708 | AB137: =IF(Z137<YEAR,1,IF('General Input Sheet'!$E$32="WACC1",1/(1+WACC1)^(Z137-YEAR), IF('General Input Sheet'!$E$32="WACC2",1/(1+WACC2)^(Z137-YEAR),"Check WACC Option in General Input Sheet"))) -> 0.8417615727 | AC137: 3836500 | AD137: 4065437 | AE137: 3422129
B138: R72 | C138: FTZ-RC-004 | D138: Road Corridor Project | E138: 15 | F138: Telegraph Road (Norris Road to Mustang Street) | G138: 6 Lane Road | H138: 162 | I138: Arterial | J138: 952 | K138: 1080.948529 | L138: 1029063 | M138: 3003.179012 | N138: 486515 | O138: 2016 | P138: =IFERROR(('General Input Sheet'!$G$38/(VLOOKUP(O138,Histindex,3,FALSE))),1) -> 1 | Q138: Upgrade | R138: =IFERROR(_xlfn.IFS(AND(Q138<>"New",D138<>"Road Bridge"),30%,D138="Road Bridge",10%),0) -> 0.3 | S138: 145955 | T138: 0.075 | U138: 48242 | V138: 82708 | W138: 73999 | X138: 0 | Y138: 837419 | Z138: 2019 | AA138: =(1+PPI)^('Future Trunk Assets - Transport'!Z138-YEAR) -> 1.05720708 | AB138: =IF(Z138<YEAR,1,IF('General Input Sheet'!$E$32="WACC1",1/(1+WACC1)^(Z138-YEAR), IF('General Input Sheet'!$E$32="WACC2",1/(1+WACC2)^(Z138-YEAR),"Check WACC Option in General Input Sheet"))) -> 0.8417615727 | AC138: 1866482 | AD138: 1993514 | AE138: 1678063
B139: R73 | C139: FTZ-RC-005 | D139: Road Corridor Project | E139: 15 | F139: Beams Road (Carselgrove Avenue to Handford Road) | G139: 4 Lane Road | H139: 782 | I139: Suburban | J139: 2474 | K139: 94.06709782 | L139: 232722 | M139: 2465.323529 | N139: 1927883 | O139: 2016 | P139: =IFERROR(('General Input Sheet'!$G$38/(VLOOKUP(O139,Histindex,3,FALSE))),1) -> 1 | Q139: Upgrade | R139: =IFERROR(_xlfn.IFS(AND(Q139<>"New",D139<>"Road Bridge"),30%,D139="Road Bridge",10%),0) -> 0.3 | S139: 578365 | T139: 0.15 | U139: 382328 | V139: 327740 | W139: 293231 | X139: 0 | Y139: 3509547 | Z139: 2024 | AA139: =(1+PPI)^('Future Trunk Assets - Transport'!Z139-YEAR) -> 1.159916788 | AB139: =IF(Z139<YEAR,1,IF('General Input Sheet'!$E$32="WACC1",1/(1+WACC1)^(Z139-YEAR), IF('General Input Sheet'!$E$32="WACC2",1/(1+WACC2)^(Z139-YEAR),"Check WACC Option in General Input Sheet"))) -> 0.6316903693 | AC139: 3742269 | AD139: 4354332 | AE139: 2750590
B140: R73 | C140: FTZ-RC-006 | D140: Road Corridor Project | E140: 15 | F140: Lemke Road (bridge over Cabbage Tree Creek to Telegraph Road) | G140: 4 Lane Road | H140: 161 | I140: Suburban | J140: 0 | K140: 0 | L140: 0 | M140: 2724.881988 | N140: 438706 | O140: 2016 | P140: =IFERROR(('General Input Sheet'!$G$38/(VLOOKUP(O140,Histindex,3,FALSE))),1) -> 1 | Q140: Upgrade | R140: =IFERROR(_xlfn.IFS(AND(Q140<>"New",D140<>"Road Bridge"),30%,D140="Road Bridge",10%),0) -> 0.3 | S140: 131612 | T140: 0.075 | U140: 43501 | V140: 74580 | W140: 66727 | X140: 0 | Y140: 755126 | Z140: 2019 | AA140: =(1+PPI)^('Future Trunk Assets - Transport'!Z140-YEAR) -> 1.05720708 | AB140: =IF(Z140<YEAR,1,IF('General Input Sheet'!$E$32="WACC1",1/(1+WACC1)^(Z140-YEAR), IF('General Input Sheet'!$E$32="WACC2",1/(1+WACC2)^(Z140-YEAR),"Check WACC Option in General Input Sheet"))) -> 0.8417615727 | AC140: 755126 | AD140: 798325 | AE140: 671999
B141: R73 | C141: FTZ-RI-001 | D141: Road Intersection Project | E141: 15 | F141: Telegraph Road/Lemke Road Intersection | G141: 6 Lane Road / 4 Lane Road | H141: 0 | I141: Arterial / Suburban | J141: 0 | K141: 0 | L141: 0 | N141: 672616 | O141: 2016 | P141: =IFERROR(('General Input Sheet'!$G$38/(VLOOKUP(O141,Histindex,3,FALSE))),1) -> 1 | Q141: Existing unsignallised Int | R141: =IFERROR(_xlfn.IFS(AND(Q141<>"New",D141<>"Road Bridge"),30%,D141="Road Bridge",10%),0) -> 0.3 | S141: 201785 | T141: 0.075 | U141: 66695 | V141: 114345 | W141: 102305 | X141: 0 | Y141: 1157746 | Z141: 2019 | AA141: =(1+PPI)^('Future Trunk Assets - Transport'!Z141-YEAR) -> 1.05720708 | AB141: =IF(Z141<YEAR,1,IF('General Input Sheet'!$E$32="WACC1",1/(1+WACC1)^(Z141-YEAR), IF('General Input Sheet'!$E$32="WACC2",1/(1+WACC2)^(Z141-YEAR),"Check WACC Option in General Input Sheet"))) -> 0.8417615727 | AC141: 1157746 | AD141: 1223977 | AE141: 1030297
B142: R73 | C142: FTZ-RI-002 | D142: Road Intersection Project | E142: 15 | F142: Telegraph Road/Mustang Street Intersection | G142: 6 Lane Road / 2 Lane Road | H142: 0 | I142: Arterial / District | J142: 300 | K142: 838 | L142: 251400 | N142: 592269 | O142: 2016 | P142: =IFERROR(('General Input Sheet'!$G$38/(VLOOKUP(O142,Histindex,3,FALSE))),1) -> 1 | Q142: Existing unsignallised Int | R142: =IFERROR(_xlfn.IFS(AND(Q142<>"New",D142<>"Road Bridge"),30%,D142="Road Bridge",10%),0) -> 0.3 | S142: 177681 | T142: 0.075 | U142: 58728 | V142: 100686 | W142: 90084 | X142: 0 | Y142: 1019448 | Z142: 2019 | AA142: =(1+PPI)^('Future Trunk Assets - Transport'!Z142-YEAR) -> 1.05720708 | AB142: =IF(Z142<YEAR,1,IF('General Input Sheet'!$E$32="WACC1",1/(1+WACC1)^(Z142-YEAR), IF('General Input Sheet'!$E$32="WACC2",1/(1+WACC2)^(Z142-YEAR),"Check WACC Option in General Input Sheet"))) -> 0.8417615727 | AC142: 1270848 | AD142: 1348498 | AE142: 1135114
B143: R73 | C143: FTZ-RI-003 | D143: Road Intersection Project | E143: 15 | F143: Beams Road/Carselgrove Avenue Intersection | G143: 4 Lane Road / 2 Lane Road | H143: 0 | I143: Suburban / District | J143: 300 | K143: 139 | L143: 41700 | N143: 474634 | O143: 2016 | P143: =IFERROR(('General Input Sheet'!$G$38/(VLOOKUP(O143,Histindex,3,FALSE))),1) -> 1 | Q143: Existing signallised Int | R143: =IFERROR(_xlfn.IFS(AND(Q143<>"New",D143<>"Road Bridge"),30%,D143="Road Bridge",10%),0) -> 0.3 | S143: 142390 | T143: =IF(Z143="","",IF(Z143<=YEAR+5,0.075,IF(AND(Z143>YEAR+5,Z143<=YEAR+10),0.15,IF(AND(Z143>YEAR+10,Z143<=YEAR+20),0.2,IF(Z143>YEAR+20,0.25,""))))) -> 0.15 | U143: 94127 | V143: 80688 | W143: 72192 | X143: 0 | Y143: 864031 | Z143: 2024 | AA143: =(1+PPI)^('Future Trunk Assets - Transport'!Z143-YEAR) -> 1.159916788 | AB143: =IF(Z143<YEAR,1,IF('General Input Sheet'!$E$32="WACC1",1/(1+WACC1)^(Z143-YEAR), IF('General Input Sheet'!$E$32="WACC2",1/(1+WACC2)^(Z143-YEAR),"Check WACC Option in General Input Sheet"))) -> 0.6316903693 | AC143: 905731 | AD143: 1053011 | AE143: 665177
B144: R173 | C144: FVA-RI-001 | D144: Road Intersection Project | E144: 8 | F144: Warner Street/Wickham Street Intersection | G144: 6 Lane Road / 4 Lane Road | H144: 0 | I144: Arterial / Suburban | J144: 300 | K144: =IFERROR(L144/J144,0) -> 7529 | L144: 2258700 | M144: =IFERROR(N144/H144,"") ->  | N144: 708017 | O144: 2016 | P144: =IFERROR(('General Input Sheet'!$G$38/(VLOOKUP(O144,Histindex,3,FALSE))),1) -> 1 | Q144: Existing unsignallised Int | R144: =IFERROR(_xlfn.IFS(AND(Q144<>"New",D144<>"Road Bridge"),30%,D144="Road Bridge",10%),0) -> 0.3 | S144: 212405 | T144: 0.075 | U144: =ROUND((N144+V144+W144)*T144,0) -> 70205 | V144: =ROUND(N144*17%,0) -> 120363 | W144: =ROUND((N144+V144)*13%,0) -> 107689 | X144: 0 | Y144: =ROUND(N144+S144+U144+V144+W144,0) -> 1218679 | Z144: 2019 | AA144: =(1+PPI)^('Future Trunk Assets - Transport'!Z144-YEAR) -> 1.05720708 | AB144: =IF(Z144<YEAR,1,IF('General Input Sheet'!$E$32="WACC1",1/(1+WACC1)^(Z144-YEAR), IF('General Input Sheet'!$E$32="WACC2",1/(1+WACC2)^(Z144-YEAR),"Check WACC Option in General Input Sheet"))) -> 0.8417615727 | AC144: =ROUND(Y144+L144-X144,0) -> 3477379 | AD144: =IFERROR(ROUND((Y144*AA144)+((1+Landind)^(Z144-YEAR)*L144),0),0) -> 3720769 | AE144: =IFERROR(ROUND((AD144*AB144),0),0) -> 3132000
B145: R173 | C145: FVA-RI-002 | D145: Road Intersection Project | E145: 8 | F145: St. Pauls Terrace/Constance Street Intersection | G145: 6 Lane Road / 2 Lane Road | H145: 0 | I145: Arterial / District | J145: 300 | K145: 2734 | L145: 820200 | N145: 554170 | O145: 2016 | P145: =IFERROR(('General Input Sheet'!$G$38/(VLOOKUP(O145,Histindex,3,FALSE))),1) -> 1 | Q145: Existing signallised Int | R145: =IFERROR(_xlfn.IFS(AND(Q145<>"New",D145<>"Road Bridge"),30%,D145="Road Bridge",10%),0) -> 0.3 | S145: 166251 | T145: 0.15 | U145: 109900 | V145: 94209 | W145: 84289 | X145: 0 | Y145: 1008819 | Z145: 2024 | AA145: =(1+PPI)^('Future Trunk Assets - Transport'!Z145-YEAR) -> 1.159916788 | AB145: =IF(Z145<YEAR,1,IF('General Input Sheet'!$E$32="WACC1",1/(1+WACC1)^(Z145-YEAR), IF('General Input Sheet'!$E$32="WACC2",1/(1+WACC2)^(Z145-YEAR),"Check WACC Option in General Input Sheet"))) -> 0.6316903693 | AC145: 1829019 | AD145: 2169480 | AE145: 1370440
B146: R170 | C146: GAP-RI-001 | D146: Road Intersection Project | E146: 12 | F146: Payne Road/Moggill Road Intersection | G146: 4 Lane Road / 2 Lane Road | H146: 0 | I146: Suburban / Local | J146: 300 | K146: 1076 | L146: 322800 | N146: 466452 | O146: 2016 | P146: =IFERROR(('General Input Sheet'!$G$38/(VLOOKUP(O146,Histindex,3,FALSE))),1) -> 1 | Q146: Existing unsignallised Int | R146: =IFERROR(_xlfn.IFS(AND(Q146<>"New",D146<>"Road Bridge"),30%,D146="Road Bridge",10%),0) -> 0.3 | S146: 139936 | T146: 0.075 | U146: 46252 | V146: 79297 | W146: 70947 | X146: 0 | Y146: 802884 | Z146: 2019 | AA146: =(1+PPI)^('Future Trunk Assets - Transport'!Z146-YEAR) -> 1.05720708 | AB146: =IF(Z146<YEAR,1,IF('General Input Sheet'!$E$32="WACC1",1/(1+WACC1)^(Z146-YEAR), IF('General Input Sheet'!$E$32="WACC2",1/(1+WACC2)^(Z146-YEAR),"Check WACC Option in General Input Sheet"))) -> 0.8417615727 | AC146: 1125684 | AD146: 1196435 | AE146: 1007113
B147: R170 | C147: GAP-RI-002 | D147: Road Intersection Project | E147: 12 | F147: Waterworks Road/Settlement Road Intersection | G147: 6 Lane Road / 4 Lane Road | H147: 0 | I147: Arterial / Suburban | J147: 300 | K147: 936 | L147: 280800 | N147: 597881 | O147: 2016 | P147: =IFERROR(('General Input Sheet'!$G$38/(VLOOKUP(O147,Histindex,3,FALSE))),1) -> 1 | Q147: Existing signallised Int | R147: =IFERROR(_xlfn.IFS(AND(Q147<>"New",D147<>"Road Bridge"),30%,D147="Road Bridge",10%),0) -> 0.3 | S147: 179364 | T147: 0.15 | U147: 118569 | V147: 101640 | W147: 90938 | X147: 0 | Y147: 1088392 | Z147: 2024 | AA147: =(1+PPI)^('Future Trunk Assets - Transport'!Z147-YEAR) -> 1.159916788 | AB147: =IF(Z147<YEAR,1,IF('General Input Sheet'!$E$32="WACC1",1/(1+WACC1)^(Z147-YEAR), IF('General Input Sheet'!$E$32="WACC2",1/(1+WACC2)^(Z147-YEAR),"Check WACC Option in General Input Sheet"))) -> 0.6316903693 | AC147: 1369192 | AD147: 1604572 | AE147: 1013593
B148: R93 | C148: GEE-RC-002 | D148: Road Corridor Project | E148: 15 | F148: Murphy Road (Ellison Street to Queens Circuit) | G148: 4 Lane Road | H148: 628 | I148: Suburban | J148: 2461 | K148: 820.9764323 | L148: 2020423 | M148: 2463.83121 | N148: 1547286 | O148: 2016 | P148: =IFERROR(('General Input Sheet'!$G$38/(VLOOKUP(O148,Histindex,3,FALSE))),1) -> 1 | Q148: Upgrade | R148: =IFERROR(_xlfn.IFS(AND(Q148<>"New",D148<>"Road Bridge"),30%,D148="Road Bridge",10%),0) -> 0.3 | S148: 464186 | T148: 0.15 | U148: 306850 | V148: 263039 | W148: 235342 | X148: 0 | Y148: 2816703 | Z148: 2024 | AA148: =(1+PPI)^('Future Trunk Assets - Transport'!Z148-YEAR) -> 1.159916788 | AB148: =IF(Z148<YEAR,1,IF('General Input Sheet'!$E$32="WACC1",1/(1+WACC1)^(Z148-YEAR), IF('General Input Sheet'!$E$32="WACC2",1/(1+WACC2)^(Z148-YEAR),"Check WACC Option in General Input Sheet"))) -> 0.6316903693 | AC148: 4837126 | AD148: 5728830 | AE148: 3618847
B149: R93 | C149: GEE-RI-001 | D149: Road Intersection Project | E149: 15 | F149: Murphy Road/Ellison Road Intersection | G149: 4 Lane Road / 2 Lane Road | H149: 0 | I149: Suburban / District | J149: 150 | K149: 936 | L149: 140400 | N149: 711951 | O149: 2016 | P149: =IFERROR(('General Input Sheet'!$G$38/(VLOOKUP(O149,Histindex,3,FALSE))),1) -> 1 | Q149: Existing unsignallised Int | R149: =IFERROR(_xlfn.IFS(AND(Q149<>"New",D149<>"Road Bridge"),30%,D149="Road Bridge",10%),0) -> 0.3 | S149: 213585 | T149: 0.075 | U149: 70595 | V149: 121032 | W149: 108288 | X149: 0 | Y149: 1225451 | Z149: 2019 | AA149: =(1+PPI)^('Future Trunk Assets - Transport'!Z149-YEAR) -> 1.05720708 | AB149: =IF(Z149<YEAR,1,IF('General Input Sheet'!$E$32="WACC1",1/(1+WACC1)^(Z149-YEAR), IF('General Input Sheet'!$E$32="WACC2",1/(1+WACC2)^(Z149-YEAR),"Check WACC Option in General Input Sheet"))) -> 0.8417615727 | AC149: 1365851 | AD149: 1446751 | AE149: 1217819
B150: R93 | C150: GEE-RI-002 | D150: Road Intersection Project | E150: 15 | F150: Robinson Road West/Murphy Road Intersection | G150: 6 Lane Road / 4 Lane Road | H150: 0 | I150: Arterial / Suburban | J150: 450 | K150: 838 | L150: 377100 | N150: 597881 | O150: 2016 | P150: =IFERROR(('General Input Sheet'!$G$38/(VLOOKUP(O150,Histindex,3,FALSE))),1) -> 1 | Q150: Existing signallised Int | R150: =IFERROR(_xlfn.IFS(AND(Q150<>"New",D150<>"Road Bridge"),30%,D150="Road Bridge",10%),0) -> 0.3 | S150: 179364 | T150: 0.075 | U150: 59284 | V150: 101640 | W150: 90938 | X150: 0 | Y150: 1029107 | Z150: 2019 | AA150: =(1+PPI)^('Future Trunk Assets - Transport'!Z150-YEAR) -> 1.05720708 | AB150: =IF(Z150<YEAR,1,IF('General Input Sheet'!$E$32="WACC1",1/(1+WACC1)^(Z150-YEAR), IF('General Input Sheet'!$E$32="WACC2",1/(1+WACC2)^(Z150-YEAR),"Check WACC Option in General Input Sheet"))) -> 0.8417615727 | AC150: 1406207 | AD150: 1494075 | AE150: 1257655
B151: R93 | C151: GEE-RI-003 | D151: Road Intersection Project | E151: 15 | F151: Robinson Road East/Bilsen Road Intersection | G151: 6 Lane Road / 2 Lane Road | H151: 0 | I151: Arterial / District | J151: 300 | K151: 671.5 | L151: 201450 | N151: 789691 | O151: 2016 | P151: =IFERROR(('General Input Sheet'!$G$38/(VLOOKUP(O151,Histindex,3,FALSE))),1) -> 1 | Q151: Existing unsignallised Int | R151: =IFERROR(_xlfn.IFS(AND(Q151<>"New",D151<>"Road Bridge"),30%,D151="Road Bridge",10%),0) -> 0.3 | S151: 236907 | T151: 0.075 | U151: 78304 | V151: 134247 | W151: 120112 | X151: 0 | Y151: 1359261 | Z151: 2019 | AA151: =(1+PPI)^('Future Trunk Assets - Transport'!Z151-YEAR) -> 1.05720708 | AB151: =IF(Z151<YEAR,1,IF('General Input Sheet'!$E$32="WACC1",1/(1+WACC1)^(Z151-YEAR), IF('General Input Sheet'!$E$32="WACC2",1/(1+WACC2)^(Z151-YEAR),"Check WACC Option in General Input Sheet"))) -> 0.8417615727 | AC151: 1560711 | AD151: 1653960 | AE151: 1392240
B152: R152 | C152: GNG-RI-001 | D152: Road Intersection Project | E152: 14 | F152: Grange Road/Raymont Road Intersection | G152: 4 Lane Road / 4 Lane Road | H152: 0 | I152: Suburban / Suburban | J152: 300 | K152: 1412 | L152: 423600 | N152: 476691 | O152: 2016 | P152: =IFERROR(('General Input Sheet'!$G$38/(VLOOKUP(O152,Histindex,3,FALSE))),1) -> 1 | Q152: Existing signallised Int | R152: =IFERROR(_xlfn.IFS(AND(Q152<>"New",D152<>"Road Bridge"),30%,D152="Road Bridge",10%),0) -> 0.3 | S152: 143007 | T152: 0.075 | U152: 47267 | V152: 81037 | W152: 72505 | X152: 0 | Y152: 820507 | Z152: 2019 | AA152: =(1+PPI)^('Future Trunk Assets - Transport'!Z152-YEAR) -> 1.05720708 | AB152: =IF(Z152<YEAR,1,IF('General Input Sheet'!$E$32="WACC1",1/(1+WACC1)^(Z152-YEAR), IF('General Input Sheet'!$E$32="WACC2",1/(1+WACC2)^(Z152-YEAR),"Check WACC Option in General Input Sheet"))) -> 0.8417615727 | AC152: 1244107 | AD152: 1323617 | AE152: 1114170
B153: R152 | C153: GNG-RI-002 | D153: Road Intersection Project | E153: 14 | F153: Days Road/Kedron Brook Road Intersection | G153: 4 Lane Road / 4 Lane Road | H153: 0 | I153: Suburban / Suburban | J153: 150 | K153: 1412 | L153: 211800 | N153: 612889 | O153: 2016 | P153: =IFERROR(('General Input Sheet'!$G$38/(VLOOKUP(O153,Histindex,3,FALSE))),1) -> 1 | Q153: Existing unsignallised Int | R153: =IFERROR(_xlfn.IFS(AND(Q153<>"New",D153<>"Road Bridge"),30%,D153="Road Bridge",10%),0) -> 0.3 | S153: 183867 | T153: 0.075 | U153: 60773 | V153: 104191 | W153: 93220 | X153: 0 | Y153: 1054940 | Z153: 2019 | AA153: =(1+PPI)^('Future Trunk Assets - Transport'!Z153-YEAR) -> 1.05720708 | AB153: =IF(Z153<YEAR,1,IF('General Input Sheet'!$E$32="WACC1",1/(1+WACC1)^(Z153-YEAR), IF('General Input Sheet'!$E$32="WACC2",1/(1+WACC2)^(Z153-YEAR),"Check WACC Option in General Input Sheet"))) -> 0.8417615727 | AC153: 1266740 | AD153: 1343375 | AE153: 1130801
B154: R231 | C154: GRA-RI-001 | D154: Road Intersection Project | E154: 9 | F154: Oxley Road/Long Street East Intersection | G154: 6 Lane Road / 4 Lane Road | H154: 0 | I154: Arterial / Suburban | J154: 300 | K154: 1630 | L154: 489000 | N154: 723750 | O154: 2016 | P154: =IFERROR(('General Input Sheet'!$G$38/(VLOOKUP(O154,Histindex,3,FALSE))),1) -> 1 | Q154: Existing signallised Int | R154: =IFERROR(_xlfn.IFS(AND(Q154<>"New",D154<>"Road Bridge"),30%,D154="Road Bridge",10%),0) -> 0.3 | S154: 217125 | T154: 0.15 | U154: 143531 | V154: 123038 | W154: 110082 | X154: 0 | Y154: 1317526 | Z154: 2024 | AA154: =(1+PPI)^('Future Trunk Assets - Transport'!Z154-YEAR) -> 1.159916788 | AB154: =IF(Z154<YEAR,1,IF('General Input Sheet'!$E$32="WACC1",1/(1+WACC1)^(Z154-YEAR), IF('General Input Sheet'!$E$32="WACC2",1/(1+WACC2)^(Z154-YEAR),"Check WACC Option in General Input Sheet"))) -> 0.6316903693 | AC154: 1806526 | AD154: 2124020 | AE154: 1341723
B155: R213 | C155: GRE-RI-001 | D155: Road Intersection Project | E155: 4 | F155: Juliette Street/Marquis Street Intersection | G155: 6 Lane Road / 2 Lane Road | H155: 0 | I155: Arterial / Local | J155: 150 | K155: 1612 | L155: 241800 | N155: 466765 | O155: 2016 | P155: =IFERROR(('General Input Sheet'!$G$38/(VLOOKUP(O155,Histindex,3,FALSE))),1) -> 1 | Q155: Existing signallised Int | R155: =IFERROR(_xlfn.IFS(AND(Q155<>"New",D155<>"Road Bridge"),30%,D155="Road Bridge",10%),0) -> 0.3 | S155: 140030 | T155: 0.15 | U155: 92567 | V155: 79350 | W155: 70995 | X155: 0 | Y155: 849707 | Z155: 2024 | AA155: =(1+PPI)^('Future Trunk Assets - Transport'!Z155-YEAR) -> 1.159916788 | AB155: =IF(Z155<YEAR,1,IF('General Input Sheet'!$E$32="WACC1",1/(1+WACC1)^(Z155-YEAR), IF('General Input Sheet'!$E$32="WACC2",1/(1+WACC2)^(Z155-YEAR),"Check WACC Option in General Input Sheet"))) -> 0.6316903693 | AC155: 1091507 | AD155: 1280199 | AE155: 808689
B156: R213 | C156: GRE-RI-002 | D156: Road Intersection Project | E156: 4 | F156: Juliette Street/Earl Street Intersection | G156: 6 Lane Road / 4 Lane Road | H156: 0 | I156: Arterial / Suburban | J156: 150 | K156: 1612 | L156: 241800 | N156: 597881 | O156: 2016 | P156: =IFERROR(('General Input Sheet'!$G$38/(VLOOKUP(O156,Histindex,3,FALSE))),1) -> 1 | Q156: Existing signallised Int | R156: =IFERROR(_xlfn.IFS(AND(Q156<>"New",D156<>"Road Bridge"),30%,D156="Road Bridge",10%),0) -> 0.3 | S156: 179364 | T156: 0.15 | U156: 118569 | V156: 101640 | W156: 90938 | X156: 0 | Y156: 1088392 | Z156: 2024 | AA156: =(1+PPI)^('Future Trunk Assets - Transport'!Z156-YEAR) -> 1.159916788 | AB156: =IF(Z156<YEAR,1,IF('General Input Sheet'!$E$32="WACC1",1/(1+WACC1)^(Z156-YEAR), IF('General Input Sheet'!$E$32="WACC2",1/(1+WACC2)^(Z156-YEAR),"Check WACC Option in General Input Sheet"))) -> 0.6316903693 | AC156: 1330192 | AD156: 1557054 | AE156: 983576
B157: R217 | C157: GUM-RI-001 | D157: Road Intersection Project | E157: 1 | F157: Green Camp Road/New Cleveland Road Intersection | G157: 6 Lane Road / 2 Lane Road | H157: 0 | I157: Arterial / District | J157: 450 | K157: 103.6666667 | L157: 46650 | N157: 789691 | O157: 2016 | P157: =IFERROR(('General Input Sheet'!$G$38/(VLOOKUP(O157,Histindex,3,FALSE))),1) -> 1 | Q157: Existing unsignallised Int | R157: =IFERROR(_xlfn.IFS(AND(Q157<>"New",D157<>"Road Bridge"),30%,D157="Road Bridge",10%),0) -> 0.3 | S157: 236907 | T157: 0.15 | U157: 156608 | V157: 134247 | W157: 120112 | X157: 0 | Y157: 1437565 | Z157: 2024 | AA157: =(1+PPI)^('Future Trunk Assets - Transport'!Z157-YEAR) -> 1.159916788 | AB157: =IF(Z157<YEAR,1,IF('General Input Sheet'!$E$32="WACC1",1/(1+WACC1)^(Z157-YEAR), IF('General Input Sheet'!$E$32="WACC2",1/(1+WACC2)^(Z157-YEAR),"Check WACC Option in General Input Sheet"))) -> 0.6316903693 | AC157: 1484215 | AD157: 1724294 | AE157: 1089220
B158: R153 | C158: HAM-RC-004 | D158: Road Corridor Project | E158: 16 | F158: Kingsford Smith Drive (Hunt Street to Cooksley Street) | G158: 6 Lane Road | H158: 127 | I158: Arterial | J158: 471 | K158: 1266.276008 | L158: 596416 | M158: 3003.299213 | N158: 381419 | O158: 2016 | P158: =IFERROR(('General Input Sheet'!$G$38/(VLOOKUP(O158,Histindex,3,FALSE))),1) -> 1 | Q158: Upgrade | R158: =IFERROR(_xlfn.IFS(AND(Q158<>"New",D158<>"Road Bridge"),30%,D158="Road Bridge",10%),0) -> 0.3 | S158: 114426 | T158: 0.075 | U158: 37821 | V158: 64841 | W158: 58014 | X158: 0 | Y158: 656521 | Z158: 2019 | AA158: =(1+PPI)^('Future Trunk Assets - Transport'!Z158-YEAR) -> 1.05720708 | AB158: =IF(Z158<YEAR,1,IF('General Input Sheet'!$E$32="WACC1",1/(1+WACC1)^(Z158-YEAR), IF('General Input Sheet'!$E$32="WACC2",1/(1+WACC2)^(Z158-YEAR),"Check WACC Option in General Input Sheet"))) -> 0.8417615727 | AC158: 1252937 | AD158: 1336353 | AE158: 1124891
B159: R154 | C159: HAM-RC-005 | D159: Road Corridor Project | E159: 16 | F159: Kingsford Smith Drive (Lexington Terrace to Racecourse Road) | G159: 6 Lane Road | H159: 84 | I159: Arterial | J159: 346 | K159: 170.1387283 | L159: 58868 | M159: 3649.869048 | N159: 306589 | O159: 2016 | P159: =IFERROR(('General Input Sheet'!$G$38/(VLOOKUP(O159,Histindex,3,FALSE))),1) -> 1 | Q159: Upgrade | R159: =IFERROR(_xlfn.IFS(AND(Q159<>"New",D159<>"Road Bridge"),30%,D159="Road Bridge",10%),0) -> 0.3 | S159: 91977 | T159: 0.075 | U159: 30401 | V159: 52120 | W159: 46632 | X159: 0 | Y159: 527719 | Z159: 2019 | AA159: =(1+PPI)^('Future Trunk Assets - Transport'!Z159-YEAR) -> 1.05720708 | AB159: =IF(Z159<YEAR,1,IF('General Input Sheet'!$E$32="WACC1",1/(1+WACC1)^(Z159-YEAR), IF('General Input Sheet'!$E$32="WACC2",1/(1+WACC2)^(Z159-YEAR),"Check WACC Option in General Input Sheet"))) -> 0.8417615727 | AC159: 586587 | AD159: 621303 | AE159: 522989
B160: R154 | C160: HAM-RC-006 | D160: Road Corridor Project | E160: 16 | F160: Kingsford Smith Drive (Riverview Terrace to Flexington Terrace) | G160: 6 Lane Road | H160: 80 | I160: Arterial | J160: 217 | K160: 77.71889401 | L160: 16865 | M160: 3651.6625 | N160: 292133 | O160: 2016 | P160: =IFERROR(('General Input Sheet'!$G$38/(VLOOKUP(O160,Histindex,3,FALSE))),1) -> 1 | Q160: Upgrade | R160: =IFERROR(_xlfn.IFS(AND(Q160<>"New",D160<>"Road Bridge"),30%,D160="Road Bridge",10%),0) -> 0.3 | S160: 87640 | T160: 0.075 | U160: 28967 | V160: 49663 | W160: 44433 | X160: 0 | Y160: 502836 | Z160: 2019 | AA160: =(1+PPI)^('Future Trunk Assets - Transport'!Z160-YEAR) -> 1.05720708 | AB160: =IF(Z160<YEAR,1,IF('General Input Sheet'!$E$32="WACC1",1/(1+WACC1)^(Z160-YEAR), IF('General Input Sheet'!$E$32="WACC2",1/(1+WACC2)^(Z160-YEAR),"Check WACC Option in General Input Sheet"))) -> 0.8417615727 | AC160: 519701 | AD160: 549764 | AE160: 462770
B161: R153, R154 | C161: HAM-RC-007 | D161: Road Corridor Project | E161: 16 | F161: Kingsford Smith Drive (Crescent Road to Riverview Terrace) | G161: 6 Lane Road | H161: 693 | I161: Arterial | J161: 2889 | K161: 1180.673243 | L161: 3410965 | M161: 2709.75469 | N161: 1877860 | O161: 2016 | P161: =IFERROR(('General Input Sheet'!$G$38/(VLOOKUP(O161,Histindex,3,FALSE))),1) -> 1 | Q161: Upgrade | R161: =IFERROR(_xlfn.IFS(AND(Q161<>"New",D161<>"Road Bridge"),30%,D161="Road Bridge",10%),0) -> 0.3 | S161: 563358 | T161: 0.075 | U161: 186204 | V161: 319236 | W161: 285622 | X161: 0 | Y161: 3232280 | Z161: 2019 | AA161: =(1+PPI)^('Future Trunk Assets - Transport'!Z161-YEAR) -> 1.05720708 | AB161: =IF(Z161<YEAR,1,IF('General Input Sheet'!$E$32="WACC1",1/(1+WACC1)^(Z161-YEAR), IF('General Input Sheet'!$E$32="WACC2",1/(1+WACC2)^(Z161-YEAR),"Check WACC Option in General Input Sheet"))) -> 0.8417615727 | AC161: 6643245 | AD161: 7090426 | AE161: 5968448
B162: R153 | C162: HAM-RC-008 | D162: Road Corridor Project | E162: 16 | F162: Kingsford Smith Drive (Cooksley Street to Crescent Road) | G162: 6 Lane Road | H162: 596 | I162: Arterial | J162: 2131 | K162: 859.8249648 | L162: 1832287 | M162: 2711.634228 | N162: 1616134 | O162: 2016 | P162: =IFERROR(('General Input Sheet'!$G$38/(VLOOKUP(O162,Histindex,3,FALSE))),1) -> 1 | Q162: Upgrade | R162: =IFERROR(_xlfn.IFS(AND(Q162<>"New",D162<>"Road Bridge"),30%,D162="Road Bridge",10%),0) -> 0.3 | S162: 484840 | T162: 0.075 | U162: 160252 | V162: 274743 | W162: 245814 | X162: 0 | Y162: 2781783 | Z162: 2019 | AA162: =(1+PPI)^('Future Trunk Assets - Transport'!Z162-YEAR) -> 1.05720708 | AB162: =IF(Z162<YEAR,1,IF('General Input Sheet'!$E$32="WACC1",1/(1+WACC1)^(Z162-YEAR), IF('General Input Sheet'!$E$32="WACC2",1/(1+WACC2)^(Z162-YEAR),"Check WACC Option in General Input Sheet"))) -> 0.8417615727 | AC162: 4614070 | AD162: 4914093 | AE162: 4136495
B163: R154 | C163: HAM-RC-009 | D163: Road Corridor Project | E163: 16 | F163: Kingsford Smith Drive (Racecourse Road to Harbour Road) | G163: 6 Lane Road | H163: 109 | I163: Arterial | J163: 922 | K163: 634.0889371 | L163: 584630 | M163: 3629.724771 | N163: 395640 | O163: 2016 | P163: =IFERROR(('General Input Sheet'!$G$38/(VLOOKUP(O163,Histindex,3,FALSE))),1) -> 1 | Q163: Upgrade | R163: =IFERROR(_xlfn.IFS(AND(Q163<>"New",D163<>"Road Bridge"),30%,D163="Road Bridge",10%),0) -> 0.3 | S163: 118692 | T163: 0.075 | U163: 39231 | V163: 67259 | W163: 60177 | X163: 0 | Y163: 680999 | Z163: 2019 | AA163: =(1+PPI)^('Future Trunk Assets - Transport'!Z163-YEAR) -> 1.05720708 | AB163: =IF(Z163<YEAR,1,IF('General Input Sheet'!$E$32="WACC1",1/(1+WACC1)^(Z163-YEAR), IF('General Input Sheet'!$E$32="WACC2",1/(1+WACC2)^(Z163-YEAR),"Check WACC Option in General Input Sheet"))) -> 0.8417615727 | AC163: 1265629 | AD163: 1349540 | AE163: 1135991
B164: R154 | C164: HAM-RC-010 | D164: Road Corridor Project | E164: 16 | F164: Kingsford Smith Drive (Harbour Road to Nudgee Road) | G164: 6 Lane Road | H164: 534 | I164: Arterial | J164: 2961 | K164: 686.6190476 | L164: 2033079 | M164: 2709.447566 | N164: 1446845 | O164: 2016 | P164: =IFERROR(('General Input Sheet'!$G$38/(VLOOKUP(O164,Histindex,3,FALSE))),1) -> 1 | Q164: Upgrade | R164: =IFERROR(_xlfn.IFS(AND(Q164<>"New",D164<>"Road Bridge"),30%,D164="Road Bridge",10%),0) -> 0.3 | S164: 434054 | T164: 0.075 | U164: 143466 | V164: 245964 | W164: 220065 | X164: 0 | Y164: 2490394 | Z164: 2019 | AA164: =(1+PPI)^('Future Trunk Assets - Transport'!Z164-YEAR) -> 1.05720708 | AB164: =IF(Z164<YEAR,1,IF('General Input Sheet'!$E$32="WACC1",1/(1+WACC1)^(Z164-YEAR), IF('General Input Sheet'!$E$32="WACC2",1/(1+WACC2)^(Z164-YEAR),"Check WACC Option in General Input Sheet"))) -> 0.8417615727 | AC164: 4523473 | AD164: 4822266 | AE164: 4059198
B165: R154 | C165: HAM-RC-011 | D165: Road Corridor Project | E165: 16 | F165: Kingsford Smith Drive (Nudgee Road to Theodore Street) | G165: 6 Lane Road | H165: 916 | I165: Arterial | J165: 5247 | K165: 749.7556699 | L165: 3933968 | M165: 2709.825328 | N165: 2482200 | O165: 2016 | P165: =IFERROR(('General Input Sheet'!$G$38/(VLOOKUP(O165,Histindex,3,FALSE))),1) -> 1 | Q165: Upgrade | R165: =IFERROR(_xlfn.IFS(AND(Q165<>"New",D165<>"Road Bridge"),30%,D165="Road Bridge",10%),0) -> 0.3 | S165: 744660 | T165: 0.075 | U165: 246129 | V165: 421974 | W165: 377543 | X165: 0 | Y165: 4272506 | Z165: 2019 | AA165: =(1+PPI)^('Future Trunk Assets - Transport'!Z165-YEAR) -> 1.05720708 | AB165: =IF(Z165<YEAR,1,IF('General Input Sheet'!$E$32="WACC1",1/(1+WACC1)^(Z165-YEAR), IF('General Input Sheet'!$E$32="WACC2",1/(1+WACC2)^(Z165-YEAR),"Check WACC Option in General Input Sheet"))) -> 0.8417615727 | AC165: 8206474 | AD165: 8753377 | AE165: 7368256
B166: R153 | C166: HAM-RI-001 | D166: Road Intersection Project | E166: 16 | F166: Kingsford Smith Drive/Cooksley Intersection | G166: 6 Lane Road / 2 Lane Road | H166: 0 | I166: Arterial / District | J166: 150 | K166: 1781 | L166: 267150 | N166: 460653 | O166: 2016 | P166: =IFERROR(('General Input Sheet'!$G$38/(VLOOKUP(O166,Histindex,3,FALSE))),1) -> 1 | Q166: Existing signallised Int | R166: =IFERROR(_xlfn.IFS(AND(Q166<>"New",D166<>"Road Bridge"),30%,D166="Road Bridge",10%),0) -> 0.3 | S166: 138196 | T166: 0.075 | U166: 45677 | V166: 78311 | W166: 70065 | X166: 0 | Y166: 792902 | Z166: 2019 | AA166: =(1+PPI)^('Future Trunk Assets - Transport'!Z166-YEAR) -> 1.05720708 | AB166: =IF(Z166<YEAR,1,IF('General Input Sheet'!$E$32="WACC1",1/(1+WACC1)^(Z166-YEAR), IF('General Input Sheet'!$E$32="WACC2",1/(1+WACC2)^(Z166-YEAR),"Check WACC Option in General Input Sheet"))) -> 0.8417615727 | AC166: 1060052 | AD166: 1125953 | AE166: 947784
B167: R154 | C167: HAM-RI-002 | D167: Road Intersection Project | E167: 16 | F167: Kingsford Smith Drive/Nudgee Road Intersection | G167: 6 Lane Road / 4 Lane Road | H167: 0 | I167: Arterial / Suburban | J167: 150 | K167: 1100 | L167: 165000 | N167: 597881 | O167: 2016 | P167: =IFERROR(('General Input Sheet'!$G$38/(VLOOKUP(O167,Histindex,3,FALSE))),1) -> 1 | Q167: Existing signallised Int | R167: =IFERROR(_xlfn.IFS(AND(Q167<>"New",D167<>"Road Bridge"),30%,D167="Road Bridge",10%),0) -> 0.3 | S167: =ROUND(N167*R167,0) -> 179364 | T167: 0.075 | U167: 59284 | V167: 101640 | W167: 90938 | X167: 0 | Y167: 1029107 | Z167: 2019 | AA167: =(1+PPI)^('Future Trunk Assets - Transport'!Z167-YEAR) -> 1.05720708 | AB167: =IF(Z167<YEAR,1,IF('General Input Sheet'!$E$32="WACC1",1/(1+WACC1)^(Z167-YEAR), IF('General Input Sheet'!$E$32="WACC2",1/(1+WACC2)^(Z167-YEAR),"Check WACC Option in General Input Sheet"))) -> 0.8417615727 | AC167: 1194107 | AD167: 1265666 | AE167: 1065389
B168: R153 | C168: HAM-RI-005 | D168: Road Intersection Project | E168: 16 | F168: Kingsford Smith Drive/Hunt Street Intersection | G168: 6 Lane Road / 4 Lane Road | H168: 0 | I168: Arterial / Suburban | J168: 150 | K168: 2221 | L168: 333150 | N168: 672616 | O168: 2016 | P168: =IFERROR(('General Input Sheet'!$G$38/(VLOOKUP(O168,Histindex,3,FALSE))),1) -> 1 | Q168: Existing unsignallised Int | R168: =IFERROR(_xlfn.IFS(AND(Q168<>"New",D168<>"Road Bridge"),30%,D168="Road Bridge",10%),0) -> 0.3 | S168: 201785 | T168: 0.075 | U168: 66695 | V168: 114345 | W168: 102305 | X168: 0 | Y168: 1157746 | Z168: 2019 | AA168: =(1+PPI)^('Future Trunk Assets - Transport'!Z168-YEAR) -> 1.05720708 | AB168: =IF(Z168<YEAR,1,IF('General Input Sheet'!$E$32="WACC1",1/(1+WACC1)^(Z168-YEAR), IF('General Input Sheet'!$E$32="WACC2",1/(1+WACC2)^(Z168-YEAR),"Check WACC Option in General Input Sheet"))) -> 0.8417615727 | AC168: 1490896 | AD168: 1582743 | AE168: 1332292
B169: R153 | C169: HAM-RI-006 | D169: Road Intersection Project | E169: 16 | F169: Kingsford Smith Drive/Crescent Road Intersection | G169: 6 Lane Road / 2 Lane Road | H169: 0 | I169: Arterial / Local | J169: 150 | K169: 1612 | L169: 241800 | N169: 525112 | O169: 2016 | P169: =IFERROR(('General Input Sheet'!$G$38/(VLOOKUP(O169,Histindex,3,FALSE))),1) -> 1 | Q169: Existing unsignallised Int | R169: =IFERROR(_xlfn.IFS(AND(Q169<>"New",D169<>"Road Bridge"),30%,D169="Road Bridge",10%),0) -> 0.3 | S169: 157534 | T169: 0.075 | U169: 52069 | V169: 89269 | W169: 79870 | X169: 0 | Y169: 903854 | Z169: 2019 | AA169: =(1+PPI)^('Future Trunk Assets - Transport'!Z169-YEAR) -> 1.05720708 | AB169: =IF(Z169<YEAR,1,IF('General Input Sheet'!$E$32="WACC1",1/(1+WACC1)^(Z169-YEAR), IF('General Input Sheet'!$E$32="WACC2",1/(1+WACC2)^(Z169-YEAR),"Check WACC Option in General Input Sheet"))) -> 0.8417615727 | AC169: 1145654 | AD169: 1215953 | AE169: 1023543
B170: R331 | C170: HEA-RC-002 | D170: Road Corridor Project | E170: 9 | F170: Wadeville Street (Blunder Road to Stapylton Road) | G170: 4 Lane Road | H170: 790 | I170: Suburban | J170: 4670 | K170: 127.0062099 | L170: 593119 | M170: 2465.022785 | N170: 1947368 | O170: 2016 | P170: =IFERROR(('General Input Sheet'!$G$38/(VLOOKUP(O170,Histindex,3,FALSE))),1) -> 1 | Q170: Upgrade | R170: =IFERROR(_xlfn.IFS(AND(Q170<>"New",D170<>"Road Bridge"),30%,D170="Road Bridge",10%),0) -> 0.3 | S170: 584210 | T170: 0.15 | U170: 386192 | V170: 331053 | W170: 296195 | X170: 0 | Y170: 3545018 | Z170: 2024 | AA170: =(1+PPI)^('Future Trunk Assets - Transport'!Z170-YEAR) -> 1.159916788 | AB170: =IF(Z170<YEAR,1,IF('General Input Sheet'!$E$32="WACC1",1/(1+WACC1)^(Z170-YEAR), IF('General Input Sheet'!$E$32="WACC2",1/(1+WACC2)^(Z170-YEAR),"Check WACC Option in General Input Sheet"))) -> 0.6316903693 | AC170: 4138137 | AD170: 4834584 | AE170: 3053960
B171: R331 | C171: HEA-RC-004 | D171: Road Corridor Project | E171: 9 | F171: Stapylton Road (Logan Motorway Ramp to Ritchie Road) | G171: 6 Lane Road | H171: 1056 | I171: Arterial | J171: 3571 | K171: 358.9927191 | L171: 1281963 | M171: 2711.417614 | N171: 2863257 | O171: 2016 | P171: =IFERROR(('General Input Sheet'!$G$38/(VLOOKUP(O171,Histindex,3,FALSE))),1) -> 1 | Q171: Upgrade | R171: =IFERROR(_xlfn.IFS(AND(Q171<>"New",D171<>"Road Bridge"),30%,D171="Road Bridge",10%),0) -> 0.3 | S171: 858977 | T171: 0.075 | U171: 283913 | V171: 486754 | W171: 435501 | X171: 0 | Y171: 4928402 | Z171: 2019 | AA171: =(1+PPI)^('Future Trunk Assets - Transport'!Z171-YEAR) -> 1.05720708 | AB171: =IF(Z171<YEAR,1,IF('General Input Sheet'!$E$32="WACC1",1/(1+WACC1)^(Z171-YEAR), IF('General Input Sheet'!$E$32="WACC2",1/(1+WACC2)^(Z171-YEAR),"Check WACC Option in General Input Sheet"))) -> 0.8417615727 | AC171: 6210365 | AD171: 6590875 | AE171: 5547945
B172: R351 | C172: HEA-RI-001 | D172: Road Intersection Project | E172: 9 | F172: Johnson Road/Stapylton Road Intersection | G172: 4 Lane Road / 4 Lane Road | H172: 0 | I172: Suburban / Suburban | J172: 0 | K172: 0 | L172: 0 | N172: 817184 | O172: 2016 | P172: =IFERROR(('General Input Sheet'!$G$38/(VLOOKUP(O172,Histindex,3,FALSE))),1) -> 1 | Q172: Existing unsignallised Int | R172: =IFERROR(_xlfn.IFS(AND(Q172<>"New",D172<>"Road Bridge"),30%,D172="Road Bridge",10%),0) -> 0.3 | S172: 245155 | T172: 0.075 | U172: 81030 | V172: 138921 | W172: 124294 | X172: 0 | Y172: 1406584 | Z172: 2019 | AA172: =(1+PPI)^('Future Trunk Assets - Transport'!Z172-YEAR) -> 1.05720708 | AB172: =IF(Z172<YEAR,1,IF('General Input Sheet'!$E$32="WACC1",1/(1+WACC1)^(Z172-YEAR), IF('General Input Sheet'!$E$32="WACC2",1/(1+WACC2)^(Z172-YEAR),"Check WACC Option in General Input Sheet"))) -> 0.8417615727 | AC172: 1406584 | AD172: 1487051 | AE172: 1251742
B173: R134 | C173: HEN-RI-003 | D173: Road Intersection Project | E173: 16 | F173: Zillman Road/Gerler Road Intersection | G173: 2 Lane Road / 2 Lane Road | H173: 0 | I173: District / District | J173: 300 | K173: 1412 | L173: 423600 | N173: 309186 | O173: 2016 | P173: =IFERROR(('General Input Sheet'!$G$38/(VLOOKUP(O173,Histindex,3,FALSE))),1) -> 1 | Q173: Existing signallised Int | R173: =IFERROR(_xlfn.IFS(AND(Q173<>"New",D173<>"Road Bridge"),30%,D173="Road Bridge",10%),0) -> 0.3 | S173: 92756 | T173: 0.075 | U173: 30658 | V173: 52562 | W173: 47027 | X173: 0 | Y173: 532189 | Z173: 2019 | AA173: =(1+PPI)^('Future Trunk Assets - Transport'!Z173-YEAR) -> 1.05720708 | AB173: =IF(Z173<YEAR,1,IF('General Input Sheet'!$E$32="WACC1",1/(1+WACC1)^(Z173-YEAR), IF('General Input Sheet'!$E$32="WACC2",1/(1+WACC2)^(Z173-YEAR),"Check WACC Option in General Input Sheet"))) -> 0.8417615727 | AC173: 955789 | AD173: 1018805 | AE173: 857591
B174: R291 | C174: INA-RI-004 | D174: Road Intersection Project | E174: 9 | F174: Partridge Road/Wirraway Parade Intersection | G174: 4 Lane Road / 2 Lane Road | H174: 0 | I174: Suburban / District | J174: 300 | K174: 1630 | L174: 489000 | N174: 646377 | O174: 2016 | P174: =IFERROR(('General Input Sheet'!$G$38/(VLOOKUP(O174,Histindex,3,FALSE))),1) -> 1 | Q174: Existing unsignallised Int | R174: =IFERROR(_xlfn.IFS(AND(Q174<>"New",D174<>"Road Bridge"),30%,D174="Road Bridge",10%),0) -> 0.3 | S174: 193913 | T174: 0.075 | U174: 64093 | V174: 109884 | W174: 98314 | X174: 0 | Y174: 1112581 | Z174: 2019 | AA174: =(1+PPI)^('Future Trunk Assets - Transport'!Z174-YEAR) -> 1.05720708 | AB174: =IF(Z174<YEAR,1,IF('General Input Sheet'!$E$32="WACC1",1/(1+WACC1)^(Z174-YEAR), IF('General Input Sheet'!$E$32="WACC2",1/(1+WACC2)^(Z174-YEAR),"Check WACC Option in General Input Sheet"))) -> 0.8417615727 | AC174: 1601581 | AD174: 1702828 | AE174: 1433375
B175: R211 | C175: IND-RI-003 | D175: Road Intersection Project | E175: 11 | F175: Moggill Road/Coonan Street/Keating Street Intersection | G175: 6 Lane Road / 6 Lane Road | H175: 0 | I175: Arterial / Arterial | J175: 0 | K175: 0 | L175: 0 | N175: 859144 | O175: 2016 | P175: =IFERROR(('General Input Sheet'!$G$38/(VLOOKUP(O175,Histindex,3,FALSE))),1) -> 1 | Q175: Existing unsignallised Int | R175: =IFERROR(_xlfn.IFS(AND(Q175<>"New",D175<>"Road Bridge"),30%,D175="Road Bridge",10%),0) -> 0.3 | S175: 257743 | T175: 0.15 | U175: 170381 | V175: 146054 | W175: 130676 | X175: 0 | Y175: 1563998 | Z175: 2024 | AA175: =(1+PPI)^('Future Trunk Assets - Transport'!Z175-YEAR) -> 1.159916788 | AB175: =IF(Z175<YEAR,1,IF('General Input Sheet'!$E$32="WACC1",1/(1+WACC1)^(Z175-YEAR), IF('General Input Sheet'!$E$32="WACC2",1/(1+WACC2)^(Z175-YEAR),"Check WACC Option in General Input Sheet"))) -> 0.6316903693 | AC175: 1563998 | AD175: 1814108 | AE175: 1145955
B176: R150 | C176: KRR-RC-002 | D176: Road Corridor Project | E176: 13, 12 | F176: Settlement Road (Kilbowie Street to Mungarie Street) | G176: 4 Lane Road | H176: 1672 | I176: Suburban | J176: 6110 | K176: 45.29165303 | L176: 276732 | M176: 2465.050239 | N176: 4121564 | O176: 2016 | P176: =IFERROR(('General Input Sheet'!$G$38/(VLOOKUP(O176,Histindex,3,FALSE))),1) -> 1 | Q176: Upgrade | R176: =IFERROR(_xlfn.IFS(AND(Q176<>"New",D176<>"Road Bridge"),30%,D176="Road Bridge",10%),0) -> 0.3 | S176: 1236469 | T176: 0.15 | U176: 817368 | V176: 700666 | W176: 626890 | X176: 0 | Y176: 7502957 | Z176: 2024 | AA176: =(1+PPI)^('Future Trunk Assets - Transport'!Z176-YEAR) -> 1.159916788 | AB176: =IF(Z176<YEAR,1,IF('General Input Sheet'!$E$32="WACC1",1/(1+WACC1)^(Z176-YEAR), IF('General Input Sheet'!$E$32="WACC2",1/(1+WACC2)^(Z176-YEAR),"Check WACC Option in General Input Sheet"))) -> 0.6316903693 | AC176: 7779689 | AD176: 9039977 | AE176: 5710466
B177: R130 | C177: KRR-RI-001 | D177: Road Intersection Project | E177: 13 | F177: Dawson Road/Madsen Street Intersection | G177: 4 Lane Road / 2 Lane Road | H177: 0 | I177: Suburban / District | J177: 150 | K177: 936 | L177: 140400 | N177: 533964 | O177: 2016 | P177: =IFERROR(('General Input Sheet'!$G$38/(VLOOKUP(O177,Histindex,3,FALSE))),1) -> 1 | Q177: Existing unsignallised Int | R177: =IFERROR(_xlfn.IFS(AND(Q177<>"New",D177<>"Road Bridge"),30%,D177="Road Bridge",10%),0) -> 0.3 | S177: 160189 | T177: 0.075 | U177: 52947 | V177: 90774 | W177: 81216 | X177: 0 | Y177: 919090 | Z177: 2019 | AA177: =(1+PPI)^('Future Trunk Assets - Transport'!Z177-YEAR) -> 1.05720708 | AB177: =IF(Z177<YEAR,1,IF('General Input Sheet'!$E$32="WACC1",1/(1+WACC1)^(Z177-YEAR), IF('General Input Sheet'!$E$32="WACC2",1/(1+WACC2)^(Z177-YEAR),"Check WACC Option in General Input Sheet"))) -> 0.8417615727 | AC177: 1059490 | AD177: 1122864 | AE177: 945184
B178: R332 | C178: LPA-RC-002 | D178: Road Corridor Project | E178: 6, 9 | F178: Paradise Road (Radius Drive to Adjacent Kulcha Street) | G178: 4 Lane Road | H178: 1593 | I178: Suburban | J178: 5891 | K178: 3.302834833 | L178: 19457 | M178: 2466.003766 | N178: 3928344 | O178: 2016 | P178: =IFERROR(('General Input Sheet'!$G$38/(VLOOKUP(O178,Histindex,3,FALSE))),1) -> 1 | Q178: Upgrade | R178: =IFERROR(_xlfn.IFS(AND(Q178<>"New",D178<>"Road Bridge"),30%,D178="Road Bridge",10%),0) -> 0.3 | S178: 1178503 | T178: 0.075 | U178: 389525 | V178: 667818 | W178: 597501 | X178: 0 | Y178: 6761691 | Z178: 2019 | AA178: =(1+PPI)^('Future Trunk Assets - Transport'!Z178-YEAR) -> 1.05720708 | AB178: =IF(Z178<YEAR,1,IF('General Input Sheet'!$E$32="WACC1",1/(1+WACC1)^(Z178-YEAR), IF('General Input Sheet'!$E$32="WACC2",1/(1+WACC2)^(Z178-YEAR),"Check WACC Option in General Input Sheet"))) -> 0.8417615727 | AC178: 6781148 | AD178: 7169461 | AE178: 6034977
B179: R153 | C179: LUT-RI-001 | D179: Road Intersection Project | E179: 14 | F179: Lutwyche Road/Chalk Street Intersection | G179: 6 Lane Road / 2 Lane Road | H179: 0 | I179: Arterial / District | J179: 600 | K179: 1053 | L179: 631800 | N179: 637296 | O179: 2016 | P179: =IFERROR(('General Input Sheet'!$G$38/(VLOOKUP(O179,Histindex,3,FALSE))),1) -> 1 | Q179: Existing signallised Int | R179: =IFERROR(_xlfn.IFS(AND(Q179<>"New",D179<>"Road Bridge"),30%,D179="Road Bridge",10%),0) -> 0.3 | S179: 191189 | T179: 0.15 | U179: 126385 | V179: 108340 | W179: 96933 | X179: 0 | Y179: 1160143 | Z179: 2024 | AA179: =(1+PPI)^('Future Trunk Assets - Transport'!Z179-YEAR) -> 1.159916788 | AB179: =IF(Z179<YEAR,1,IF('General Input Sheet'!$E$32="WACC1",1/(1+WACC1)^(Z179-YEAR), IF('General Input Sheet'!$E$32="WACC2",1/(1+WACC2)^(Z179-YEAR),"Check WACC Option in General Input Sheet"))) -> 0.6316903693 | AC179: 1791943 | AD179: 2115456 | AE179: 1336313
B180: R111 | C180: MDW-RC-001 | D180: Road Corridor Project | E180: 14 | F180: Rode Road (Brynner Street to Ifield Street) | G180: 4 Lane Road | H180: 386 | I180: Suburban | J180: 1941 | K180: 813.9778465 | L180: 1579931 | M180: 2462.108808 | N180: 950374 | O180: 2016 | P180: =IFERROR(('General Input Sheet'!$G$38/(VLOOKUP(O180,Histindex,3,FALSE))),1) -> 1 | Q180: Upgrade | R180: =IFERROR(_xlfn.IFS(AND(Q180<>"New",D180<>"Road Bridge"),30%,D180="Road Bridge",10%),0) -> 0.3 | S180: 285112 | T180: 0.075 | U180: 94237 | V180: 161564 | W180: 144552 | X180: 0 | Y180: 1635839 | Z180: 2019 | AA180: =(1+PPI)^('Future Trunk Assets - Transport'!Z180-YEAR) -> 1.05720708 | AB180: =IF(Z180<YEAR,1,IF('General Input Sheet'!$E$32="WACC1",1/(1+WACC1)^(Z180-YEAR), IF('General Input Sheet'!$E$32="WACC2",1/(1+WACC2)^(Z180-YEAR),"Check WACC Option in General Input Sheet"))) -> 0.8417615727 | AC180: 3215770 | AD180: 3430833 | AE180: 2887943
B181: R111 | C181: MDW-RC-002 | D181: Road Corridor Project | E181: 14 | F181: Rode Road (Pleshette Place to Foambark Street) | G181: 4 Lane Road | H181: 351 | I181: Suburban | J181: 889 | K181: 609.1631046 | L181: 541546 | M181: 2466.97151 | N181: 865907 | O181: 2016 | P181: =IFERROR(('General Input Sheet'!$G$38/(VLOOKUP(O181,Histindex,3,FALSE))),1) -> 1 | Q181: Upgrade | R181: =IFERROR(_xlfn.IFS(AND(Q181<>"New",D181<>"Road Bridge"),30%,D181="Road Bridge",10%),0) -> 0.3 | S181: 259772 | T181: 0.075 | U181: 85861 | V181: 147204 | W181: 131704 | X181: 0 | Y181: 1490448 | Z181: 2019 | AA181: =(1+PPI)^('Future Trunk Assets - Transport'!Z181-YEAR) -> 1.05720708 | AB181: =IF(Z181<YEAR,1,IF('General Input Sheet'!$E$32="WACC1",1/(1+WACC1)^(Z181-YEAR), IF('General Input Sheet'!$E$32="WACC2",1/(1+WACC2)^(Z181-YEAR),"Check WACC Option in General Input Sheet"))) -> 0.8417615727 | AC181: 2031994 | AD181: 2158898 | AE181: 1817277
B182: R111 | C182: MDW-RI-003 | D182: Road Intersection Project | E182: 15 | F182: Beckett Road/Hamilton Road Intersection | G182: 6 Lane Road / 4 Lane Road | H182: 0 | I182: Arterial / Suburban | J182: 150 | K182: 838 | L182: 125700 | N182: 597881 | O182: 2016 | P182: =IFERROR(('General Input Sheet'!$G$38/(VLOOKUP(O182,Histindex,3,FALSE))),1) -> 1 | Q182: Existing signallised Int | R182: =IFERROR(_xlfn.IFS(AND(Q182<>"New",D182<>"Road Bridge"),30%,D182="Road Bridge",10%),0) -> 0.3 | S182: 179364 | T182: 0.075 | U182: 59284 | V182: 101640 | W182: 90938 | X182: 0 | Y182: 1029107 | Z182: 2019 | AA182: =(1+PPI)^('Future Trunk Assets - Transport'!Z182-YEAR) -> 1.05720708 | AB182: =IF(Z182<YEAR,1,IF('General Input Sheet'!$E$32="WACC1",1/(1+WACC1)^(Z182-YEAR), IF('General Input Sheet'!$E$32="WACC2",1/(1+WACC2)^(Z182-YEAR),"Check WACC Option in General Input Sheet"))) -> 0.8417615727 | AC182: 1154807 | AD182: 1223344 | AE182: 1029764
B183: R235 | C183: MGE-RI-001 | D183: Road Intersection Project | E183: 3 | F183: Newnham Road/Creek Road Intersection | G183: 6 Lane Road / 4 Lane Road | H183: 0 | I183: Arterial / Suburban | J183: 150 | K183: 838 | L183: 125700 | N183: 597881 | O183: 2016 | P183: =IFERROR(('General Input Sheet'!$G$38/(VLOOKUP(O183,Histindex,3,FALSE))),1) -> 1 | Q183: Existing signallised Int | R183: =IFERROR(_xlfn.IFS(AND(Q183<>"New",D183<>"Road Bridge"),30%,D183="Road Bridge",10%),0) -> 0.3 | S183: 179364 | T183: 0.075 | U183: 59284 | V183: 101640 | W183: 90938 | X183: 0 | Y183: 1029107 | Z183: 2019 | AA183: =(1+PPI)^('Future Trunk Assets - Transport'!Z183-YEAR) -> 1.05720708 | AB183: =IF(Z183<YEAR,1,IF('General Input Sheet'!$E$32="WACC1",1/(1+WACC1)^(Z183-YEAR), IF('General Input Sheet'!$E$32="WACC2",1/(1+WACC2)^(Z183-YEAR),"Check WACC Option in General Input Sheet"))) -> 0.8417615727 | AC183: 1154807 | AD183: 1223344 | AE183: 1029764
B184: R254 | C184: MGR-RI-001 | D184: Road Intersection Project | E184: 3 | F184: Logan Road/Creek Road Intersection | G184: 6 Lane Road / 4 Lane Road | H184: 0 | I184: Arterial / Suburban | J184: 150 | K184: 790 | L184: 118500 | N184: 633282 | O184: 2016 | P184: =IFERROR(('General Input Sheet'!$G$38/(VLOOKUP(O184,Histindex,3,FALSE))),1) -> 1 | Q184: Existing signallised Int | R184: =IFERROR(_xlfn.IFS(AND(Q184<>"New",D184<>"Road Bridge"),30%,D184="Road Bridge",10%),0) -> 0.3 | S184: 189985 | T184: 0.15 | U184: 125589 | V184: 107658 | W184: 96322 | X184: 0 | Y184: 1152836 | Z184: 2024 | AA184: =(1+PPI)^('Future Trunk Assets - Transport'!Z184-YEAR) -> 1.159916788 | AB184: =IF(Z184<YEAR,1,IF('General Input Sheet'!$E$32="WACC1",1/(1+WACC1)^(Z184-YEAR), IF('General Input Sheet'!$E$32="WACC2",1/(1+WACC2)^(Z184-YEAR),"Check WACC Option in General Input Sheet"))) -> 0.6316903693 | AC184: 1271336 | AD184: 1481575 | AE184: 935897
B185: R254 | C185: MGR-RI-002 | D185: Road Intersection Project | E185: 3 | F185: Logan Road/Broadwater Road Intersection | G185: 6 Lane Road / 4 Lane Road | H185: 0 | I185: Arterial / Suburban | J185: 300 | K185: 1163 | L185: 348900 | N185: 523146 | O185: 2016 | P185: =IFERROR(('General Input Sheet'!$G$38/(VLOOKUP(O185,Histindex,3,FALSE))),1) -> 1 | Q185: Existing signallised Int | R185: =IFERROR(_xlfn.IFS(AND(Q185<>"New",D185<>"Road Bridge"),30%,D185="Road Bridge",10%),0) -> 0.3 | S185: 156944 | T185: 0.15 | U185: 103748 | V185: 88935 | W185: 79571 | X185: 0 | Y185: 952344 | Z185: 2024 | AA185: =(1+PPI)^('Future Trunk Assets - Transport'!Z185-YEAR) -> 1.159916788 | AB185: =IF(Z185<YEAR,1,IF('General Input Sheet'!$E$32="WACC1",1/(1+WACC1)^(Z185-YEAR), IF('General Input Sheet'!$E$32="WACC2",1/(1+WACC2)^(Z185-YEAR),"Check WACC Option in General Input Sheet"))) -> 0.6316903693 | AC185: 1301244 | AD185: 1529741 | AE185: 966323
B186: R196 | C186: MNW-RI-001 | D186: Road Intersection Project | E186: 1 | F186: Wondall Road/Bognor Street Intersection | G186: 2 Lane Road / 2 Lane Road | H186: 0 | I186: District / District | J186: 150 | K186: 838 | L186: 125700 | N186: 397526 | O186: 2016 | P186: =IFERROR(('General Input Sheet'!$G$38/(VLOOKUP(O186,Histindex,3,FALSE))),1) -> 1 | Q186: Existing unsignallised Int | R186: =IFERROR(_xlfn.IFS(AND(Q186<>"New",D186<>"Road Bridge"),30%,D186="Road Bridge",10%),0) -> 0.3 | S186: 119258 | T186: 0.075 | U186: 39418 | V186: 67579 | W186: 60464 | X186: 0 | Y186: 684245 | Z186: 2019 | AA186: =(1+PPI)^('Future Trunk Assets - Transport'!Z186-YEAR) -> 1.05720708 | AB186: =IF(Z186<YEAR,1,IF('General Input Sheet'!$E$32="WACC1",1/(1+WACC1)^(Z186-YEAR), IF('General Input Sheet'!$E$32="WACC2",1/(1+WACC2)^(Z186-YEAR),"Check WACC Option in General Input Sheet"))) -> 0.8417615727 | AC186: 809945 | AD186: 858754 | AE186: 722866
B187: R249 | C187: MOM-RI-001 | D187: Road Intersection Project | E187: 10 | F187: Dandenong Road/Sirocco Street/Central Avenue Intersection | G187: 4 Lane Road / 2 Lane Road | H187: 0 | I187: Suburban / Local | J187: 300 | K187: 864 | L187: 259200 | N187: 621937 | O187: 2016 | P187: =IFERROR(('General Input Sheet'!$G$38/(VLOOKUP(O187,Histindex,3,FALSE))),1) -> 1 | Q187: Existing unsignallised Int | R187: =IFERROR(_xlfn.IFS(AND(Q187<>"New",D187<>"Road Bridge"),30%,D187="Road Bridge",10%),0) -> 0.3 | S187: 186581 | T187: 0.075 | U187: 61670 | V187: 105729 | W187: 94597 | X187: 0 | Y187: 1070514 | Z187: 2019 | AA187: =(1+PPI)^('Future Trunk Assets - Transport'!Z187-YEAR) -> 1.05720708 | AB187: =IF(Z187<YEAR,1,IF('General Input Sheet'!$E$32="WACC1",1/(1+WACC1)^(Z187-YEAR), IF('General Input Sheet'!$E$32="WACC2",1/(1+WACC2)^(Z187-YEAR),"Check WACC Option in General Input Sheet"))) -> 0.8417615727 | AC187: 1329714 | AD187: 1410885 | AE187: 1187629
B188: R174 | C188: MOR-RI-001 | D188: Road Intersection Project | E188: 5 | F188: Lytton Road/Junction Road Intersection | G188: 6 Lane Road / 4 Lane Road | H188: 0 | I188: Arterial / Suburban | J188: 300 | K188: 354.5 | L188: 106350 | N188: 896822 | O188: 2016 | P188: =IFERROR(('General Input Sheet'!$G$38/(VLOOKUP(O188,Histindex,3,FALSE))),1) -> 1 | Q188: Existing unsignallised Int | R188: =IFERROR(_xlfn.IFS(AND(Q188<>"New",D188<>"Road Bridge"),30%,D188="Road Bridge",10%),0) -> 0.3 | S188: 269047 | T188: 0.15 | U188: 177853 | V188: 152460 | W188: 136407 | X188: 0 | Y188: 1632589 | Z188: 2024 | AA188: =(1+PPI)^('Future Trunk Assets - Transport'!Z188-YEAR) -> 1.159916788 | AB188: =IF(Z188<YEAR,1,IF('General Input Sheet'!$E$32="WACC1",1/(1+WACC1)^(Z188-YEAR), IF('General Input Sheet'!$E$32="WACC2",1/(1+WACC2)^(Z188-YEAR),"Check WACC Option in General Input Sheet"))) -> 0.6316903693 | AC188: 1738939 | AD188: 2023245 | AE188: 1278064
B189: R175, R174 | C189: MUR-RC-001 | D189: Road Corridor Project | E189: 5 | F189: Lytton Road (Junction Road to Creek Road) | G189: 6 Lane Road | H189: 1032 | I189: Arterial | J189: 2388 | K189: 387.8228643 | L189: 926121 | M189: 2710.440891 | N189: 2797175 | O189: 2016 | P189: =IFERROR(('General Input Sheet'!$G$38/(VLOOKUP(O189,Histindex,3,FALSE))),1) -> 1 | Q189: Upgrade | R189: =IFERROR(_xlfn.IFS(AND(Q189<>"New",D189<>"Road Bridge"),30%,D189="Road Bridge",10%),0) -> 0.3 | S189: 839153 | T189: 0.15 | U189: 554722 | V189: 475520 | W189: 425450 | X189: 0 | Y189: 5092020 | Z189: 2024 | AA189: =(1+PPI)^('Future Trunk Assets - Transport'!Z189-YEAR) -> 1.159916788 | AB189: =IF(Z189<YEAR,1,IF('General Input Sheet'!$E$32="WACC1",1/(1+WACC1)^(Z189-YEAR), IF('General Input Sheet'!$E$32="WACC2",1/(1+WACC2)^(Z189-YEAR),"Check WACC Option in General Input Sheet"))) -> 0.6316903693 | AC189: 6018141 | AD189: 7034708 | AE189: 4443757
B190: R175 | C190: MUR-RC-002 | D190: Road Corridor Project | E190: 5 | F190: Lytton Road (Creek Road to Gateway Motorway) | G190: 6 Lane Road | H190: 785 | I190: Arterial | J190: 1618 | K190: 533.6440049 | L190: 863436 | M190: 2709.515924 | N190: 2126970 | O190: 2016 | P190: =IFERROR(('General Input Sheet'!$G$38/(VLOOKUP(O190,Histindex,3,FALSE))),1) -> 1 | Q190: Upgrade | R190: =IFERROR(_xlfn.IFS(AND(Q190<>"New",D190<>"Road Bridge"),30%,D190="Road Bridge",10%),0) -> 0.3 | S190: 638091 | T190: 0.15 | U190: 421810 | V190: 361585 | W190: 323512 | X190: 0 | Y190: 3871968 | Z190: 2024 | AA190: =(1+PPI)^('Future Trunk Assets - Transport'!Z190-YEAR) -> 1.159916788 | AB190: =IF(Z190<YEAR,1,IF('General Input Sheet'!$E$32="WACC1",1/(1+WACC1)^(Z190-YEAR), IF('General Input Sheet'!$E$32="WACC2",1/(1+WACC2)^(Z190-YEAR),"Check WACC Option in General Input Sheet"))) -> 0.6316903693 | AC190: 4735404 | AD190: 5543174 | AE190: 3501570
B191: R175 | C191: MUR-RI-001 | D191: Road Intersection Project | E191: 5 | F191: Lytton Road/Creek Road Intersection | G191: 6 Lane Road / 6 Lane Road | H191: 0 | I191: Arterial / Arterial | J191: 150 | K191: 453 | L191: 67950 | N191: 630869 | O191: 2016 | P191: =IFERROR(('General Input Sheet'!$G$38/(VLOOKUP(O191,Histindex,3,FALSE))),1) -> 1 | Q191: Existing signallised Int | R191: =IFERROR(_xlfn.IFS(AND(Q191<>"New",D191<>"Road Bridge"),30%,D191="Road Bridge",10%),0) -> 0.3 | S191: 189261 | T191: 0.15 | U191: 125111 | V191: 107248 | W191: 95955 | X191: 0 | Y191: 1148444 | Z191: 2024 | AA191: =(1+PPI)^('Future Trunk Assets - Transport'!Z191-YEAR) -> 1.159916788 | AB191: =IF(Z191<YEAR,1,IF('General Input Sheet'!$E$32="WACC1",1/(1+WACC1)^(Z191-YEAR), IF('General Input Sheet'!$E$32="WACC2",1/(1+WACC2)^(Z191-YEAR),"Check WACC Option in General Input Sheet"))) -> 0.6316903693 | AC191: 1216394 | AD191: 1414890 | AE191: 893772
B192: R194 | C192: NRP-RI-001 | D192: Road Intersection Project | E192: 5 | F192: Wynnum Road/Bennetts Road Intersection | G192: 6 Lane Road / 4 Lane Road | H192: 0 | I192: Arterial / Suburban | J192: 150 | K192: 1422 | L192: 213300 | N192: 523146 | O192: 2016 | P192: =IFERROR(('General Input Sheet'!$G$38/(VLOOKUP(O192,Histindex,3,FALSE))),1) -> 1 | Q192: Existing signallised Int | R192: =IFERROR(_xlfn.IFS(AND(Q192<>"New",D192<>"Road Bridge"),30%,D192="Road Bridge",10%),0) -> 0.3 | S192: 156944 | T192: 0.15 | U192: 103748 | V192: 88935 | W192: 79571 | X192: 0 | Y192: 952344 | Z192: 2024 | AA192: =(1+PPI)^('Future Trunk Assets - Transport'!Z192-YEAR) -> 1.159916788 | AB192: =IF(Z192<YEAR,1,IF('General Input Sheet'!$E$32="WACC1",1/(1+WACC1)^(Z192-YEAR), IF('General Input Sheet'!$E$32="WACC2",1/(1+WACC2)^(Z192-YEAR),"Check WACC Option in General Input Sheet"))) -> 0.6316903693 | AC192: 1165644 | AD192: 1364525 | AE192: 861957
B193: R193 | C193: NRP-RI-002 | D193: Road Intersection Project | E193: 5 | F193: Wynnum Road/Hawthorne Road Intersection | G193: 6 Lane Road / 4 Lane Road | H193: 0 | I193: Arterial / Suburban | J193: 450 | K193: 1269.666667 | L193: 571350 | N193: 523146 | O193: 2016 | P193: =IFERROR(('General Input Sheet'!$G$38/(VLOOKUP(O193,Histindex,3,FALSE))),1) -> 1 | Q193: Existing signallised Int | R193: =IFERROR(_xlfn.IFS(AND(Q193<>"New",D193<>"Road Bridge"),30%,D193="Road Bridge",10%),0) -> 0.3 | S193: 156944 | T193: 0.15 | U193: 103748 | V193: 88935 | W193: 79571 | X193: 0 | Y193: 952344 | Z193: 2024 | AA193: =(1+PPI)^('Future Trunk Assets - Transport'!Z193-YEAR) -> 1.159916788 | AB193: =IF(Z193<YEAR,1,IF('General Input Sheet'!$E$32="WACC1",1/(1+WACC1)^(Z193-YEAR), IF('General Input Sheet'!$E$32="WACC2",1/(1+WACC2)^(Z193-YEAR),"Check WACC Option in General Input Sheet"))) -> 0.6316903693 | AC193: 1523694 | AD193: 1800774 | AE193: 1137532
B194: R95, R94 | C194: NUD-RC-002 | D194: Road Corridor Project | E194: 16 | F194: Childs Road (Gateway Motorway to St Vincents Road) | G194: 2 Lane Road | H194: 1014 | I194: District | J194: 493 | K194: =IFERROR(L194/J194,0) -> 450.4097363 | L194: 222052 | M194: 1356.094675 | N194: 1375080 | O194: 2016 | P194: =IFERROR(('General Input Sheet'!$G$38/(VLOOKUP(O194,Histindex,3,FALSE))),1) -> 1 | Q194: Upgrade | R194: =IFERROR(_xlfn.IFS(AND(Q194<>"New",D194<>"Road Bridge"),30%,D194="Road Bridge",10%),0) -> 0.3 | S194: 412524 | T194: =IF(Z194="","",IF(Z194<=YEAR+5,0.075,IF(AND(Z194>YEAR+5,Z194<=YEAR+10),0.15,IF(AND(Z194>YEAR+10,Z194<=YEAR+20),0.2,IF(Z194>YEAR+20,0.25,""))))) -> 0.15 | U194: 272699 | V194: 233764 | W194: 209150 | X194: 0 | Y194: 2503217 | Z194: 2024 | AA194: =(1+PPI)^('Future Trunk Assets - Transport'!Z194-YEAR) -> 1.159916788 | AB194: =IF(Z194<YEAR,1,IF('General Input Sheet'!$E$32="WACC1",1/(1+WACC1)^(Z194-YEAR), IF('General Input Sheet'!$E$32="WACC2",1/(1+WACC2)^(Z194-YEAR),"Check WACC Option in General Input Sheet"))) -> 0.6316903693 | AC194: 2725269 | AD194: 3174072 | AE194: 2005031
B195: R94 | C195: NUD-RI-001 | D195: Road Intersection Project | E195: 16 | F195: St Vincents Road/Childs Road Intersection | G195: 2 Lane Road / 2 Lane Road | H195: 0 | I195: District / District | J195: 300 | K195: 669 | L195: 200700 | N195: 397526 | O195: 2016 | P195: =IFERROR(('General Input Sheet'!$G$38/(VLOOKUP(O195,Histindex,3,FALSE))),1) -> 1 | Q195: Existing unsignallised Int | R195: =IFERROR(_xlfn.IFS(AND(Q195<>"New",D195<>"Road Bridge"),30%,D195="Road Bridge",10%),0) -> 0.3 | S195: 119258 | T195: 0.15 | U195: 78835 | V195: 67579 | W195: 60464 | X195: 0 | Y195: 723662 | Z195: 2024 | AA195: =(1+PPI)^('Future Trunk Assets - Transport'!Z195-YEAR) -> 1.159916788 | AB195: =IF(Z195<YEAR,1,IF('General Input Sheet'!$E$32="WACC1",1/(1+WACC1)^(Z195-YEAR), IF('General Input Sheet'!$E$32="WACC2",1/(1+WACC2)^(Z195-YEAR),"Check WACC Option in General Input Sheet"))) -> 0.6316903693 | AC195: 924362 | AD195: 1083921 | AE195: 684702
B196: R134 | C196: NUN-RC-002 | D196: Road Corridor Project | E196: 16 | F196: Melton Road (Masefield Street to Buckland Road) | G196: 2 Lane Road | H196: 523 | I196: District | J196: 1889 | K196: 749.2943356 | L196: 1415417 | M196: 1355.820268 | N196: 709094 | O196: 2016 | P196: =IFERROR(('General Input Sheet'!$G$38/(VLOOKUP(O196,Histindex,3,FALSE))),1) -> 1 | Q196: Upgrade | R196: =IFERROR(_xlfn.IFS(AND(Q196<>"New",D196<>"Road Bridge"),30%,D196="Road Bridge",10%),0) -> 0.3 | S196: 212728 | T196: 0.15 | U196: 140624 | V196: 120546 | W196: 107853 | X196: 0 | Y196: 1290845 | Z196: 2024 | AA196: =(1+PPI)^('Future Trunk Assets - Transport'!Z196-YEAR) -> 1.159916788 | AB196: =IF(Z196<YEAR,1,IF('General Input Sheet'!$E$32="WACC1",1/(1+WACC1)^(Z196-YEAR), IF('General Input Sheet'!$E$32="WACC2",1/(1+WACC2)^(Z196-YEAR),"Check WACC Option in General Input Sheet"))) -> 0.6316903693 | AC196: 2706262 | AD196: 3221821 | AE196: 2035193
B197: R134 | C197: NUN-RI-001 | D197: Road Intersection Project | E197: 16 | F197: Melton Street/Buckland Road Intersection | G197: 2 Lane Road / 2 Lane Road | H197: 0 | I197: District / District | J197: 450 | K197: 1057.666667 | L197: 475950 | N197: 530034 | O197: 2016 | P197: =IFERROR(('General Input Sheet'!$G$38/(VLOOKUP(O197,Histindex,3,FALSE))),1) -> 1 | Q197: Existing unsignallised Int | R197: =IFERROR(_xlfn.IFS(AND(Q197<>"New",D197<>"Road Bridge"),30%,D197="Road Bridge",10%),0) -> 0.3 | S197: 159010 | T197: 0.15 | U197: 105114 | V197: 90106 | W197: 80618 | X197: 0 | Y197: 964882 | Z197: 2024 | AA197: =(1+PPI)^('Future Trunk Assets - Transport'!Z197-YEAR) -> 1.159916788 | AB197: =IF(Z197<YEAR,1,IF('General Input Sheet'!$E$32="WACC1",1/(1+WACC1)^(Z197-YEAR), IF('General Input Sheet'!$E$32="WACC2",1/(1+WACC2)^(Z197-YEAR),"Check WACC Option in General Input Sheet"))) -> 0.6316903693 | AC197: 1440832 | AD197: 1699082 | AE197: 1073294
B198: R152 | C198: NWM-RI-001 | D198: Road Intersection Project | E198: 13 | F198: Newmarket Road/Wilston Road Intersection | G198: 4 Lane Road / 4 Lane Road | H198: 0 | I198: Suburban / Suburban | J198: 150 | K198: 1412 | L198: 211800 | N198: 476691 | O198: 2016 | P198: =IFERROR(('General Input Sheet'!$G$38/(VLOOKUP(O198,Histindex,3,FALSE))),1) -> 1 | Q198: Existing signallised Int | R198: =IFERROR(_xlfn.IFS(AND(Q198<>"New",D198<>"Road Bridge"),30%,D198="Road Bridge",10%),0) -> 0.3 | S198: 143007 | T198: 0.075 | U198: 47267 | V198: 81037 | W198: 72505 | X198: 0 | Y198: 820507 | Z198: 2019 | AA198: =(1+PPI)^('Future Trunk Assets - Transport'!Z198-YEAR) -> 1.05720708 | AB198: =IF(Z198<YEAR,1,IF('General Input Sheet'!$E$32="WACC1",1/(1+WACC1)^(Z198-YEAR), IF('General Input Sheet'!$E$32="WACC2",1/(1+WACC2)^(Z198-YEAR),"Check WACC Option in General Input Sheet"))) -> 0.8417615727 | AC198: 1032307 | AD198: 1095531 | AE198: 922176
B199: R270 | C199: OXY-RC-008 | D199: Road Corridor Project | E199: 10, 9 | F199: Dowding Street (Englefield Road to Ipswich Road) | G199: 2 Lane Road | H199: 603 | I199: District | J199: 128 | K199: 590.09375 | L199: 75532 | M199: 1355.920398 | N199: 817620 | O199: 2016 | P199: =IFERROR(('General Input Sheet'!$G$38/(VLOOKUP(O199,Histindex,3,FALSE))),1) -> 1 | Q199: Upgrade | R199: =IFERROR(_xlfn.IFS(AND(Q199<>"New",D199<>"Road Bridge"),30%,D199="Road Bridge",10%),0) -> 0.3 | S199: 245286 | T199: 0.15 | U199: 162146 | V199: 138995 | W199: 124360 | X199: 0 | Y199: 1488407 | Z199: 2024 | AA199: =(1+PPI)^('Future Trunk Assets - Transport'!Z199-YEAR) -> 1.159916788 | AB199: =IF(Z199<YEAR,1,IF('General Input Sheet'!$E$32="WACC1",1/(1+WACC1)^(Z199-YEAR), IF('General Input Sheet'!$E$32="WACC2",1/(1+WACC2)^(Z199-YEAR),"Check WACC Option in General Input Sheet"))) -> 0.6316903693 | AC199: 1563939 | AD199: 1818457 | AE199: 1148702
B200: R250 | C200: OXY-RI-004 | D200: Road Intersection Project | E200: 10 | F200: Seventeen Mile Rocks Road/Duporth Road/Ormond Road Intersection | G200: 4 Lane Road / 4 Lane Road | H200: 0 | I200: Suburban / Suburban | J200: 300 | K200: 838 | L200: 251400 | N200: 544790 | O200: 2016 | P200: =IFERROR(('General Input Sheet'!$G$38/(VLOOKUP(O200,Histindex,3,FALSE))),1) -> 1 | Q200: Existing signallised Int | R200: =IFERROR(_xlfn.IFS(AND(Q200<>"New",D200<>"Road Bridge"),30%,D200="Road Bridge",10%),0) -> 0.3 | S200: 163437 | T200: 0.075 | U200: 54020 | V200: 92614 | W200: 82863 | X200: 0 | Y200: 937724 | Z200: 2019 | AA200: =(1+PPI)^('Future Trunk Assets - Transport'!Z200-YEAR) -> 1.05720708 | AB200: =IF(Z200<YEAR,1,IF('General Input Sheet'!$E$32="WACC1",1/(1+WACC1)^(Z200-YEAR), IF('General Input Sheet'!$E$32="WACC2",1/(1+WACC2)^(Z200-YEAR),"Check WACC Option in General Input Sheet"))) -> 0.8417615727 | AC200: 1189124 | AD200: 1262099 | AE200: 1062386
B201: R172 | C201: PAD-RI-001 | D201: Road Intersection Project | E201: 8 | F201: Caxton Street/Dowse Street Intersection | G201: 4 Lane Road / 2 Lane Road | H201: 0 | I201: Suburban / District | J201: 450 | K201: 1629 | L201: 733050 | N201: 499615 | O201: 2016 | P201: =IFERROR(('General Input Sheet'!$G$38/(VLOOKUP(O201,Histindex,3,FALSE))),1) -> 1 | Q201: Existing signallised Int | R201: =IFERROR(_xlfn.IFS(AND(Q201<>"New",D201<>"Road Bridge"),30%,D201="Road Bridge",10%),0) -> 0.3 | S201: 149885 | T201: 0.15 | U201: 99081 | V201: 84935 | W201: 75992 | X201: 0 | Y201: 909508 | Z201: 2024 | AA201: =(1+PPI)^('Future Trunk Assets - Transport'!Z201-YEAR) -> 1.159916788 | AB201: =IF(Z201<YEAR,1,IF('General Input Sheet'!$E$32="WACC1",1/(1+WACC1)^(Z201-YEAR), IF('General Input Sheet'!$E$32="WACC2",1/(1+WACC2)^(Z201-YEAR),"Check WACC Option in General Input Sheet"))) -> 0.6316903693 | AC201: 1642558 | AD201: 1948104 | AE201: 1230599
B202: R155 | C202: PIN-RC-007 | D202: Road Corridor Project | E202: 16 | F202: Kingsford Smith Drive (Gateway Motorway Bridge to Sugarmill Road) | G202: 6 Lane Road | H202: 1005 | I202: Arterial | J202: 4217 | K202: 472.6009011 | L202: 1992958 | M202: 2709.414925 | N202: 2722962 | O202: 2016 | P202: =IFERROR(('General Input Sheet'!$G$38/(VLOOKUP(O202,Histindex,3,FALSE))),1) -> 1 | Q202: Upgrade | R202: =IFERROR(_xlfn.IFS(AND(Q202<>"New",D202<>"Road Bridge"),30%,D202="Road Bridge",10%),0) -> 0.3 | S202: 816889 | T202: 0.15 | U202: 540004 | V202: 462904 | W202: 414163 | X202: 0 | Y202: 4956922 | Z202: 2024 | AA202: =(1+PPI)^('Future Trunk Assets - Transport'!Z202-YEAR) -> 1.159916788 | AB202: =IF(Z202<YEAR,1,IF('General Input Sheet'!$E$32="WACC1",1/(1+WACC1)^(Z202-YEAR), IF('General Input Sheet'!$E$32="WACC2",1/(1+WACC2)^(Z202-YEAR),"Check WACC Option in General Input Sheet"))) -> 0.6316903693 | AC202: 6949880 | AD202: 8177843 | AE202: 5165865
B203: R155 | C203: PIN-RC-008 | D203: Road Corridor Project | E203: 16 | F203: Kingsford Smith Drive (Sugarmill Road to Curtin Avenue East) | G203: 6 Lane Road | H203: 858 | I203: Arterial | J203: 5798 | K203: 250.3668506 | L203: 1451627 | M203: 2710.11655 | N203: 2325280 | O203: 2016 | P203: =IFERROR(('General Input Sheet'!$G$38/(VLOOKUP(O203,Histindex,3,FALSE))),1) -> 1 | Q203: Upgrade | R203: =IFERROR(_xlfn.IFS(AND(Q203<>"New",D203<>"Road Bridge"),30%,D203="Road Bridge",10%),0) -> 0.3 | S203: 697584 | T203: 0.15 | U203: 461138 | V203: 395298 | W203: 353675 | X203: 0 | Y203: 4232975 | Z203: 2024 | AA203: =(1+PPI)^('Future Trunk Assets - Transport'!Z203-YEAR) -> 1.159916788 | AB203: =IF(Z203<YEAR,1,IF('General Input Sheet'!$E$32="WACC1",1/(1+WACC1)^(Z203-YEAR), IF('General Input Sheet'!$E$32="WACC2",1/(1+WACC2)^(Z203-YEAR),"Check WACC Option in General Input Sheet"))) -> 0.6316903693 | AC203: 5684602 | AD203: 6678565 | AE203: 4218785
B204: R155 | C204: PIN-RI-004 | D204: Road Intersection Project | E204: 16 | F204: Kingsford Smith Drive/Sugarmill Road Intersection | G204: 6 Lane Road / 4 Lane Road | H204: 0 | I204: Arterial / Suburban | J204: 0 | K204: 0 | L204: 0 | N204: 523146 | O204: 2016 | P204: =IFERROR(('General Input Sheet'!$G$38/(VLOOKUP(O204,Histindex,3,FALSE))),1) -> 1 | Q204: Existing signallised Int | R204: =IFERROR(_xlfn.IFS(AND(Q204<>"New",D204<>"Road Bridge"),30%,D204="Road Bridge",10%),0) -> 0.3 | S204: 156944 | T204: 0.15 | U204: 103748 | V204: 88935 | W204: 79571 | X204: 0 | Y204: 952344 | Z204: 2024 | AA204: =(1+PPI)^('Future Trunk Assets - Transport'!Z204-YEAR) -> 1.159916788 | AB204: =IF(Z204<YEAR,1,IF('General Input Sheet'!$E$32="WACC1",1/(1+WACC1)^(Z204-YEAR), IF('General Input Sheet'!$E$32="WACC2",1/(1+WACC2)^(Z204-YEAR),"Check WACC Option in General Input Sheet"))) -> 0.6316903693 | AC204: 952344 | AD204: 1104640 | AE204: 697790
B205: R197 | C205: RAN-RB-001 | D205: Road Bridge | E205: 1 | F205: Rickertt Road Bridge (between Green Camp Road and Chelsea Road) | G205: 4 Lane Road | H205: 46 | I205: Suburban | J205: 0 | K205: 0 | L205: 0 | M205: 49000.80435 | N205: 2254037 | O205: 2016 | P205: =IFERROR(('General Input Sheet'!$G$38/(VLOOKUP(O205,Histindex,3,FALSE))),1) -> 1 | Q205: Upgrade | R205: =IFERROR(_xlfn.IFS(AND(Q205<>"New",D205<>"Road Bridge"),30%,D205="Road Bridge",10%),0) -> 0.1 | S205: 225404 | T205: 0.15 | U205: 447009 | V205: 383186 | W205: 342839 | X205: 0 | Y205: 3652475 | Z205: 2024 | AA205: =(1+PPI)^('Future Trunk Assets - Transport'!Z205-YEAR) -> 1.159916788 | AB205: =IF(Z205<YEAR,1,IF('General Input Sheet'!$E$32="WACC1",1/(1+WACC1)^(Z205-YEAR), IF('General Input Sheet'!$E$32="WACC2",1/(1+WACC2)^(Z205-YEAR),"Check WACC Option in General Input Sheet"))) -> 0.6316903693 | AC205: 3652475 | AD205: 4236567 | AE205: 2676199
B206: R197 | C206: RAN-RC-002 | D206: Road Corridor Project | E206: 1 | F206: Rickertt Road (bridge over Lota Creek to Chelsea Road) | G206: 4 Lane Road | H206: 819 | I206: Suburban | J206: 1441 | K206: 44.31158917 | L206: 63853 | M206: 2464.67033 | N206: 2018565 | O206: 2016 | P206: =IFERROR(('General Input Sheet'!$G$38/(VLOOKUP(O206,Histindex,3,FALSE))),1) -> 1 | Q206: Upgrade | R206: =IFERROR(_xlfn.IFS(AND(Q206<>"New",D206<>"Road Bridge"),30%,D206="Road Bridge",10%),0) -> 0.3 | S206: 605570 | T206: 0.15 | U206: 400312 | V206: 343156 | W206: 307024 | X206: 0 | Y206: 3674627 | Z206: 2024 | AA206: =(1+PPI)^('Future Trunk Assets - Transport'!Z206-YEAR) -> 1.159916788 | AB206: =IF(Z206<YEAR,1,IF('General Input Sheet'!$E$32="WACC1",1/(1+WACC1)^(Z206-YEAR), IF('General Input Sheet'!$E$32="WACC2",1/(1+WACC2)^(Z206-YEAR),"Check WACC Option in General Input Sheet"))) -> 0.6316903693 | AC206: 3738480 | AD206: 4340060 | AE206: 2741574
B207: R198, R197 | C207: RAN-RC-003 | D207: Road Corridor Project | E207: 1 | F207: Rickertt Road (Chelsea Road to bridge over Tingalpa Creek) | G207: 4 Lane Road | H207: 510 | I207: Suburban | J207: 2721 | K207: 0 | L207: 0 | M207: 2466.578431 | N207: 1257955 | O207: 2016 | P207: =IFERROR(('General Input Sheet'!$G$38/(VLOOKUP(O207,Histindex,3,FALSE))),1) -> 1 | Q207: Upgrade | R207: =IFERROR(_xlfn.IFS(AND(Q207<>"New",D207<>"Road Bridge"),30%,D207="Road Bridge",10%),0) -> 0.3 | S207: 377387 | T207: 0.15 | U207: 249471 | V207: 213852 | W207: 191335 | X207: 0 | Y207: 2290000 | Z207: 2024 | AA207: =(1+PPI)^('Future Trunk Assets - Transport'!Z207-YEAR) -> 1.159916788 | AB207: =IF(Z207<YEAR,1,IF('General Input Sheet'!$E$32="WACC1",1/(1+WACC1)^(Z207-YEAR), IF('General Input Sheet'!$E$32="WACC2",1/(1+WACC2)^(Z207-YEAR),"Check WACC Option in General Input Sheet"))) -> 0.6316903693 | AC207: 2290000 | AD207: 2656209 | AE207: 1677902
... 137 more rows

Sheet Catchment Demand Road Transport
B2: ='Navigation Pane'!B2 -> Brisbane City Council
B3: Road Transport
B5: Catchment Demand (trips)
B7: Catchment No | C7: Catchment Name (*) | D7: 2016 | E7: =D7+5 -> 2021 | F7: =E7+5 -> 2026 | G7: 2031 | H7: 2036 | J7: ="NPV Future Demand ("&(D7+1)& " - " &H7+10&")" -> NPV Future Demand (2017 - 2046) | L7: ="Ultimate Demand" -> Ultimate Demand
B8: 1 | D8: 400068 | E8: 401627 | F8: 403185 | J8: =NPV(WACC1,E43:N43) -> 2304.007312 | L8: 580600
B9: 2 | D9: 76888 | E9: 78191 | F9: 79494 | J9: 1926.281877 | L9: 84242
B10: 3 | D10: 296785 | E10: 341299 | F10: 385812 | J10: 65804.97123 | L10: 581695
B11: 4 | D11: 268520 | E11: 284483 | F11: 300446 | J11: 23598.29889 | L11: 395728
B12: 5 | D12: 239216 | E12: 260042 | F12: 280868 | J12: 30787.33662 | L12: 394952
B13: 6 | D13: 428682 | E13: 430241 | F13: 431799 | J13: 2304.007312 | L13: 655490
B14: 7 | D14: 560299 | E14: 581874 | F14: 603448 | J14: 31894.0711 | L14: 767913
B15: 8 | D15: 1111403 | E15: 1258047 | F15: 1404691 | J15: 216785.9117 | L15: 1738143
B16: 9 | D16: 214720 | E16: 249795 | F16: 284870 | J16: 51851.87933 | L16: 367118
B17: 10 | D17: 430033 | E17: 466530 | F17: 503026 | J17: 53953.35949 | L17: 775461
B18: 11 | D18: 209368 | E18: 224590 | F18: 239811 | J18: 22502.21957 | L18: 293326
B19: 12 | D19: 132327 | E19: 138503 | F19: 144679 | J19: 9130.029931 | L19: 162920
B20: 13 | D20: 204861 | E20: 212207 | F20: 219553 | J20: 10859.73042 | L20: 386383
B21: 14 | D21: 381068 | E21: 420789 | F21: 460510 | J21: 58720.0079 | L21: 708025
B22: 15 | D22: 526197 | E22: 548044 | F22: 569892 | J22: 32297.36887 | L22: 827583
B23: 16 | D23: 701732 | E23: 798826 | F23: 895920 | J23: 143535.5033 | L23: 1280345
B24: 17 | D24: 71445 | E24: 72565 | F24: 73686 | J24: 1656.343874 | L24: 97725
B25: Citywide | D25: 6253612 | E25: 6582951 | F25: 7281691 | J25: 759911.3288 | L25: 10097649
J27: =NPV(WACCII,#REF!) -> 
J28: =NPV(WACCII,#REF!) -> 
J29: =NPV(WACCII,#REF!) -> 
J30: =NPV(WACCII,#REF!) -> 
J31: =NPV(WACCII,#REF!) -> 
J32: =NPV(WACCII,#REF!) -> 
J33: =NPV(WACCII,#REF!) -> 
J34: =NPV(WACCII,#REF!) -> 
J35: =NPV(WACCII,#REF!) -> 
J36: =NPV(WACCII,#REF!) -> 
J37: =NPV(WACCII,#REF!) -> 
C38: Totals | D38: =SUM(D8:D24) -> 6253612 | E38: =SUM(E8:E24) -> 6767653 | F38: 7281690 | G38: 0 | H38: 0
B41: DETAILED Forecast Demand Growth Profile (OPTIONAL)
B42: Catchment No | C42: Catchment Name | D42: 2016 | E42: =D42 +1 -> 2017 | F42: =E42 +1 -> 2018 | G42: 2019 | H42: 2020 | I42: 2021 | J42: 2022 | K42: 2023 | L42: 2024 | M42: 2025 | N42: 2026 | O42: 2027 | P42: 2028 | Q42: 2029 | R42: 2030 | S42: 2031 | T42: 2032 | U42: 2033 | V42: 2034 | W42: 2035 | X42: 2036 | Y42: 2037 | Z42: 2038 | AA42: 2039 | AB42: 2040 | AC42: 2041 | AD42: 2042 | AE42: 2043 | AF42: 2044 | AG42: 2045 | AH42: 2046
B43: =B8 -> 1 | C43: =C8 -> 0 | E43: 312 | F43: 311 | G43: 312 | H43: 312 | I43: 312 | J43: 311 | K43: 312 | L43: 312 | M43: 312 | N43: 311
B44: =B9 -> 2 | C44: 0 | E44: 261 | F44: 260 | G44: 261 | H44: 260 | I44: 261 | J44: 261 | K44: 260 | L44: 261 | M44: 261 | N44: 260
B45: 3 | C45: 0 | E45: 8903 | F45: 8902 | G45: 8903 | H45: 8903 | I45: 8903 | J45: 8902 | K45: 8903 | L45: 8903 | M45: 8902 | N45: 8903
B46: 4 | C46: 0 | E46: 3193 | F46: 3192 | G46: 3193 | H46: 3192 | I46: 3193 | J46: 3192 | K46: 3193 | L46: 3193 | M46: 3192 | N46: 3193
B47: 5 | C47: 0 | E47: 4165 | F47: 4165 | G47: 4166 | H47: 4165 | I47: 4165 | J47: 4165 | K47: 4165 | L47: 4165 | M47: 4166 | N47: 4165
B48: 6 | C48: 0 | E48: 312 | F48: 311 | G48: 312 | H48: 312 | I48: 312 | J48: 311 | K48: 312 | L48: 312 | M48: 312 | N48: 311
B49: 7 | C49: 0 | E49: 4315 | F49: 4315 | G49: 4315 | H49: 4315 | I49: 4315 | J49: 4315 | K49: 4315 | L49: 4315 | M49: 4315 | N49: 4314
B50: 8 | C50: 0 | E50: 29329 | F50: 29329 | G50: 29328 | H50: 29329 | I50: 29329 | J50: 29329 | K50: 29328 | L50: 29329 | M50: 29329 | N50: 29329
B51: 9 | C51: 0 | E51: 7015 | F51: 7015 | G51: 7015 | H51: 7015 | I51: 7015 | J51: 7015 | K51: 7015 | L51: 7015 | M51: 7015 | N51: 7015
B52: 10 | C52: 0 | E52: 7299 | F52: 7300 | G52: 7299 | H52: 7299 | I52: 7300 | J52: 7299 | K52: 7299 | L52: 7300 | M52: 7299 | N52: 7299
B53: 11 | C53: 0 | E53: 3044 | F53: 3045 | G53: 3044 | H53: 3044 | I53: 3045 | J53: 3044 | K53: 3044 | L53: 3045 | M53: 3044 | N53: 3044
B54: 12 | C54: 0 | E54: 1235 | F54: 1235 | G54: 1236 | H54: 1235 | I54: 1235 | J54: 1235 | K54: 1235 | L54: 1235 | M54: 1236 | N54: 1235
B55: 13 | C55: 0 | E55: 1469 | F55: 1469 | G55: 1470 | H55: 1469 | I55: 1469 | J55: 1469 | K55: 1470 | L55: 1469 | M55: 1469 | N55: 1469
B56: 14 | C56: 0 | E56: 7944 | F56: 7944 | G56: 7944 | H56: 7945 | I56: 7944 | J56: 7944 | K56: 7944 | L56: 7944 | M56: 7944 | N56: 7945
B57: 15 | C57: 0 | E57: 4369 | F57: 4370 | G57: 4369 | H57: 4370 | I57: 4369 | J57: 4370 | K57: 4369 | L57: 4370 | M57: 4369 | N57: 4370
B58: 16 | C58: 0 | E58: 19419 | F58: 19419 | G58: 19418 | H58: 19419 | I58: 19419 | J58: 19419 | K58: 19419 | L58: 19419 | M58: 19418 | N58: 19419
B59: 17 | C59: 0 | E59: 224 | F59: 224 | G59: 224 | H59: 224 | I59: 224 | J59: 224 | K59: 224 | L59: 225 | M59: 224 | N59: 224
B60: =B25 -> Citywide | C60: 0 | E60: =SUM(E43:E59) -> 102808 | F60: =SUM(F43:F59) -> 102806 | G60: 102809 | H60: 102808 | I60: 102810 | J60: 102805 | K60: 102807 | L60: 102812 | M60: 102807 | N60: 102806
B61: DETAILED Forecast Demand Growth Profile
B62: Catchment No | C62: Catchment Name | D62: =D42 -> 2016 | E62: =D62 +1 -> 2017 | F62: =E62 +1 -> 2018 | G62: 2019 | H62: 2020 | I62: 2021 | J62: 2022 | K62: 2023 | L62: 2024 | M62: 2025 | N62: 2026 | O62: 2027 | P62: 2028 | Q62: 2029 | R62: 2030 | S62: 2031 | T62: 2032 | U62: 2033 | V62: 2034 | W62: 2035 | X62: 2036 | Y62: =X62 +1 -> 2037 | Z62: =Y62 +1 -> 2038 | AA62: =Z62 +1 -> 2039 | AB62: =AA62 +1 -> 2040 | AC62: =AB62 +1 -> 2041 | AD62: =AC62 +1 -> 2042 | AE62: =AD62 +1 -> 2043 | AF62: =AE62 +1 -> 2044 | AG62: =AF62 +1 -> 2045 | AH62: =AG62 +1 -> 2046
B63: =B8 -> 1 | C63: 0 | D63: 400068 | E63: =IF(E43="",(($E8-$D8)/5)*((1+ICSInf)^(E$62-YEAR)),E43*((1+ICSInf)^(Y$62-YEAR))) -> 312 | F63: =IF(F43="",(($E8-$D8)/5)*((1+ICSInf)^(F$62-YEAR)),F43*((1+ICSInf)^(Z$62-YEAR))) -> 311 | G63: =IF(G43="",(($E8-$D8)/5)*((1+ICSInf)^(G$62-YEAR)),G43*((1+ICSInf)^(AA$62-YEAR))) -> 312 | H63: =IF(H43="",(($E8-$D8)/5)*((1+ICSInf)^(H$62-YEAR)),H43*((1+ICSInf)^(AB$62-YEAR))) -> 312 | I63: =IF(I43="",(($E8-$D8)/5)*((1+ICSInf)^(I$62-YEAR)),I43*((1+ICSInf)^(AC$62-YEAR))) -> 312 | J63: =IF(J43="",(($F8-$E8)/5)*((1+ICSInf)^(J$62-YEAR)),J43*((1+ICSInf)^(Y$62-YEAR))) -> 311 | K63: =IF(K43="",(($F8-$E8)/5)*((1+ICSInf)^(K$62-YEAR)),K43*((1+ICSInf)^(Z$62-YEAR))) -> 312 | L63: =IF(L43="",(($F8-$E8)/5)*((1+ICSInf)^(L$62-YEAR)),L43*((1+ICSInf)^(AA$62-YEAR))) -> 312 | M63: =IF(M43="",(($F8-$E8)/5)*((1+ICSInf)^(M$62-YEAR)),M43*((1+ICSInf)^(AB$62-YEAR))) -> 312 | N63: =IF(N43="",(($F8-$E8)/5)*((1+ICSInf)^(N$62-YEAR)),N43*((1+ICSInf)^(AC$62-YEAR))) -> 311
B64: 2 | C64: 0 | D64: 76888 | E64: 261 | F64: 260 | G64: 261 | H64: 260 | I64: 261 | J64: 261 | K64: 260 | L64: 261 | M64: 261 | N64: 260
B65: 3 | C65: 0 | D65: 296785 | E65: 8903 | F65: 8902 | G65: 8903 | H65: 8903 | I65: 8903 | J65: 8902 | K65: 8903 | L65: 8903 | M65: 8902 | N65: 8903
B66: 4 | C66: 0 | D66: 268520 | E66: 3193 | F66: 3192 | G66: 3193 | H66: 3192 | I66: 3193 | J66: 3192 | K66: 3193 | L66: 3193 | M66: 3192 | N66: 3193
B67: 5 | C67: 0 | D67: 239216 | E67: 4165 | F67: 4165 | G67: 4166 | H67: 4165 | I67: 4165 | J67: 4165 | K67: 4165 | L67: 4165 | M67: 4166 | N67: 4165
B68: 6 | C68: 0 | D68: 428682 | E68: 312 | F68: 311 | G68: 312 | H68: 312 | I68: 312 | J68: 311 | K68: 312 | L68: 312 | M68: 312 | N68: 311
B69: 7 | C69: 0 | D69: 560299 | E69: 4315 | F69: 4315 | G69: 4315 | H69: 4315 | I69: 4315 | J69: 4315 | K69: 4315 | L69: 4315 | M69: 4315 | N69: 4314
B70: 8 | C70: 0 | D70: 1111403 | E70: 29329 | F70: 29329 | G70: 29328 | H70: 29329 | I70: 29329 | J70: 29329 | K70: 29328 | L70: 29329 | M70: 29329 | N70: 29329
B71: 9 | C71: 0 | D71: 214720 | E71: 7015 | F71: 7015 | G71: 7015 | H71: 7015 | I71: 7015 | J71: 7015 | K71: 7015 | L71: 7015 | M71: 7015 | N71: 7015
B72: 10 | C72: 0 | D72: 430033 | E72: 7299 | F72: 7300 | G72: 7299 | H72: 7299 | I72: 7300 | J72: 7299 | K72: 7299 | L72: 7300 | M72: 7299 | N72: 7299
B73: 11 | C73: 0 | D73: 209368 | E73: 3044 | F73: 3045 | G73: 3044 | H73: 3044 | I73: 3045 | J73: 3044 | K73: 3044 | L73: 3045 | M73: 3044 | N73: 3044
B74: 12 | C74: 0 | D74: 132327 | E74: 1235 | F74: 1235 | G74: 1236 | H74: 1235 | I74: 1235 | J74: 1235 | K74: 1235 | L74: 1235 | M74: 1236 | N74: 1235
B75: 13 | C75: 0 | D75: 204861 | E75: 1469 | F75: 1469 | G75: 1470 | H75: 1469 | I75: 1469 | J75: 1469 | K75: 1470 | L75: 1469 | M75: 1469 | N75: 1469
B76: 14 | C76: 0 | D76: 381068 | E76: 7944 | F76: 7944 | G76: 7944 | H76: 7945 | I76: 7944 | J76: 7944 | K76: 7944 | L76: 7944 | M76: 7944 | N76: 7945
B77: 15 | C77: 0 | D77: 526197 | E77: 4369 | F77: 4370 | G77: 4369 | H77: 4370 | I77: 4369 | J77: 4370 | K77: 4369 | L77: 4370 | M77: 4369 | N77: 4370
B78: 16 | C78: 0 | D78: 701732 | E78: 19419 | F78: 19419 | G78: 19418 | H78: 19419 | I78: 19419 | J78: 19419 | K78: 19419 | L78: 19419 | M78: 19418 | N78: 19419
B79: 17 | C79: 0 | D79: 71445 | E79: 224 | F79: 224 | G79: 224 | H79: 224 | I79: 224 | J79: 224 | K79: 224 | L79: 225 | M79: 224 | N79: 224
B80: Citywide | C80: 0 | D80: 6253612 | E80: 102808 | F80: 102806 | G80: 102809 | H80: 102808 | I80: 102810 | J80: 102805 | K80: 102807 | L80: 102812 | M80: 102807 | N80: 102806

Sheet Summary Cost Schedule
B2: ='Navigation Pane'!B2 -> Brisbane City Council
B5: Summary Cost Schedule
B7: Catchment | D7: Demand (trips) | G7: Cost of Trunk Infrastrcutrue | J7: Cost per Unit Demand (Average) | K7: Cost per Unit Demand (Marginal)
B8: No | C8: Name | D8: Existing (A) | E8: NPV Future (B) | F8: TOTAL (A)+ (B) | G8: Existing (C) | H8: NPV Future (D) | I8: TOTAL (C)+ (D)
B9: Transport
B10: ='Catchment Demand Road Transport'!B8 -> 1 | C10: ='Catchment Demand Road Transport'!C8 -> 0 | D10: =IFERROR(VLOOKUP($B10,'Catchment Demand Road Transport'!$B$8:$J$37,3,FALSE),"") -> 400068 | E10: =IFERROR(VLOOKUP($B10,'Catchment Demand Road Transport'!$B$8:$J$37,9,FALSE),"") -> 2304.007312 | F10: =IFERROR(D10+E10,"") -> 402372.0073 | G10: 359814058.7 | H10: =I10-G10 -> -90991.32433 | I10: 359723067.3 | J10: =IFERROR(I10/F10,0) -> 894.0061953 | K10: =IFERROR(H10/E10,"") -> -39.49263697
B11: ='Catchment Demand Road Transport'!B9 -> 2 | C11: ='Catchment Demand Road Transport'!C9 -> 0 | D11: =IFERROR(VLOOKUP($B11,'Catchment Demand Road Transport'!$B$8:$J$37,3,FALSE),"") -> 76888 | E11: =IFERROR(VLOOKUP($B11,'Catchment Demand Road Transport'!$B$8:$J$37,9,FALSE),"") -> 1926.281877 | F11: =IFERROR(D11+E11,"") -> 78814.28188 | G11: 69936680 | H11: =I11-G11 -> 1651306.619 | I11: 71587986.62 | J11: =IFERROR(I11/F11,0) -> 908.3123631 | K11: =IFERROR(H11/E11,"") -> 857.2507684
B12: ='Catchment Demand Road Transport'!B10 -> 3 | C12: ='Catchment Demand Road Transport'!C10 -> 0 | D12: =IFERROR(VLOOKUP($B12,'Catchment Demand Road Transport'!$B$8:$J$37,3,FALSE),"") -> 296785 | E12: =IFERROR(VLOOKUP($B12,'Catchment Demand Road Transport'!$B$8:$J$37,9,FALSE),"") -> 65804.97123 | F12: 362589.9712 | G12: 248636725.3 | H12: 63540356.42 | I12: 312177081.8 | J12: 860.9644682 | K12: 965.5859616
B13: ='Catchment Demand Road Transport'!B11 -> 4 | C13: ='Catchment Demand Road Transport'!C11 -> 0 | D13: =IFERROR(VLOOKUP($B13,'Catchment Demand Road Transport'!$B$8:$J$37,3,FALSE),"") -> 268520 | E13: =IFERROR(VLOOKUP($B13,'Catchment Demand Road Transport'!$B$8:$J$37,9,FALSE),"") -> 23598.29889 | F13: 292118.2989 | G13: 420143573.3 | H13: 40601116.79 | I13: 460744690.1 | J13: 1577.253777 | K13: 1720.510321
B14: ='Catchment Demand Road Transport'!B12 -> 5 | C14: ='Catchment Demand Road Transport'!C12 -> 0 | D14: =IFERROR(VLOOKUP($B14,'Catchment Demand Road Transport'!$B$8:$J$37,3,FALSE),"") -> 239216 | E14: =IFERROR(VLOOKUP($B14,'Catchment Demand Road Transport'!$B$8:$J$37,9,FALSE),"") -> 30787.33662 | F14: 270003.3366 | G14: 426307050.7 | H14: 51033149.05 | I14: 477340199.7 | J14: 1767.904818 | K14: 1657.601944
B15: ='Catchment Demand Road Transport'!B13 -> 6 | C15: ='Catchment Demand Road Transport'!C13 -> 0 | D15: =IFERROR(VLOOKUP($B15,'Catchment Demand Road Transport'!$B$8:$J$37,3,FALSE),"") -> 428682 | E15: =IFERROR(VLOOKUP($B15,'Catchment Demand Road Transport'!$B$8:$J$37,9,FALSE),"") -> 2304.007312 | F15: 430986.0073 | G15: 257122314.7 | H15: 10747281.92 | I15: 267869596.6 | J15: 621.5273629 | K15: 4664.604085
B16: ='Catchment Demand Road Transport'!B14 -> 7 | C16: ='Catchment Demand Road Transport'!C14 -> 0 | D16: =IFERROR(VLOOKUP($B16,'Catchment Demand Road Transport'!$B$8:$J$37,3,FALSE),"") -> 560299 | E16: =IFERROR(VLOOKUP($B16,'Catchment Demand Road Transport'!$B$8:$J$37,9,FALSE),"") -> 31894.0711 | F16: 592193.0711 | G16: 688440085.3 | H16: 69511980.61 | I16: 757952065.9 | J16: 1279.907015 | K16: 2179.464026
B17: ='Catchment Demand Road Transport'!B15 -> 8 | C17: ='Catchment Demand Road Transport'!C15 -> 0 | D17: =IFERROR(VLOOKUP($B17,'Catchment Demand Road Transport'!$B$8:$J$37,3,FALSE),"") -> 1111403 | E17: =IFERROR(VLOOKUP($B17,'Catchment Demand Road Transport'!$B$8:$J$37,9,FALSE),"") -> 216785.9117 | F17: 1328188.912 | G17: 1922202795 | H17: 324451764.4 | I17: 2246654559 | J17: 1691.517328 | K17: 1496.645985
B18: ='Catchment Demand Road Transport'!B16 -> 9 | C18: ='Catchment Demand Road Transport'!C16 -> 0 | D18: =IFERROR(VLOOKUP($B18,'Catchment Demand Road Transport'!$B$8:$J$37,3,FALSE),"") -> 214720 | E18: =IFERROR(VLOOKUP($B18,'Catchment Demand Road Transport'!$B$8:$J$37,9,FALSE),"") -> 51851.87933 | F18: 266571.8793 | G18: 264056757.3 | H18: 64648230.83 | I18: 328704988.2 | J18: 1233.082008 | K18: 1246.786648
B19: ='Catchment Demand Road Transport'!B17 -> 10 | C19: ='Catchment Demand Road Transport'!C17 -> 0 | D19: =IFERROR(VLOOKUP($B19,'Catchment Demand Road Transport'!$B$8:$J$37,3,FALSE),"") -> 430033 | E19: =IFERROR(VLOOKUP($B19,'Catchment Demand Road Transport'!$B$8:$J$37,9,FALSE),"") -> 53953.35949 | F19: 483986.3595 | G19: 300047893.3 | H19: 45584529.96 | I19: 345632423.3 | J19: 714.1367035 | K19: 844.8877028
B20: ='Catchment Demand Road Transport'!B18 -> 11 | C20: ='Catchment Demand Road Transport'!C18 -> 0 | D20: =IFERROR(VLOOKUP($B20,'Catchment Demand Road Transport'!$B$8:$J$37,3,FALSE),"") -> 209368 | E20: =IFERROR(VLOOKUP($B20,'Catchment Demand Road Transport'!$B$8:$J$37,9,FALSE),"") -> 22502.21957 | F20: 231870.2196 | G20: 303840277.3 | H20: 28795447.5 | I20: 332635724.8 | J20: 1434.577176 | K20: 1279.671431
B21: ='Catchment Demand Road Transport'!B19 -> 12 | C21: ='Catchment Demand Road Transport'!C19 -> 0 | D21: =IFERROR(VLOOKUP($B21,'Catchment Demand Road Transport'!$B$8:$J$37,3,FALSE),"") -> 132327 | E21: =IFERROR(VLOOKUP($B21,'Catchment Demand Road Transport'!$B$8:$J$37,9,FALSE),"") -> 9130.029931 | F21: 141457.0299 | G21: 287368992 | H21: 24121871.15 | I21: 311490863.2 | J21: 2202.017555 | K21: 2642.036372
B22: ='Catchment Demand Road Transport'!B20 -> 13 | C22: ='Catchment Demand Road Transport'!C20 -> 0 | D22: =IFERROR(VLOOKUP($B22,'Catchment Demand Road Transport'!$B$8:$J$37,3,FALSE),"") -> 204861 | E22: =IFERROR(VLOOKUP($B22,'Catchment Demand Road Transport'!$B$8:$J$37,9,FALSE),"") -> 10859.73042 | F22: 215720.7304 | G22: 282154880 | H22: 19462318.81 | I22: 301617198.8 | J22: 1398.183653 | K22: 1792.154874
B23: ='Catchment Demand Road Transport'!B21 -> 14 | C23: ='Catchment Demand Road Transport'!C21 -> 0 | D23: =IFERROR(VLOOKUP($B23,'Catchment Demand Road Transport'!$B$8:$J$37,3,FALSE),"") -> 381068 | E23: =IFERROR(VLOOKUP($B23,'Catchment Demand Road Transport'!$B$8:$J$37,9,FALSE),"") -> 58720.0079 | F23: 439788.0079 | G23: 516973973.3 | H23: 45423574.64 | I23: 562397548 | J23: 1278.792368 | K23: 773.5621344
B24: ='Catchment Demand Road Transport'!B22 -> 15 | C24: ='Catchment Demand Road Transport'!C22 -> 0 | D24: =IFERROR(VLOOKUP($B24,'Catchment Demand Road Transport'!$B$8:$J$37,3,FALSE),"") -> 526197 | E24: =IFERROR(VLOOKUP($B24,'Catchment Demand Road Transport'!$B$8:$J$37,9,FALSE),"") -> 32297.36887 | F24: 558494.3689 | G24: 486955242.7 | H24: 28484934.63 | I24: 515440177.3 | J24: 922.9102495 | K24: 881.9583645
B25: ='Catchment Demand Road Transport'!B23 -> 16 | C25: ='Catchment Demand Road Transport'!C23 -> 0 | D25: =IFERROR(VLOOKUP($B25,'Catchment Demand Road Transport'!$B$8:$J$37,3,FALSE),"") -> 701732 | E25: =IFERROR(VLOOKUP($B25,'Catchment Demand Road Transport'!$B$8:$J$37,9,FALSE),"") -> 143535.5033 | F25: 845267.5033 | G25: 850520725.3 | H25: 187296453.6 | I25: 1037817179 | J25: 1227.797324 | K25: 1304.878927
B26: ='Catchment Demand Road Transport'!B24 -> 17 | C26: ='Catchment Demand Road Transport'!C24 -> 0 | D26: =IFERROR(VLOOKUP($B26,'Catchment Demand Road Transport'!$B$8:$J$37,3,FALSE),"") -> 71445 | E26: =IFERROR(VLOOKUP($B26,'Catchment Demand Road Transport'!$B$8:$J$37,9,FALSE),"") -> 1656.343874 | F26: 73101.34387 | G26: 63210736 | H26: 436856.1911 | I26: 63647592.19 | J26: 870.6760891 | K26: 263.7472797
B27: ='Catchment Demand Road Transport'!B25 -> Citywide | C27: ='Catchment Demand Road Transport'!C25 -> 0 | D27: =IFERROR(VLOOKUP($B27,'Catchment Demand Road Transport'!$B$8:$J$37,3,FALSE),"") -> 6253612 | E27: =IFERROR(VLOOKUP($B27,'Catchment Demand Road Transport'!$B$8:$J$37,9,FALSE),"") -> 759911.3288 | F27: 7013523.329 | G27: =SUM(G10:G26) -> 7747732760 | H27: =SUM(H10:H26) -> 1005700182 | I27: =SUM(I10:I26) -> 8753432942 | J27: 1248.079251 | K27: 1323.444123
B31: Note: The roads SOW model utilises the BSTM outputs of apportioned cost and demand to determine a service cost per catchment as a NPV. The BSTM does not calculate the service cost based on the physical location of trunk roads in service catchments, but on the cost of the capacity consumed of trunk roads based on the trips using the roads. The costs are allocated to the zones they are generated by and generated from which are then aggregated to service catchments.
